{"text_format":"1","workbook":"xlsx","n_sheets":27,"sheets":["ToolBox","Melt Temperature","Mold Temperature","Process Documentation","1st Stage Progression","1st Stage Inj. Speed","1st Stage Rheology Curve","1st Stage Imbalance","1st Stage Transfer","1st Stage Max. Pressure","1st Stage Max. Time","1st Stage Check Ring","2nd Stage Pressure","2nd Stage Time","2nd Stage Cushion","2nd Stage Clamp","Coolant Temp","Cooling Time","Rear Zone Temp.","Recovery Time","Mold Opening","Part Ejection","Mold Closing","Mold Protection","Comparative Rheology","Mold Deflection","Platen Deflection"],"not_rendered":{"charts":4,"images":2,"macros":1,"external_links":0,"defined_names":27,"comments":0,"pivot_tables":0},"unopened":[],"bounds":{"document_bytes":16777216,"sheet_cells":100000,"rows_first":2000,"rows_last":500,"rows_between":2000,"halvings":0,"cell_chars":16384,"cell_head_chars":4096},"cells_cut":0,"cells_raw":0,"read":"whole","date_system":"1900"}

{"sheet":"ToolBox","index":0,"n_rows":27,"n_cols":50,"rows_kept":27,"cut":false,"hidden":false,"merged":[[19,1,20,14],[21,1,22,14],[28,1,53,8],[26,41,27,48],[12,1,13,56],[14,1,15,56],[16,1,17,56],[19,15,20,22],[21,15,22,22],[26,49,27,56],[26,1,27,8],[26,9,27,16],[26,17,27,24],[23,15,24,22],[6,1,7,56],[8,1,9,56],[1,20,4,56],[28,41,53,48],[23,1,24,14],[19,23,20,56],[21,23,22,56],[23,23,24,56],[26,25,27,32],[26,33,27,40],[28,9,53,16],[28,17,53,24],[28,25,53,32],[28,33,53,40],[28,49,53,56],[10,1,11,56]]}
[]
[null,null,null,null,null,null,null,null,null,null,null,null,null,null,null,null,null,null,null,null,"Scientific SkillSet ToolBox™"]
[]
[]
[]
[]
[null,"Procedures for Use"]
[]
[null,"1. Click on the SkillSet™ Tool you wish to use"]
[]
[null,"2. If you wish to use a tool manually, select the print button before entering data"]
[]
[null,"3. Click on the orange shaded boxes to select the appropriate units"]
[]
[null,"4. Fill in the light blue cells only and find calculations in the light brown cells"]
[]
[null,"5. Fill in the light blue cells only and print the worksheet when you are done"]
[]
[]
[null,"Cells colored light blue",null,null,null,null,null,null,null,null,null,null,null,null,null,null,null,null,null,null,null,null,null,"Please enter your data in these cells"]
[]
[null,"Cells colored light brown",null,null,null,null,null,null,null,null,null,null,null,null,null,null,null,null,null,null,null,null,null,"These cells are automatically calculated "]
[]
[null,"Cells shaded orange",null,null,null,null,null,null,null,null,null,null,null,null,null,null,null,null,null,null,null,null,null,"Click on these to select from a list of options"]
[]
[]
[null,"Process Documentation",null,null,null,null,null,null,null,"1st Stage Injection",null,null,null,null,null,null,null,"2nd Stage Packing",null,null,null,null,null,null,null,"Part Cooling",null,null,null,null,null,null,null,"Screw Recovery",null,null,null,null,null,null,null,"Part Removal",null,null,null,null,null,null,null,"Advanced"]

{"sheet":"Melt Temperature","index":1,"n_rows":43,"n_cols":56,"rows_kept":43,"cut":false,"hidden":false,"merged":[[1,1,5,24],[23,41,24,46],[12,1,13,14],[12,15,13,61],[15,1,17,14],[15,15,17,20],[15,21,17,26],[15,27,17,32],[15,33,17,38],[42,35,43,36],[42,29,43,34],[33,15,34,16],[7,1,10,61],[29,46,30,49],[27,13,28,18],[31,14,32,17],[15,39,17,46],[39,24,40,39],[23,10,24,39],[31,46,32,49],[27,54,28,57],[29,54,30,57],[31,54,32,57],[31,30,32,33],[31,38,32,41],[29,14,30,17],[27,22,28,25],[29,22,30,25],[31,22,32,25],[19,1,20,61],[23,47,24,49],[23,50,24,52],[28,27,35,28],[28,35,35,36],[28,43,35,44],[28,51,35,52],[27,30,28,33],[29,30,30,33],[27,38,28,41],[29,38,30,41],[27,46,28,49],[33,55,34,56],[33,23,34,24],[33,31,34,32],[33,39,34,40],[33,47,34,48]]}
[]
[]
[]
[]
[]
[]
[]
[null,"Scientific Documentation - Melt Temperature Measurement "]
[]
[]
[]
[]
[null,"Purpose:",null,null,null,null,null,null,null,null,null,null,null,null,null,"Accurately measure the temperature of the Polymer Melt"]
[]
[]
[null,"Equipment Needed:",null,null,null,null,null,null,null,null,null,null,null,null,null,"Face Shield",null,null,null,null,null,"Heat Resistant Gloves",null,null,null,null,null,"Cotton Sleeves",null,null,null,null,null,"Cleaning Rag",null,null,null,null,null,"Pyrometer w/ Melt Temp Probe"]
[]
[]
[]
[null,"Define the units being used"]
[]
[]
[]
[null,null,null,null,null,null,null,null,null,null,"What temperature units are being used (C/F)?",null,null,null,null,null,null,null,null,null,null,null,null,null,null,null,null,null,null,null,null,null,null,null,null,null,null,null,null,null,null,null,null,null,null,null,null,{"$f":"IF(AP24=\"\",\"°C\",\"\")","v":"°C"},null,null,{"$f":"IF(AP24=\"\",\"°F\",\"\")","v":"°F"}]
[]
[]
[]
[null,null,null,null,null,null,null,null,null,null,null,null,null,"Nozzle",null,null,null,null,null,null,null,null,"Zone 1",null,null,null,null,null,null,null,"Zone 2",null,null,null,null,null,null,null,"Zone 3",null,null,null,null,null,null,null,"Zone 4",null,null,null,null,null,null,null,"Zone 5"]
[]
[null,null,null,null,null,null,null,null,null,null,null,null,null,null,"Set",null,null,null,null,null,null,null,"Set",null,null,null,null,null,null,null,"Set",null,null,null,null,null,null,null,"Set",null,null,null,null,null,null,null,"Set",null,null,null,null,null,null,null,"Set"]
[]
[]
[]
[null,null,null,null,null,null,null,null,null,null,null,null,null,null,null,{"$f":"IF(AP24=\"\",\"\",AP24)","v":""},null,null,null,null,null,null,null,{"$f":"IF(AP24=\"\",\"\",AP24)","v":""},null,null,null,null,null,null,null,{"$f":"IF(AP24=\"\",\"\",AP24)","v":""},null,null,null,null,null,null,null,{"$f":"IF(AP24=\"\",\"\",AP24)","v":""},null,null,null,null,null,null,null,{"$f":"IF(AP24=\"\",\"\",AP24)","v":""},null,null,null,null,null,null,null,{"$f":"IF(AP24=\"\",\"\",AP24)","v":""}]
[]
[]
[]
[]
[]
[null,null,null,null,null,null,null,null,null,null,null,null,null,null,null,null,null,null,null,null,null,null,null,null,"Actual Melt Temperature"]
[]
[]
[null,null,null,null,null,null,null,null,null,null,null,null,null,null,null,null,null,null,null,null,null,null,null,null,null,null,null,null,null,null,null,null,null,null,null,{"$f":"IF(AP24=\"\",\"\",AP24)","v":""}]

{"sheet":"Mold Temperature","index":2,"n_rows":58,"n_cols":61,"rows_kept":58,"cut":false,"hidden":false,"merged":[[26,1,27,62],[39,8,40,9],[39,54,40,55],[40,17,41,21],[40,22,41,23],[40,40,41,44],[40,45,41,46],[32,27,42,31],[32,32,42,36],[33,40,34,46],[35,40,36,44],[33,17,34,23],[35,17,36,21],[35,22,36,23],[37,6,38,11],[37,52,38,57],[35,45,36,46],[38,17,39,23],[38,40,39,46],[29,5,30,26],[29,37,30,58],[32,4,36,13],[32,50,36,59],[19,1,20,62],[23,46,24,48],[23,49,24,51],[23,9,24,38],[23,40,24,45],[1,1,5,24],[7,1,10,62],[12,1,13,14],[12,15,13,62],[15,1,17,14],[15,15,17,20],[15,21,17,26],[46,15,47,26],[46,27,47,38],[46,39,47,50],[46,51,47,62],[48,22,49,23],[48,16,49,21],[48,24,49,25],[48,28,49,33],[48,34,49,35],[48,36,49,37],[48,60,49,61],[48,46,49,47],[48,48,49,49],[48,52,49,57],[48,58,49,59],[69,41,70,42],[69,43,70,44],[69,45,70,46],[69,47,70,48],[69,49,70,50],[69,51,70,52],[69,53,70,54],[69,19,70,20],[61,9,64,10],[61,11,64,12],[61,13,64,14],[61,15,64,16],[61,17,64,18],[61,19,64,20],[61,21,64,22],[69,9,70,10],[69,11,70,12],[69,13,70,14],[69,15,70,16],[69,17,70,18],[67,47,68,48],[67,49,68,50],[67,51,68,52],[67,53,68,54],[59,9,60,10],[59,11,60,12],[59,13,60,14],[59,15,60,16],[59,17,60,18],[61,41,64,42],[61,43,64,44],[61,45,64,46],[61,47,64,48],[61,51,64,52],[61,53,64,54],[67,9,68,10],[67,11,68,12],[67,13,68,14],[67,15,68,16],[67,17,68,18],[67,41,68,42],[67,43,68,44],[67,45,68,46],[48,1,49,14],[50,1,51,14],[50,15,51,26],[50,27,51,38],[50,39,51,50],[50,51,51,62],[48,40,49,45],[59,47,60,48],[59,49,60,50],[59,51,60,52],[59,53,60,54],[59,41,60,42],[59,43,60,44],[59,45,60,46],[59,19,60,20],[59,21,60,22],[54,5,55,26],[54,37,55,58],[57,4,72,5],[57,58,72,59],[69,21,70,22],[67,19,68,20],[67,21,68,22],[61,49,64,50]]}
[]
[]
[]
[]
[]
[]
[]
[null,"Process Documentation - Mold Temperature Measurement "]
[]
[]
[]
[]
[null,"Purpose:",null,null,null,null,null,null,null,null,null,null,null,null,null,"To accurately measure the temperature of the mold coolant and mold surface"]
[]
[]
[null,"Equipment Needed:",null,null,null,null,null,null,null,null,null,null,null,null,null,"Safety Glasses",null,null,null,null,null,"Pyrometer w/ surface probe"]
[]
[]
[]
[null,"Define the units being used"]
[]
[]
[]
[null,null,null,null,null,null,null,null,null,"What temperature units are being used (°C°/F)?",null,null,null,null,null,null,null,null,null,null,null,null,null,null,null,null,null,null,null,null,null,null,null,null,null,null,null,null,null,null,null,null,null,null,null,null,{"$f":"IF(AO24=\"\",\"°C\",\"\")","v":"°C"},null,null,{"$f":"IF(AO24=\"\",\"°F\",\"\")","v":"°F"}]
[]
[]
[null,"Document the water heater controller settings and IN & OUT temperatures"]
[]
[]
[null,null,null,null,null,"Core controller settings/readings",null,null,null,null,null,null,null,null,null,null,null,null,null,null,null,null,null,null,null,null,null,null,null,null,null,null,null,null,null,null,null,"Cavity controller settings/readings"]
[]
[]
[null,null,null,null,"Core 'B' Side Temp Setting",null,null,null,null,null,null,null,null,null,null,null,null,null,null,null,null,null,null,null,null,null,null,null,null,null,null,null,null,null,null,null,null,null,null,null,null,null,null,null,null,null,null,null,null,null,"Cavity 'A' Side Temp Setting"]
[null,null,null,null,null,null,null,null,null,null,null,null,null,null,null,null,null,"IN Temp",null,null,null,null,null,null,null,null,null,null,null,null,null,null,null,null,null,null,null,null,null,null,"IN Temp"]
[]
[null,null,null,null,null,null,null,null,null,null,null,null,null,null,null,null,null,null,null,null,null,null,{"$f":"IF(AO24=\"\",\"\",AO24)","v":""},null,null,null,null,null,null,null,null,null,null,null,null,null,null,null,null,null,null,null,null,null,null,{"$f":"IF(AO24=\"\",\"\",AO24)","v":""}]
[]
[]
[null,null,null,null,null,null,null,null,null,null,null,null,null,null,null,null,null,"OUT Temp",null,null,null,null,null,null,null,null,null,null,null,null,null,null,null,null,null,null,null,null,null,null,"OUT Temp"]
[null,null,null,null,null,null,null,null,{"$f":"IF(AO24=\"\",\"\",AO24)","v":""},null,null,null,null,null,null,null,null,null,null,null,null,null,null,null,null,null,null,null,null,null,null,null,null,null,null,null,null,null,null,null,null,null,null,null,null,null,null,null,null,null,null,null,null,null,{"$f":"IF(AO24=\"\",\"\",AO24)","v":""}]
[null,null,null,null,null,null,null,null,null,null,null,null,null,null,null,null,null,null,null,null,null,null,{"$f":"IF(AO24=\"\",\"\",AO24)","v":""},null,null,null,null,null,null,null,null,null,null,null,null,null,null,null,null,null,null,null,null,null,null,{"$f":"IF(AO24=\"\",\"\",AO24)","v":""}]
[]
[]
[]
[]
[]
[null,null,null,null,null,null,null,null,null,null,null,null,null,null,null,"Core 'B' Side 1",null,null,null,null,null,null,null,null,null,null,null,"Core 'B' Side 2",null,null,null,null,null,null,null,null,null,null,null,"Cavity 'A' Side 1",null,null,null,null,null,null,null,null,null,null,null,"Cavity 'A' Side 2"]
[]
[null,"Surface Tempertaure",null,null,null,null,null,null,null,null,null,null,null,null,null,null,null,null,null,null,null,null,{"$f":"IF(AO24=\"\",\"°C\",IF(AO24=\"°F\",\"°F\",\"°C\"))","v":"°C"},null,{"$f":"IF(AO24=\"\",\"°F\",\"\")","v":"°F"},null,null,null,null,null,null,null,null,null,{"$f":"IF(AO24=\"\",\"°C\",IF(AO24=\"°F\",\"°F\",\"°C\"))","v":"°C"},null,{"$f":"IF(AO24=\"\",\"°F\",\"\")","v":"°F"},null,null,null,null,null,null,null,null,null,{"$f":"IF(AO24=\"\",\"°C\",IF(AO24=\"°F\",\"°F\",\"°C\"))","v":"°C"},null,{"$f":"IF(AO24=\"\",\"°F\",\"\")","v":"°F"},null,null,null,null,null,null,null,null,null,{"$f":"IF(AO24=\"\",\"°C\",IF(AO24=\"°F\",\"°F\",\"°C\"))","v":"°C"},null,{"$f":"IF(AO24=\"\",\"°F\",\"\")","v":"°F"}]
[]
[null,"Comments"]
[]
[]
[]
[null,null,null,null,null,"Basic Core 'B' Side Sketch",null,null,null,null,null,null,null,null,null,null,null,null,null,null,null,null,null,null,null,null,null,null,null,null,null,null,null,null,null,null,null,"Basic Cavity 'A' Side Sketch"]
[]
[]
[null,null,null,null,"Operator side",null,null,null,null,null,null,null,null,null,null,null,null,null,null,null,null,null,null,null,null,null,null,null,null,null,null,null,null,null,null,null,null,null,null,null,null,null,null,null,null,null,null,null,null,null,null,null,null,null,null,null,null,null,"Operator Side"]

{"sheet":"Process Documentation","index":3,"n_rows":141,"n_cols":61,"rows_kept":141,"cut":false,"hidden":false,"merged":[[140,18,141,23],[1,1,5,24],[7,1,10,62],[12,1,13,14],[12,15,13,62],[15,1,17,14],[15,15,17,20],[15,21,17,26],[15,27,17,32],[15,33,17,38],[15,39,17,44],[15,45,17,50],[15,51,17,56],[15,57,17,62],[31,34,32,43],[19,2,21,61],[31,10,32,19],[29,20,30,29],[29,44,32,53],[27,34,28,43],[27,44,28,53],[25,34,26,43],[25,44,26,53],[29,34,30,43],[41,2,42,10],[41,11,42,19],[41,22,42,30],[41,31,42,39],[41,42,42,50],[41,51,42,59],[48,12,49,21],[48,22,49,31],[23,44,24,53],[34,2,36,61],[44,2,46,61],[23,10,24,19],[25,10,26,19],[29,10,30,19],[23,34,24,43],[23,20,24,29],[25,20,26,29],[27,10,28,19],[27,20,28,29],[38,12,39,21],[38,22,39,31],[38,33,39,42],[38,43,39,52],[31,20,32,29],[53,27,54,32],[56,27,57,32],[53,33,54,42],[56,33,57,42],[53,45,54,50],[53,51,54,60],[48,33,49,42],[48,43,49,52],[53,1,57,24],[56,45,57,50],[56,51,57,60],[59,1,62,62],[70,54,71,56],[70,57,71,59],[70,60,71,62],[70,19,71,21],[70,22,71,24],[70,12,71,18],[70,27,71,29],[70,30,71,32],[73,39,74,47],[73,54,74,55],[70,1,71,11],[70,25,71,26],[73,25,74,26],[64,31,65,39],[64,42,65,50],[64,51,65,61],[73,12,74,18],[73,19,74,21],[73,22,74,24],[73,27,74,29],[73,30,74,32],[73,1,74,11],[64,2,65,10],[64,11,65,19],[64,22,65,30],[79,1,80,11],[79,12,80,18],[79,19,80,21],[79,22,80,24],[79,54,80,56],[79,57,80,59],[79,60,80,62],[79,25,80,26],[88,30,89,31],[82,39,83,47],[82,54,83,55],[88,7,89,17],[88,24,89,26],[82,18,83,23],[82,27,83,32],[82,33,83,34],[79,27,80,29],[79,30,80,32],[88,32,89,34],[88,35,89,37],[79,36,80,47],[88,27,89,29],[91,6,92,17],[91,18,92,23],[91,24,92,25],[91,26,92,27],[91,54,92,55],[91,36,92,47],[137,32,138,34],[94,1,95,62],[106,1,107,62],[111,60,112,61],[113,1,114,14],[113,15,114,26],[113,27,114,38],[113,39,114,50],[113,51,114,62],[111,15,112,15],[111,26,112,26],[111,27,112,27],[111,36,112,37],[111,40,112,45],[111,46,112,47],[111,48,112,49],[137,18,138,23],[100,24,101,25],[100,36,101,47],[103,10,104,17],[103,24,104,25],[97,18,98,23],[97,24,98,25],[137,27,138,31],[111,58,112,59],[111,38,112,38],[111,39,112,39],[111,50,112,50],[111,51,112,51],[111,1,112,14],[119,4,132,5],[119,58,132,59],[116,5,117,26],[116,37,117,58],[129,13,130,14],[129,15,130,16],[129,17,130,18],[129,19,130,20],[129,21,130,22],[121,9,122,10],[121,11,122,12],[121,13,122,14],[111,62,112,62],[67,1,68,62],[76,1,77,62],[85,1,86,62],[111,16,112,21],[111,22,112,23],[111,24,112,25],[111,28,112,33],[111,34,112,35],[100,48,101,53],[100,54,101,55],[100,56,101,57],[109,15,110,26],[109,27,110,38],[109,39,110,50],[109,51,110,62],[97,26,98,27],[97,36,98,47],[97,48,98,53],[97,54,98,55],[97,56,98,57],[100,18,101,23],[111,52,112,57],[100,26,101,27],[121,15,122,16],[121,17,122,18],[121,19,122,20],[121,21,122,22],[123,9,124,10],[123,11,124,12],[123,13,124,14],[123,15,124,16],[123,17,124,18],[123,19,124,20],[123,21,124,22],[123,49,124,50],[123,51,124,52],[123,53,124,54],[127,9,128,10],[127,11,128,12],[127,13,128,14],[127,15,128,16],[127,17,128,18],[127,19,128,20],[127,21,128,22],[139,48,140,57],[127,41,128,42],[127,43,128,44],[127,45,128,46],[127,47,128,48],[127,49,128,50],[127,51,128,52],[127,53,128,54],[129,41,130,42],[129,43,130,44],[129,45,130,46],[129,47,130,48],[129,49,130,50],[129,51,130,52],[129,53,130,54],[134,1,135,62],[140,24,141,25],[140,10,141,17],[137,48,138,57],[137,35,138,36],[137,8,138,17],[137,24,138,26],[129,9,130,10],[129,11,130,12],[137,40,138,47],[91,48,92,53],[79,48,80,53],[82,48,83,53],[73,48,74,53],[70,48,71,53],[103,18,104,23],[97,2,98,17],[82,1,83,17],[100,2,101,17],[82,24,83,26],[70,35,71,47],[88,18,89,23],[121,41,122,42],[121,43,122,44],[121,45,122,46],[121,47,122,48],[121,49,122,50],[121,51,122,52],[121,53,122,54],[123,41,124,42],[123,43,124,44],[123,45,124,46],[123,47,124,48]]}
[]
[]
[]
[]
[]
[]
[]
[null,"Scientific Process Documentation"]
[]
[]
[]
[]
[null,"Purpose:",null,null,null,null,null,null,null,null,null,null,null,null,null,"To collect reliable machine independent data about the molding process"]
[]
[]
[null,"Equipment Needed:",null,null,null,null,null,null,null,null,null,null,null,null,null,"Face Shield",null,null,null,null,null,"Heat resistant gloves",null,null,null,null,null,"Cotton sleeves",null,null,null,null,null,"Cleaning rag",null,null,null,null,null,"Pyrometer w/ melt & surface probes",null,null,null,null,null,"Completed gate seal worksheet",null,null,null,null,null,"Part weighing scale",null,null,null,null,null,"Calculator"]
[]
[]
[]
[null,null,"Machine units/identification"]
[]
[]
[]
[null,null,null,null,null,null,null,null,null,null,"Machine #",null,null,null,null,null,null,null,null,null,null,null,null,null,null,null,null,null,null,null,null,null,null,null,"Clamp Type"]
[]
[null,null,null,null,null,null,null,null,null,null,"Drive type",null,null,null,null,null,null,null,null,null,null,null,null,null,null,null,null,null,null,null,null,null,null,null,"Weight unit"]
[]
[null,null,null,null,null,null,null,null,null,null,"Max Pressure",null,null,null,null,null,null,null,null,null,null,null,null,null,null,null,null,null,null,null,null,null,null,null,"Temp (°F/°C)"]
[]
[null,null,null,null,null,null,null,null,null,null,"Pressure Units",null,null,null,null,null,null,null,null,null,null,null,null,null,null,null,null,null,null,null,null,null,null,null,"Hydraulic or"]
[]
[null,null,null,null,null,null,null,null,null,null,"Tonnage Unit",null,null,null,null,null,null,null,null,null,null,null,null,null,null,null,null,null,null,null,null,null,null,null,"Plastic Pressure"]
[]
[]
[null,null,"Mold & Material Identification"]
[]
[]
[]
[null,null,null,null,null,null,null,null,null,null,null,null,"Mold #",null,null,null,null,null,null,null,null,null,null,null,null,null,null,null,null,null,null,null,null,"# of Cavities"]
[]
[]
[null,null,"Type",null,null,null,null,null,null,null,null,null,null,null,null,null,null,null,null,null,null,null,"Grade",null,null,null,null,null,null,null,null,null,null,null,null,null,null,null,null,null,null,null,"Lot#"]
[]
[]
[null,null,"Molding process log"]
[]
[]
[]
[null,null,null,null,null,null,null,null,null,null,null,null,"Technician",null,null,null,null,null,null,null,null,null,null,null,null,null,null,null,null,null,null,null,null,"Date "]
[]
[]
[]
[]
[null,null,null,null,null,null,null,null,null,null,null,null,null,null,null,null,null,null,null,null,null,null,null,null,null,null,null,"Mach #",null,null,null,null,null,{"$f":"IF(U24=\"\",\"\",U24)","v":""},null,null,null,null,null,null,null,null,null,null,null,"Date",null,null,null,null,null,{"$f":"IF(AR49=\"\",\"\",AR49)","v":""}]
[]
[]
[null,null,null,null,null,null,null,null,null,null,null,null,null,null,null,null,null,null,null,null,null,null,null,null,null,null,null,"Mold #",null,null,null,null,null,{"$f":"IF(W39=\"\",\"\",W39)","v":""},null,null,null,null,null,null,null,null,null,null,null,"Technician",null,null,null,null,null,{"$f":"IF(W49=\"\",\"\",W49)","v":""}]
[]
[]
[null,"Scientific Process Documentation"]
[]
[]
[]
[]
[null,null,"# of Cavities",null,null,null,null,null,null,null,null,{"$f":"IF(AR39=\"\",\"\",AR39)","v":""},null,null,null,null,null,null,null,null,null,null,"Mat'l Type",null,null,null,null,null,null,null,null,{"$f":"IF(L42=\"\",\"\",L42)","v":""},null,null,null,null,null,null,null,null,null,null,"Mat'l Grade",null,null,null,null,null,null,null,null,{"$f":"IF(AF42=\"\",\"\",AF42)","v":""}]
[]
[]
[null,"1st Stage Injection"]
[]
[]
[null,"Transfer Pressure",null,null,null,null,null,null,null,null,null,null,null,null,null,null,null,null,null,{"$f":"IF(U30=\"%\",\"%\",IF(U30=\"bar\",\"bar\",IF(U30=\"psi\",\"psi\",IF(U30=\"kgf/c\",\"kgf/c\",IF(U30=\"MPa\",\"MPa\",\"psi\")))))","v":"psi"},null,null,{"$f":"IF(U30=\"\",\"bar\",\"\")","v":"bar"},null,null,{"$f":"IF(U30=\"\",\"%\",\"\")","v":"%"},null,{"$f":"IF(U30=\"\",\"kgf/c\",\"\")","v":"kgf/c"},null,null,{"$f":"IF(U30=\"\",\"MPa\",\"\")","v":"MPa"},null,null,null,null,"1st Stage Part Weight",null,null,null,null,null,null,null,null,null,null,null,null,null,null,null,null,null,null,{"$f":"IF(AS26=\"g\",\"g\",IF(AS26=\"lb\",\"lb\",IF(AS26=\"oz\",\"oz\",\"g\")))","v":"g"},null,null,{"$f":"IF(AS26=\"\",\"oz\",\"\")","v":"oz"},null,null,{"$f":"IF(AS26=\"\",\"lb\",\"\")","v":"lb"}]
[]
[]
[null,"Air Shot Pressure",null,null,null,null,null,null,null,null,null,null,null,null,null,null,null,null,null,{"$f":"IF(U30=\"%\",\"%\",IF(U30=\"bar\",\"bar\",IF(U30=\"psi\",\"psi\",IF(U30=\"kgf/c\",\"kgf/c\",IF(U30=\"MPa\",\"MPa\",\"psi\")))))","v":"psi"},null,null,{"$f":"IF(U30=\"\",\"bar\",\"\")","v":"bar"},null,null,{"$f":"IF(U30=\"\",\"%\",\"\")","v":"%"},null,{"$f":"IF(U30=\"\",\"kgf/c\",\"\")","v":"kgf/c"},null,null,{"$f":"IF(U30=\"\",\"MPa\",\"\")","v":"MPa"},null,null,null,null,null,null,null,null,"1st Stage Time",null,null,null,null,null,null,null,null,null,null,null,null,null,null,"s"]
[]
[]
[null,"2nd Stage Packing"]
[]
[]
[null,"Packing Pressure",null,null,null,null,null,null,null,null,null,null,null,null,null,null,null,null,null,{"$f":"IF(AS30=\"%\",\"%\",IF(AS30=\"bar\",\"bar\",IF(AS30=\"psi\",\"psi\",IF(AS30=\"kgf/c\",\"kgf/c\",IF(AS30=\"MPa\",\"MPa\",\"psi\")))))","v":"psi"},null,null,{"$f":"IF(AS30=\"\",\"bar\",\"\")","v":"bar"},null,null,{"$f":"IF(AS30=\"\",\"%\",\"\")","v":"%"},null,{"$f":"IF(AS30=\"\",\"kgf/c\",\"\")","v":"kgf/c"},null,null,{"$f":"IF(AS30=\"\",\"MPa\",\"\")","v":"MPa"},null,null,null,null,null,"Full Part Weight",null,null,null,null,null,null,null,null,null,null,null,null,null,null,null,null,null,{"$f":"IF(AS26=\"g\",\"g\",IF(AS26=\"lb\",\"lb\",IF(AS26=\"oz\",\"oz\",\"g\")))","v":"g"},null,null,{"$f":"IF(AS26=\"\",\"oz\",\"\")","v":"oz"},null,null,{"$f":"IF(AS26=\"\",\"lb\",\"\")","v":"lb"}]
[]
[]
[null,"Gate Seal Time is Between",null,null,null,null,null,null,null,null,null,null,null,null,null,null,null,null,null,null,null,null,null,null,"and",null,null,null,null,null,null,null,null,"s",null,null,null,null,null,"Packing Time",null,null,null,null,null,null,null,null,null,null,null,null,null,null,"s"]
[]
[]
[null,"Barrel & Recovery settings"]
[]
[]
[null,null,null,null,null,null,null,"Back Pressure",null,null,null,null,null,null,null,null,null,null,null,null,null,null,null,null,{"$f":"IF(U30=\"%\",\"%\",IF(U30=\"bar\",\"bar\",IF(U30=\"psi\",\"psi\",IF(U30=\"kgf/c\",\"kgf/c\",IF(U30=\"MPa\",\"MPa\",\"psi\")))))","v":"psi"},null,null,{"$f":"IF(U30=\"\",\"bar\",\"\")","v":"bar"},null,null,{"$f":"IF(U30=\"\",\"%\",\"\")","v":"%"},null,{"$f":"IF(U30=\"\",\"kgf/c\",\"\")","v":"kgf/c"},null,null,{"$f":"IF(U30=\"\",\"MPa\",\"\")","v":"MPa"}]
[]
[]
[null,null,null,null,null,null,"Melt Temperature",null,null,null,null,null,null,null,null,null,null,null,null,null,null,null,null,null,{"$f":"IF(AS28=\"\",\"°C\",IF(AS28=\"°F\",\"°F\",IF(AS28=\"°C\",\"°C\",\"\")))","v":"°C"},null,{"$f":"IF(AS28=\"\",\"°F\",\"\")","v":"°F"},null,null,null,null,null,null,null,null,null,"Recovery Time",null,null,null,null,null,null,null,null,null,null,null,null,null,null,null,null,null,"s"]
[]
[]
[null,"Part Cooling"]
[]
[]
[null,null,"Core 'B' Side Coolant IN",null,null,null,null,null,null,null,null,null,null,null,null,null,null,null,null,null,null,null,null,null,{"$f":"IF(AS28=\"\",\"°C\",IF(AS28=\"°F\",\"°F\",IF(AS28=\"°C\",\"°C\",\"\")))","v":"°C"},null,{"$f":"IF(AS28=\"\",\"°F\",\"\")","v":"°F"},null,null,null,null,null,null,null,null,null,"Cavity Coolant IN",null,null,null,null,null,null,null,null,null,null,null,null,null,null,null,null,null,{"$f":"IF(AS28=\"\",\"°C\",IF(AS28=\"°F\",\"°F\",IF(AS28=\"°C\",\"°C\",\"\")))","v":"°C"},null,{"$f":"IF(AS28=\"\",\"°F\",\"\")","v":"°F"}]
[]
[]
[null,null,"Core 'A' Side Coolant OUT",null,null,null,null,null,null,null,null,null,null,null,null,null,null,null,null,null,null,null,null,null,{"$f":"IF(AS28=\"\",\"°C\",IF(AS28=\"°F\",\"°F\",IF(AS28=\"°C\",\"°C\",\"\")))","v":"°C"},null,{"$f":"IF(AS28=\"\",\"°F\",\"\")","v":"°F"},null,null,null,null,null,null,null,null,null,"Cavity Coolant OUT",null,null,null,null,null,null,null,null,null,null,null,null,null,null,null,null,null,{"$f":"IF(AS28=\"\",\"°C\",IF(AS28=\"°F\",\"°F\",IF(AS28=\"°C\",\"°C\",\"\")))","v":"°C"},null,{"$f":"IF(AS28=\"\",\"°F\",\"\")","v":"°F"}]
[]
[]
[null,null,null,null,null,null,null,null,null,null,"Cooling Time",null,null,null,null,null,null,null,null,null,null,null,null,null,"s"]
[]
[]
[null,"Mold surface temperature mapping"]
[]
[]
[null,null,null,null,null,null,null,null,null,null,null,null,null,null,null,"Core 'B' Side 1",null,null,null,null,null,null,null,null,null,null,null,"Core 'B' Side 2",null,null,null,null,null,null,null,null,null,null,null,"Cavity 'A' Side 1",null,null,null,null,null,null,null,null,null,null,null,"Cavity 'A' Side 2"]
[]
[null,"Temp measured",null,null,null,null,null,null,null,null,null,null,null,null,null,null,null,null,null,null,null,null,{"$f":"IF(AS28=\"\",\"°C\",IF(AS28=\"°F\",\"°F\",IF(AS28=\"°C\",\"°C\",\"\")))","v":"°C"},null,{"$f":"IF(AS28=\"\",\"°F\",\"\")","v":"°F"},null,null,null,null,null,null,null,null,null,{"$f":"IF(AS28=\"\",\"°C\",IF(AS28=\"°F\",\"°F\",IF(AS28=\"°C\",\"°C\",\"\")))","v":"°C"},null,{"$f":"IF(AS28=\"\",\"°F\",\"\")","v":"°F"},null,null,null,null,null,null,null,null,null,{"$f":"IF(AS28=\"\",\"°C\",IF(AS28=\"°F\",\"°F\",IF(AS28=\"°C\",\"°C\",\"\")))","v":"°C"},null,{"$f":"IF(AS28=\"\",\"°F\",\"\")","v":"°F"},null,null,null,null,null,null,null,null,null,{"$f":"IF(AS28=\"\",\"°C\",IF(AS28=\"°F\",\"°F\",IF(AS28=\"°C\",\"°C\",\"\")))","v":"°C"},null,{"$f":"IF(AS28=\"\",\"°F\",\"\")","v":"°F"}]
[]
[null,"Comments"]
[]
[]
[null,null,null,null,null,"Basic Core 'B' Side Sketch",null,null,null,null,null,null,null,null,null,null,null,null,null,null,null,null,null,null,null,null,null,null,null,null,null,null,null,null,null,null,null,"Basic Cavity 'A' Side Sketch"]
[]
[]
[null,null,null,null,"Operator Side",null,null,null,null,null,null,null,null,null,null,null,null,null,null,null,null,null,null,null,null,null,null,null,null,null,null,null,null,null,null,null,null,null,null,null,null,null,null,null,null,null,null,null,null,null,null,null,null,null,null,null,null,null,"Operator Side"]
[]
[]
[]
[]
[]
[]
[]
[]
[]
[]
[]
[]
[]
[]
[null,"Mold Clamping"]
[]
[]
[null,null,null,null,null,null,null,null,"Clamping Force",null,null,null,null,null,null,null,null,null,null,null,null,null,null,null,{"$f":"IF(U32=\"Ton\",\"Ton\",IF(U32=\"KPA\",\"KPA\",IF(U32=\"%\",\"%\",IF(U32=\"Tonne\",\"Tonne\",\"Ton\"))))","v":"Ton"},null,null,{"$f":"IF(U32=\"\",\"Tonne\",\"\")","v":"Tonne"},null,null,null,null,{"$f":"IF(U32=\"\",\"KPA\",\"\")","v":"KPA"},null,null,{"$f":"IF(U32=\"\",\"%\",\"\")","v":"%"},null,null,null,null,"Clamp Type",null,null,null,null,null,null,null,{"$f":"IF(AS24=\"\",\"\",AS24)","v":""}]
[]
[null,null,null,null,null,null,null,null,null,null,null,null,null,null,null,null,null,null,null,null,null,null,null,null,null,null,null,null,null,null,null,null,null,null,null,null,null,null,null,null,null,null,null,null,null,null,null,null,"(Toggle or Cylinder)"]
[null,null,null,null,null,null,null,null,null,null,"Cycle Time",null,null,null,null,null,null,null,null,null,null,null,null,null,"s"]

{"sheet":"1st Stage Progression","index":4,"n_rows":41,"n_cols":49,"rows_kept":41,"cut":false,"hidden":false,"merged":[[42,2,61,21],[42,22,61,41],[42,42,61,61],[40,2,41,16],[40,17,41,31],[40,32,41,46],[40,47,41,61],[1,1,5,24],[7,1,10,62],[12,1,13,14],[12,15,13,62],[15,1,17,14],[15,15,17,20],[15,21,17,26],[15,27,17,32],[15,33,17,38],[15,45,17,50],[15,51,17,56],[15,57,17,62],[15,39,17,44],[37,1,38,62],[28,1,29,62],[22,1,23,62],[25,44,26,45],[25,46,26,47],[25,48,26,49],[34,19,35,36],[34,37,35,43],[34,44,35,45],[31,19,32,36],[31,37,32,43],[25,37,26,43],[19,1,20,62],[31,44,32,45],[31,46,32,47],[31,48,32,49],[25,12,26,36]]}
[]
[]
[]
[]
[]
[]
[]
[null,"1st Stage - Fill Progression "]
[]
[]
[]
[]
[null,"Purpose:",null,null,null,null,null,null,null,null,null,null,null,null,null,"Observe the mold filling pattern & determine when the mold cavity is 100% full"]
[]
[]
[null,"Equipment Needed:",null,null,null,null,null,null,null,null,null,null,null,null,null,"Safety Glasses",null,null,null,null,null,"Part Weighing Scale",null,null,null,null,null,"Permanent Marker"]
[]
[]
[]
[null,"*Before continuing; make sure the mold can run short shots safely without damaging the mold"]
[]
[]
[null,"Define the units being used"]
[]
[]
[null,null,null,null,null,null,null,null,null,null,null,null,"What weight unit is being used?",null,null,null,null,null,null,null,null,null,null,null,null,null,null,null,null,null,null,null,null,null,null,null,null,null,null,null,null,null,null,null,{"$f":"IF(#REF!=\"lb\",\"lb\",IF(#REF!=\"oz\",\"oz\",IF(#REF!=\"g\",\"g\",\"g\")))","v":{"$error":"#REF!"}},null,{"$f":"IF(#REF!=\"\",\"lb\",\"\")","v":{"$error":"#REF!"}},null,{"$f":"IF(#REF!=\"\",\"oz\",\"\")","v":{"$error":"#REF!"}}]
[]
[]
[null,"Short shot progression results"]
[]
[]
[null,null,null,null,null,null,null,null,null,null,null,null,null,null,null,null,null,null,null,"Weight of 100% Full Part",null,null,null,null,null,null,null,null,null,null,null,null,null,null,null,null,null,null,null,null,null,null,null,null,{"$f":"IF(AL26=\"lb\",\"lb\",IF(AL26=\"oz\",\"oz\",IF(AL26=\"g\",\"g\",\"g\")))","v":"g"},null,{"$f":"IF(AL26=\"\",\"lb\",\"\")","v":"lb"},null,{"$f":"IF(AL26=\"\",\"oz\",\"\")","v":"oz"}]
[]
[]
[null,null,null,null,null,null,null,null,null,null,null,null,null,null,null,null,null,null,null,"1st Stage Injection Time",null,null,null,null,null,null,null,null,null,null,null,null,null,null,null,null,null,null,null,null,null,null,null,null,"s"]
[]
[]
[null,"Pictures of short shot progression (optional)"]
[]
[]
[null,null,"Shortest",null,null,null,null,null,null,null,null,null,null,null,null,null,null,null,null,null,null,null,null,null,null,null,null,null,null,null,null,null,null,null,null,null,null,null,null,null,null,null,null,null,null,null,null,"Fullest"]

{"sheet":"1st Stage Inj. Speed","index":5,"n_rows":63,"n_cols":59,"rows_kept":63,"cut":false,"hidden":false,"merged":[[1,1,5,24],[7,1,10,61],[12,1,13,14],[12,15,13,61],[15,1,17,14],[15,15,17,20],[15,21,17,26],[15,27,17,32],[22,1,23,61],[19,1,20,61],[25,10,26,31],[25,32,26,39],[25,40,26,42],[25,43,26,45],[25,46,26,48],[37,2,38,5],[37,6,38,7],[32,52,33,60],[28,10,29,31],[28,32,29,39],[28,40,29,43],[28,44,29,47],[28,48,29,50],[28,51,29,53],[34,58,35,60],[34,52,35,54],[34,55,35,57],[32,8,33,17],[32,19,33,28],[32,30,33,39],[34,30,35,39],[37,53,38,59],[37,42,38,49],[34,19,35,28],[32,41,33,50],[34,41,35,50],[34,8,35,17],[59,1,60,61],[39,53,40,59],[41,53,42,59],[43,53,44,59],[49,42,50,49],[51,42,52,49],[53,42,54,49],[55,42,56,49],[51,6,52,7],[43,42,44,49],[45,42,46,49],[47,42,48,49],[45,53,46,59],[47,53,48,59],[45,6,46,7],[47,6,48,7],[39,42,40,49],[41,42,42,49],[39,31,40,38],[41,31,42,38],[39,6,40,7],[41,6,42,7],[43,6,44,7],[51,31,52,38],[45,20,46,27],[47,20,48,27],[37,9,38,16],[39,9,40,16],[41,9,42,16],[43,9,44,16],[45,9,46,16],[47,9,48,16],[37,31,38,38],[37,20,38,27],[39,20,40,27],[41,20,42,27],[43,20,44,27],[45,31,46,38],[47,31,48,38],[43,31,44,38],[62,3,63,41],[62,42,63,49],[62,50,63,53],[62,54,63,57],[62,58,63,60],[49,53,50,59],[51,53,52,59],[53,53,54,59],[55,53,56,59],[49,20,50,27],[51,20,52,27],[53,20,54,27],[55,20,56,27],[53,6,54,7],[55,6,56,7],[55,2,56,5],[53,31,54,38],[53,9,54,16],[55,9,56,16],[51,9,52,16],[49,6,50,7],[49,9,50,16],[55,31,56,38],[49,31,50,38]]}
[]
[]
[]
[]
[]
[]
[]
[null,"1st Stage - Injection Speed"]
[]
[]
[]
[]
[null,"Purpose:",null,null,null,null,null,null,null,null,null,null,null,null,null,"Establish an acceptable 1st Stage Injection Speed"]
[]
[]
[null,"Equipment Needed:",null,null,null,null,null,null,null,null,null,null,null,null,null,"Safety Glasses",null,null,null,null,null,"Calculator",null,null,null,null,null,"Part Weighing Scale"]
[]
[]
[]
[null,"*Before continuing; make sure the mold can run short shots safely without damaging the mold"]
[]
[]
[null,"Define the units being used"]
[]
[]
[null,null,null,null,null,null,null,null,null,null,"What weight units are being used?",null,null,null,null,null,null,null,null,null,null,null,null,null,null,null,null,null,null,null,null,null,null,null,null,null,null,null,null,null,{"$f":"IF(AG26=\"\",\"g\",\"\")","v":"g"},null,null,{"$f":"IF(AG26=\"\",\"lb\",\"\")","v":"lb"},null,null,{"$f":"IF(AG26=\"\",\"oz\",\"\")","v":"oz"}]
[]
[]
[null,null,null,null,null,null,null,null,null,null,"1st stage injection speed units used?",null,null,null,null,null,null,null,null,null,null,null,null,null,null,null,null,null,null,null,null,null,null,null,null,null,null,null,null,null,{"$f":"IF(AG29=\"\",\"mm/s\",\"\")","v":"mm/s"},null,null,null,{"$f":"IF(AG29=\"\",\"in/s\",\"\")","v":"in/s"},null,null,null,{"$f":"IF(AG29=\"\",\"cm/s\",\"\")","v":"cm/s"},null,null,{"$f":"IF(AG29=\"\",\"%\",\"\")","v":"%"}]
[]
[]
[]
[null,null,null,null,null,null,null,null,"1st Stage Speed",null,null,null,null,null,null,null,null,null,null,"1st Stage Time",null,null,null,null,null,null,null,null,null,null,"Total shot weight",null,null,null,null,null,null,null,null,null,null,"Short Shot Quality",null,null,null,null,null,null,null,null,null,null,"Injection rate"]
[]
[null,null,null,null,null,null,null,null,{"$f":"IF(AG29=\"mm/s\",\"(mm/s)\",IF(AG29=\"in/s\",\"(in/s)\",IF(AG29=\"cm/s\",\"(cm/s)\",IF(AG29=\"%\",\"(%)\",\"\"))))","v":""},null,null,null,null,null,null,null,null,null,null,"(s)",null,null,null,null,null,null,null,null,null,null,{"$f":"IF(AG26=\"g\",\"(g)\",IF(AG26=\"lb\",\"(lb)\",IF(AG26=\"oz\",\"(oz)\",\"\")))","v":""},null,null,null,null,null,null,null,null,null,null,"Good ✓- Bad ✖",null,null,null,null,null,null,null,null,null,null,{"$f":"IF(AG26=\"\",\"(g/s)\",\"\")","v":"(g/s)"},null,null,{"$f":"IF(AG26=\"g\",\"(g/s)\",IF(AG26=\"lb\",\"(lb/s)\",IF(AG26=\"oz\",\"(oz/s)\",\"(oz/s)\")))","v":"(oz/s)"},null,null,{"$f":"IF(AG26=\"\",\"(lb/s)\",\"\")","v":"(lb/s)"}]
[]
[]
[null,null,"Slow",null,null,null,1,null,null,null,null,null,null,null,null,null,null,null,null,null,null,null,null,null,null,null,null,null,null,null,null,null,null,null,null,null,null,null,null,null,null,null,null,null,null,null,null,null,null,null,null,null,null,{"$f":"IF(AF38=\"\",\"\",AF38/U38)","v":""}]
[]
[null,null,null,null,null,null,2,null,null,null,null,null,null,null,null,null,null,null,null,null,null,null,null,null,null,null,null,null,null,null,null,null,null,null,null,null,null,null,null,null,null,null,null,null,null,null,null,null,null,null,null,null,null,{"$f":"IF(AF40=\"\",\"\",AF40/U40)","v":""}]
[]
[null,null,null,null,null,null,3,null,null,null,null,null,null,null,null,null,null,null,null,null,null,null,null,null,null,null,null,null,null,null,null,null,null,null,null,null,null,null,null,null,null,null,null,null,null,null,null,null,null,null,null,null,null,{"$f":"IF(AF42=\"\",\"\",AF42/U42)","v":""}]
[]
[null,null,null,null,null,null,4,null,null,null,null,null,null,null,null,null,null,null,null,null,null,null,null,null,null,null,null,null,null,null,null,null,null,null,null,null,null,null,null,null,null,null,null,null,null,null,null,null,null,null,null,null,null,{"$f":"IF(AF44=\"\",\"\",AF44/U44)","v":""}]
[]
[null,null,null,null,null,null,5,null,null,null,null,null,null,null,null,null,null,null,null,null,null,null,null,null,null,null,null,null,null,null,null,null,null,null,null,null,null,null,null,null,null,null,null,null,null,null,null,null,null,null,null,null,null,{"$f":"IF(AF46=\"\",\"\",AF46/U46)","v":""}]
[]
[null,null,null,null,null,null,6,null,null,null,null,null,null,null,null,null,null,null,null,null,null,null,null,null,null,null,null,null,null,null,null,null,null,null,null,null,null,null,null,null,null,null,null,null,null,null,null,null,null,null,null,null,null,{"$f":"IF(AF48=\"\",\"\",AF48/U48)","v":""}]
[]
[null,null,null,null,null,null,7,null,null,null,null,null,null,null,null,null,null,null,null,null,null,null,null,null,null,null,null,null,null,null,null,null,null,null,null,null,null,null,null,null,null,null,null,null,null,null,null,null,null,null,null,null,null,{"$f":"IF(AF50=\"\",\"\",AF50/U50)","v":""}]
[]
[null,null,null,null,null,null,8,null,null,null,null,null,null,null,null,null,null,null,null,null,null,null,null,null,null,null,null,null,null,null,null,null,null,null,null,null,null,null,null,null,null,null,null,null,null,null,null,null,null,null,null,null,null,{"$f":"IF(AF52=\"\",\"\",AF52/U52)","v":""}]
[]
[null,null,null,null,null,null,9,null,null,null,null,null,null,null,null,null,null,null,null,null,null,null,null,null,null,null,null,null,null,null,null,null,null,null,null,null,null,null,null,null,null,null,null,null,null,null,null,null,null,null,null,null,null,{"$f":"IF(AF54=\"\",\"\",AF54/U54)","v":""}]
[]
[null,null,"Fast",null,null,null,10,null,null,null,null,null,null,null,null,null,null,null,null,null,null,null,null,null,null,null,null,null,null,null,null,null,null,null,null,null,null,null,null,null,null,null,null,null,null,null,null,null,null,null,null,null,null,{"$f":"IF(AF56=\"\",\"\",AF56/U56)","v":""}]
[]
[]
[]
[null,"Results of the 1st stage injection speed study"]
[]
[]
[null,null,null,"What is the fastest injection rate that yeilds acceptable parts?",null,null,null,null,null,null,null,null,null,null,null,null,null,null,null,null,null,null,null,null,null,null,null,null,null,null,null,null,null,null,null,null,null,null,null,null,null,null,null,null,null,null,null,null,null,null,{"$f":"IF(AG26=\"g\",\"g/s\",IF(AG26=\"lb\",\"lb/s\",IF(AG26=\"oz\",\"oz/s\",\"g/s\")))","v":"g/s"},null,null,null,{"$f":"IF(AG26=\"\",\"oz/s\",\"\")","v":"oz/s"},null,null,null,{"$f":"IF(AG26=\"\",\"lb/s\",\"\")","v":"lb/s"}]

{"sheet":"1st Stage Rheology Curve","index":6,"n_rows":124,"n_cols":58,"rows_kept":124,"cut":false,"hidden":false,"merged":[[42,11,43,19],[42,20,43,28],[42,29,43,37],[42,47,43,55],[42,38,43,46],[59,12,60,18],[61,12,62,18],[63,12,64,18],[44,47,45,55],[44,38,45,46],[47,48,48,54],[49,48,50,54],[47,39,48,45],[49,39,50,45],[53,21,54,27],[55,21,56,27],[57,21,58,27],[53,30,54,36],[51,48,52,54],[44,20,45,28],[44,11,45,19],[53,48,54,54],[51,39,52,45],[53,39,54,45],[25,43,26,45],[25,46,26,47],[25,48,26,50],[25,51,26,53],[25,32,26,39],[28,10,29,31],[28,32,29,39],[28,40,29,43],[25,10,26,31],[53,12,54,18],[51,30,52,36],[1,1,5,24],[7,1,10,62],[12,1,13,14],[12,15,13,62],[15,1,17,14],[15,15,17,20],[15,21,17,26],[19,1,20,62],[38,1,39,62],[28,44,29,47],[28,48,29,50],[28,51,29,53],[25,40,26,42],[57,12,58,18],[55,12,56,18],[22,1,23,62],[44,29,45,33],[44,34,45,37],[65,9,66,11],[65,12,66,18],[47,21,48,27],[49,21,50,27],[51,21,52,27],[47,12,48,18],[49,12,50,18],[47,30,48,36],[49,30,50,36],[55,30,56,36],[57,30,58,36],[59,21,60,27],[61,21,62,27],[63,21,64,27],[47,5,48,8],[51,12,52,18],[65,5,66,8],[47,9,48,11],[49,9,50,11],[51,9,52,11],[53,9,54,11],[55,9,56,11],[57,9,58,11],[59,9,60,11],[61,9,62,11],[63,9,64,11],[55,39,56,45],[57,39,58,45],[59,48,60,54],[76,27,76,30],[71,27,71,30],[71,31,71,35],[65,30,66,36],[59,30,60,36],[61,30,62,36],[63,30,64,36],[72,31,72,35],[73,31,73,35],[74,31,74,35],[75,31,75,35],[76,31,76,35],[61,48,62,54],[63,48,64,54],[65,48,66,54],[59,39,60,45],[61,39,62,45],[65,39,66,45],[63,39,64,45],[65,21,66,27],[33,1,36,62],[123,1,124,62],[77,31,77,35],[78,31,78,35],[79,31,79,35],[80,31,80,35],[120,38,121,45],[120,46,121,49],[120,50,121,53],[120,54,121,56],[120,57,121,59],[120,4,121,37],[77,27,77,30],[78,27,78,30],[79,27,79,30],[80,27,80,30],[81,27,81,30],[81,31,81,35],[72,27,72,30],[73,27,73,30],[74,27,74,30],[75,27,75,30],[55,48,56,54],[57,48,58,54]]}
[]
[]
[]
[]
[]
[]
[]
[null,"1st Stage - Rheology Curve"]
[]
[]
[]
[]
[null,"Purpose:",null,null,null,null,null,null,null,null,null,null,null,null,null,"Generate a Rheology Curve and determine the optimal 1st Stage Injection Time"]
[]
[]
[null,"Equipment Needed:",null,null,null,null,null,null,null,null,null,null,null,null,null,"Safety Glasses",null,null,null,null,null,"Calculator"]
[]
[]
[]
[null,"*Before continuing; make sure the mold can run short shots safely without damaging the mold"]
[]
[]
[null,"Define the machine and machine units being used"]
[]
[]
[null,null,null,null,null,null,null,null,null,null,"Machine injection pressure units?",null,null,null,null,null,null,null,null,null,null,null,null,null,null,null,null,null,null,null,null,null,null,null,null,null,null,null,null,null,{"$f":"IF(AG26=\"\",\"psi\",\"\")","v":"psi"},null,null,{"$f":"IF(AG26=\"\",\"bar\",\"\")","v":"bar"},null,null,{"$f":"IF(AG26=\"\",\"%\",\"\")","v":"%"},null,{"$f":"IF(AG26=\"\",\"kgf/c\",\"\")","v":"kgf/c"},null,null,{"$f":"IF(AG26=\"\",\"MPa\",\"\")","v":"MPa"}]
[]
[]
[null,null,null,null,null,null,null,null,null,null,"1st stage injection speed units used?",null,null,null,null,null,null,null,null,null,null,null,null,null,null,null,null,null,null,null,null,null,null,null,null,null,null,null,null,null,{"$f":"IF(AG29=\"\",\"mm/s\",\"\")","v":"mm/s"},null,null,null,{"$f":"IF(AG29=\"\",\"in/s\",\"\")","v":"in/s"},null,null,null,{"$f":"IF(AG29=\"\",\"cm/s\",\"\")","v":"cm/s"},null,null,{"$f":"IF(AG29=\"\",\"%\",\"\")","v":"%"}]
[]
[]
[]
[]
[null,"1st Stage - Rheology Curve"]
[]
[]
[]
[]
[null,"1st Stage Rheology Curve Data"]
[]
[]
[]
[null,null,null,null,null,null,null,null,null,null,null,"1st Stage Speed",null,null,null,null,null,null,null,null,"1st Stage Time",null,null,null,null,null,null,null,null,"1st Stage Tranfer",null,null,null,null,null,null,null,null,"Shear rate",null,null,null,null,null,null,null,null,"Relative viscosity"]
[]
[null,null,null,null,null,null,null,null,null,null,null,{"$f":"IF(AG29=\"mm/s\",\"(mm/s)\",IF(AG29=\"in/s\",\"(in/s)\",IF(AG29=\"cm/s\",\"(cm/s)\",IF(AG29=\"%\",\"(%)\",\"\"))))","v":""},null,null,null,null,null,null,null,null,"(s)",null,null,null,null,null,null,null,null,"Pressure",null,null,null,null,{"$f":"IF(AG26=\"psi\",\"(psi)\",IF(AG26=\"bar\",\"(bar)\",IF(AG26=\"%\",\"(%)\",IF(AG26=\"kgf/c\",\"(kgf/c)\",IF(AG26=\"MPa\",\"(MPa)\",\"\")))))","v":""},null,null,null,"(= 1/time)",null,null,null,null,null,null,null,null,"(= pressure*time)"]
[]
[]
[null,null,null,null,null,"Fast",null,null,null,1,null,null,null,null,null,null,null,null,null,null,null,null,null,null,null,null,null,null,null,null,null,null,null,null,null,null,null,null,null,{"$f":"IF(V48=\"\",\"\",1/V48)","v":""},null,null,null,null,null,null,null,null,{"$f":"IF(AE48=\"\",\"\",AE48*V48)","v":""}]
[]
[null,null,null,null,null,null,null,null,null,2,null,null,null,null,null,null,null,null,null,null,null,null,null,null,null,null,null,null,null,null,null,null,null,null,null,null,null,null,null,{"$f":"IF(V50=\"\",\"\",1/V50)","v":""},null,null,null,null,null,null,null,null,{"$f":"IF(AE50=\"\",\"\",AE50*V50)","v":""}]
[]
[null,null,null,null,null,null,null,null,null,3,null,null,null,null,null,null,null,null,null,null,null,null,null,null,null,null,null,null,null,null,null,null,null,null,null,null,null,null,null,{"$f":"IF(V52=\"\",\"\",1/V52)","v":""},null,null,null,null,null,null,null,null,{"$f":"IF(AE52=\"\",\"\",AE52*V52)","v":""}]
[]
[null,null,null,null,null,null,null,null,null,4,null,null,null,null,null,null,null,null,null,null,null,null,null,null,null,null,null,null,null,null,null,null,null,null,null,null,null,null,null,{"$f":"IF(V54=\"\",\"\",1/V54)","v":""},null,null,null,null,null,null,null,null,{"$f":"IF(AE54=\"\",\"\",AE54*V54)","v":""}]
[]
[null,null,null,null,null,null,null,null,null,5,null,null,null,null,null,null,null,null,null,null,null,null,null,null,null,null,null,null,null,null,null,null,null,null,null,null,null,null,null,{"$f":"IF(V56=\"\",\"\",1/V56)","v":""},null,null,null,null,null,null,null,null,{"$f":"IF(AE56=\"\",\"\",AE56*V56)","v":""}]
[]
[null,null,null,null,null,null,null,null,null,6,null,null,null,null,null,null,null,null,null,null,null,null,null,null,null,null,null,null,null,null,null,null,null,null,null,null,null,null,null,{"$f":"IF(V58=\"\",\"\",1/V58)","v":""},null,null,null,null,null,null,null,null,{"$f":"IF(AE58=\"\",\"\",AE58*V58)","v":""}]
[]
[null,null,null,null,null,null,null,null,null,7,null,null,null,null,null,null,null,null,null,null,null,null,null,null,null,null,null,null,null,null,null,null,null,null,null,null,null,null,null,{"$f":"IF(V60=\"\",\"\",1/V60)","v":""},null,null,null,null,null,null,null,null,{"$f":"IF(AE60=\"\",\"\",AE60*V60)","v":""}]
[]
[null,null,null,null,null,null,null,null,null,8,null,null,null,null,null,null,null,null,null,null,null,null,null,null,null,null,null,null,null,null,null,null,null,null,null,null,null,null,null,{"$f":"IF(V62=\"\",\"\",1/V62)","v":""},null,null,null,null,null,null,null,null,{"$f":"IF(AE62=\"\",\"\",AE62*V62)","v":""}]
[]
[null,null,null,null,null,null,null,null,null,9,null,null,null,null,null,null,null,null,null,null,null,null,null,null,null,null,null,null,null,null,null,null,null,null,null,null,null,null,null,{"$f":"IF(V64=\"\",\"\",1/V64)","v":""},null,null,null,null,null,null,null,null,{"$f":"IF(AE64=\"\",\"\",AE64*V64)","v":""}]
[]
[null,null,null,null,null,"Slow",null,null,null,10,null,null,null,null,null,null,null,null,null,null,null,null,null,null,null,null,null,null,null,null,null,null,null,null,null,null,null,null,null,{"$f":"IF(V66=\"\",\"\",1/V66)","v":""},null,null,null,null,null,null,null,null,{"$f":"IF(AE66=\"\",\"\",AE66*V66)","v":""}]
[]
[]
[]
[]
[]
[null,null,null,null,null,null,null,null,null,null,null,null,null,null,null,null,null,null,null,null,null,null,null,null,null,null,null,"shear rate",null,null,null,"relative viscosity"]
[null,null,null,null,null,null,null,null,null,null,null,null,null,null,null,null,null,null,null,null,null,null,null,null,null,null,null,{"$f":"AN48","v":""},null,null,null,{"$f":"AW48","v":""}]
[null,null,null,null,null,null,null,null,null,null,null,null,null,null,null,null,null,null,null,null,null,null,null,null,null,null,null,{"$f":"AN50","v":""},null,null,null,{"$f":"AW50","v":""}]
[null,null,null,null,null,null,null,null,null,null,null,null,null,null,null,null,null,null,null,null,null,null,null,null,null,null,null,{"$f":"AN52","v":""},null,null,null,{"$f":"AW52","v":""}]
[null,null,null,null,null,null,null,null,null,null,null,null,null,null,null,null,null,null,null,null,null,null,null,null,null,null,null,{"$f":"AN54","v":""},null,null,null,{"$f":"AW54","v":""}]
[null,null,null,null,null,null,null,null,null,null,null,null,null,null,null,null,null,null,null,null,null,null,null,null,null,null,null,{"$f":"AN56","v":""},null,null,null,{"$f":"AW56","v":""}]
[null,null,null,null,null,null,null,null,null,null,null,null,null,null,null,null,null,null,null,null,null,null,null,null,null,null,null,{"$f":"AN58","v":""},null,null,null,{"$f":"AW58","v":""}]
[null,null,null,null,null,null,null,null,null,null,null,null,null,null,null,null,null,null,null,null,null,null,null,null,null,null,null,{"$f":"AN60","v":""},null,null,null,{"$f":"AW60","v":""}]
[null,null,null,null,null,null,null,null,null,null,null,null,null,null,null,null,null,null,null,null,null,null,null,null,null,null,null,{"$f":"AN62","v":""},null,null,null,{"$f":"AW62","v":""}]
[null,null,null,null,null,null,null,null,null,null,null,null,null,null,null,null,null,null,null,null,null,null,null,null,null,null,null,{"$f":"AN64","v":""},null,null,null,{"$f":"AW64","v":""}]
[null,null,null,null,null,null,null,null,null,null,null,null,null,null,null,null,null,null,null,null,null,null,null,null,null,null,null,{"$f":"AN66","v":""},null,null,null,{"$f":"AW66","v":""}]
[]
[]
[]
[]
[]
[]
[]
[]
[]
[]
[]
[]
[]
[]
[]
[]
[]
[]
[]
[]
[]
[]
[]
[]
[]
[]
[]
[]
[]
[]
[]
[]
[]
[]
[]
[]
[]
[]
[null,null,null,null,"Which injection speed is being chosen for the process?",null,null,null,null,null,null,null,null,null,null,null,null,null,null,null,null,null,null,null,null,null,null,null,null,null,null,null,null,null,null,null,null,null,null,null,null,null,null,null,null,null,{"$f":"IF(AG29=\"mm/s\",\"mm/s\",IF(AG29=\"in/s\",\"in/s\",IF(AG29=\"cm/s\",\"cm/s\",IF(AG29=\"%\",\"%\",\"mm/s\"))))","v":"mm/s"},null,null,null,{"$f":"IF(AG29=\"\",\"in/s\",\"\")","v":"in/s"},null,null,null,{"$f":"IF(AG29=\"\",\"cm/s\",\"\")","v":"cm/s"},null,null,{"$f":"IF(AG29=\"\",\"%\",\"\")","v":"%"}]
[]
[]
[null,"*Before continuing; verify injection speed chosen doesn’t exhibit a \"pressure limited\" situation."]

{"sheet":"1st Stage Imbalance","index":7,"n_rows":108,"n_cols":61,"rows_kept":108,"cut":false,"hidden":false,"merged":[[42,57,43,60],[44,57,45,60],[104,1,105,43],[107,1,108,43],[107,57,108,59],[27,1,28,61],[30,41,31,54],[30,55,31,61],[30,1,31,22],[30,23,31,30],[30,31,31,33],[30,34,31,36],[30,37,31,39],[85,40,86,47],[88,41,89,46],[99,2,100,10],[92,2,93,11],[1,1,5,24],[7,1,10,61],[12,1,13,14],[12,15,13,61],[15,1,17,14],[15,15,17,20],[15,21,17,26],[15,27,17,32],[19,1,20,61],[107,54,108,56],[107,50,108,53],[107,44,108,49],[107,60,108,61],[36,1,37,61],[33,1,34,22],[33,23,34,30],[33,31,34,34],[33,35,34,38],[33,39,34,41],[33,42,34,44],[61,2,62,11],[59,2,60,11],[57,2,58,11],[55,2,56,11],[53,2,54,11],[51,2,52,11],[63,23,64,28],[42,2,43,11],[44,2,45,11],[96,31,97,38],[69,2,70,11],[67,2,68,11],[65,2,66,11],[63,2,64,11],[79,2,80,11],[77,2,78,11],[75,2,76,11],[73,2,74,11],[71,2,72,11],[99,14,100,19],[85,22,86,29],[88,23,89,28],[88,2,89,11],[90,2,91,11],[81,2,82,11],[63,14,64,19],[65,14,66,19],[67,14,68,19],[69,14,70,19],[71,14,72,19],[73,14,74,19],[75,14,76,19],[77,14,78,19],[79,14,80,19],[85,13,86,20],[96,13,97,20],[90,23,91,28],[92,23,93,28],[96,22,97,29],[81,14,82,19],[88,14,89,19],[90,14,91,19],[92,14,93,19],[39,13,40,20],[42,14,43,19],[44,14,45,19],[51,14,52,19],[53,14,54,19],[55,14,56,19],[57,14,58,19],[59,14,60,19],[61,14,62,19],[39,22,40,29],[42,23,43,28],[44,23,45,28],[51,23,52,28],[53,23,54,28],[55,23,56,28],[57,23,58,28],[59,23,60,28],[61,23,62,28],[65,23,66,28],[67,23,68,28],[69,23,70,28],[71,23,72,28],[73,23,74,28],[75,23,76,28],[77,23,78,28],[79,23,80,28],[81,23,82,28],[99,23,100,28],[39,31,40,38],[42,32,43,37],[44,32,45,37],[51,32,52,37],[53,32,54,37],[55,32,56,37],[57,32,58,37],[59,32,60,37],[61,32,62,37],[63,32,64,37],[65,32,66,37],[67,32,68,37],[69,32,70,37],[71,32,72,37],[73,32,74,37],[75,32,76,37],[77,32,78,37],[79,32,80,37],[81,32,82,37],[85,31,86,38],[88,32,89,37],[90,32,91,37],[92,32,93,37],[99,32,100,37],[48,13,49,20],[48,22,49,29],[48,31,49,38],[39,40,40,47],[42,41,43,46],[44,41,45,46],[48,40,49,47],[51,41,52,46],[53,41,54,46],[55,41,56,46],[57,41,58,46],[59,41,60,46],[61,41,62,46],[63,41,64,46],[65,41,66,46],[67,41,68,46],[69,41,70,46],[71,41,72,46],[73,41,74,46],[75,41,76,46],[77,41,78,46],[79,41,80,46],[81,41,82,46],[92,41,93,46],[96,40,97,47],[99,41,100,46],[39,49,40,56],[42,50,43,55],[44,50,45,55],[48,49,49,56],[51,50,52,55],[53,50,54,55],[55,50,56,55],[57,50,58,55],[59,50,60,55],[61,50,62,55],[63,50,64,55],[65,50,66,55],[67,50,68,55],[69,50,70,55],[71,50,72,55],[73,50,74,55],[75,50,76,55],[77,50,78,55],[79,50,80,55],[81,50,82,55],[67,58,68,60],[69,58,70,60],[71,58,72,60],[73,58,74,60],[75,58,76,60],[77,58,78,60],[79,58,80,60],[81,58,82,60],[90,41,91,46],[104,44,105,49],[104,50,105,53],[22,1,25,61],[88,58,89,60],[90,58,91,60],[92,58,93,60],[99,58,100,60],[85,49,86,56],[88,50,89,55],[90,50,91,55],[92,50,93,55],[96,49,97,56],[99,50,100,55],[51,58,52,60],[53,58,54,60],[55,58,56,60],[57,58,58,60],[59,58,60,60],[61,58,62,60],[63,58,64,60],[65,58,66,60]]}
[]
[]
[]
[]
[]
[]
[]
[null,"1st Stage - Cavity Imbalance"]
[]
[]
[]
[]
[null,"Purpose:",null,null,null,null,null,null,null,null,null,null,null,null,null,"Determine the 1st Stage Injection Speed with the lowest cavity imbalance"]
[]
[]
[null,"Equipment Needed:",null,null,null,null,null,null,null,null,null,null,null,null,null,"Safety Glasses",null,null,null,null,null,"Calculator",null,null,null,null,null,"Part Weighing Scale"]
[]
[]
[]
[null,"*Before continuing; make sure the mold can run short shots safely without damaging the mold"]
[]
[]
[null,"1st Stage - Cavity Imbalance"]
[]
[]
[]
[]
[null,"Define the units being used"]
[]
[]
[null,"What weight units are being used?",null,null,null,null,null,null,null,null,null,null,null,null,null,null,null,null,null,null,null,null,null,null,null,null,null,null,null,null,null,{"$f":"IF(X31=\"\",\"g\",\"\")","v":"g"},null,null,{"$f":"IF(X31=\"\",\"lb\",\"\")","v":"lb"},null,null,{"$f":"IF(X31=\"\",\"oz\",\"\")","v":"oz"},null,null,null,"How many cavities?"]
[]
[]
[null,"1st stage injection speed units used?",null,null,null,null,null,null,null,null,null,null,null,null,null,null,null,null,null,null,null,null,null,null,null,null,null,null,null,null,null,{"$f":"IF(X34=\"\",\"mm/s\",\"\")","v":"mm/s"},null,null,null,{"$f":"IF(X34=\"\",\"in/s\",\"\")","v":"in/s"},null,null,null,{"$f":"IF(X34=\"\",\"cm/s\",\"\")","v":"cm/s"},null,null,{"$f":"IF(X34=\"\",\"%\",\"\")","v":"%"}]
[]
[]
[null,"Dynamic cavity imbalance study"]
[]
[]
[null,null,null,null,null,null,null,null,null,null,null,null,null,"Speed #1",null,null,null,null,null,null,null,null,"Speed #2",null,null,null,null,null,null,null,null,"Speed #3",null,null,null,null,null,null,null,null,"Speed #4",null,null,null,null,null,null,null,null,"Speed #5"]
[]
[]
[null,null,"1st Stage Speed",null,null,null,null,null,null,null,null,null,null,null,null,null,null,null,null,null,null,null,null,null,null,null,null,null,null,null,null,null,null,null,null,null,null,null,null,null,null,null,null,null,null,null,null,null,null,null,null,null,null,null,null,null,null,{"$f":"IF(X34=\"\",\"\",X34)","v":""}]
[]
[null,null,"1st Stage Time",null,null,null,null,null,null,null,null,null,null,null,null,null,null,null,null,null,null,null,null,null,null,null,null,null,null,null,null,null,null,null,null,null,null,null,null,null,null,null,null,null,null,null,null,null,null,null,null,null,null,null,null,null,null,"s"]
[]
[]
[]
[null,null,null,null,null,null,null,null,null,null,null,null,null,"Part Weight",null,null,null,null,null,null,null,null,"Part Weight",null,null,null,null,null,null,null,null,"Part Weight",null,null,null,null,null,null,null,null,"Part Weight",null,null,null,null,null,null,null,null,"Part Weight"]
[]
[]
[null,null,"Cavity #1",null,null,null,null,null,null,null,null,null,null,null,null,null,null,null,null,null,null,null,null,null,null,null,null,null,null,null,null,null,null,null,null,null,null,null,null,null,null,null,null,null,null,null,null,null,null,null,null,null,null,null,null,null,null,null,{"$f":"IF(X31=\"\",\"\",X31)","v":""}]
[]
[null,null,"Cavity #2",null,null,null,null,null,null,null,null,null,null,null,null,null,null,null,null,null,null,null,null,null,null,null,null,null,null,null,null,null,null,null,null,null,null,null,null,null,null,null,null,null,null,null,null,null,null,null,null,null,null,null,null,null,null,null,{"$f":"IF(X31=\"\",\"\",X31)","v":""}]
[]
[null,null,"Cavity #3",null,null,null,null,null,null,null,null,null,null,null,null,null,null,null,null,null,null,null,null,null,null,null,null,null,null,null,null,null,null,null,null,null,null,null,null,null,null,null,null,null,null,null,null,null,null,null,null,null,null,null,null,null,null,null,{"$f":"IF(X31=\"\",\"\",X31)","v":""}]
[]
[null,null,"Cavity #4",null,null,null,null,null,null,null,null,null,null,null,null,null,null,null,null,null,null,null,null,null,null,null,null,null,null,null,null,null,null,null,null,null,null,null,null,null,null,null,null,null,null,null,null,null,null,null,null,null,null,null,null,null,null,null,{"$f":"IF(X31=\"\",\"\",X31)","v":""}]
[]
[null,null,"Cavity #5",null,null,null,null,null,null,null,null,null,null,null,null,null,null,null,null,null,null,null,null,null,null,null,null,null,null,null,null,null,null,null,null,null,null,null,null,null,null,null,null,null,null,null,null,null,null,null,null,null,null,null,null,null,null,null,{"$f":"IF(X31=\"\",\"\",X31)","v":""}]
[]
[null,null,"Cavity #6",null,null,null,null,null,null,null,null,null,null,null,null,null,null,null,null,null,null,null,null,null,null,null,null,null,null,null,null,null,null,null,null,null,null,null,null,null,null,null,null,null,null,null,null,null,null,null,null,null,null,null,null,null,null,null,{"$f":"IF(X31=\"\",\"\",X31)","v":""}]
[]
[null,null,"Cavity #7",null,null,null,null,null,null,null,null,null,null,null,null,null,null,null,null,null,null,null,null,null,null,null,null,null,null,null,null,null,null,null,null,null,null,null,null,null,null,null,null,null,null,null,null,null,null,null,null,null,null,null,null,null,null,null,{"$f":"IF(X31=\"\",\"\",X31)","v":""}]
[]
[null,null,"Cavity #8",null,null,null,null,null,null,null,null,null,null,null,null,null,null,null,null,null,null,null,null,null,null,null,null,null,null,null,null,null,null,null,null,null,null,null,null,null,null,null,null,null,null,null,null,null,null,null,null,null,null,null,null,null,null,null,{"$f":"IF(X31=\"\",\"\",X31)","v":""}]
[]
[null,null,"Cavity #9",null,null,null,null,null,null,null,null,null,null,null,null,null,null,null,null,null,null,null,null,null,null,null,null,null,null,null,null,null,null,null,null,null,null,null,null,null,null,null,null,null,null,null,null,null,null,null,null,null,null,null,null,null,null,null,{"$f":"IF(X31=\"\",\"\",X31)","v":""}]
[]
[null,null,"Cavity #10",null,null,null,null,null,null,null,null,null,null,null,null,null,null,null,null,null,null,null,null,null,null,null,null,null,null,null,null,null,null,null,null,null,null,null,null,null,null,null,null,null,null,null,null,null,null,null,null,null,null,null,null,null,null,null,{"$f":"IF(X31=\"\",\"\",X31)","v":""}]
[]
[null,null,"Cavity #11",null,null,null,null,null,null,null,null,null,null,null,null,null,null,null,null,null,null,null,null,null,null,null,null,null,null,null,null,null,null,null,null,null,null,null,null,null,null,null,null,null,null,null,null,null,null,null,null,null,null,null,null,null,null,null,{"$f":"IF(X31=\"\",\"\",X31)","v":""}]
[]
[null,null,"Cavity #12",null,null,null,null,null,null,null,null,null,null,null,null,null,null,null,null,null,null,null,null,null,null,null,null,null,null,null,null,null,null,null,null,null,null,null,null,null,null,null,null,null,null,null,null,null,null,null,null,null,null,null,null,null,null,null,{"$f":"IF(X31=\"\",\"\",X31)","v":""}]
[]
[null,null,"Cavity #13",null,null,null,null,null,null,null,null,null,null,null,null,null,null,null,null,null,null,null,null,null,null,null,null,null,null,null,null,null,null,null,null,null,null,null,null,null,null,null,null,null,null,null,null,null,null,null,null,null,null,null,null,null,null,null,{"$f":"IF(X31=\"\",\"\",X31)","v":""}]
[]
[null,null,"Cavity #14",null,null,null,null,null,null,null,null,null,null,null,null,null,null,null,null,null,null,null,null,null,null,null,null,null,null,null,null,null,null,null,null,null,null,null,null,null,null,null,null,null,null,null,null,null,null,null,null,null,null,null,null,null,null,null,{"$f":"IF(X31=\"\",\"\",X31)","v":""}]
[]
[null,null,"Cavity #15",null,null,null,null,null,null,null,null,null,null,null,null,null,null,null,null,null,null,null,null,null,null,null,null,null,null,null,null,null,null,null,null,null,null,null,null,null,null,null,null,null,null,null,null,null,null,null,null,null,null,null,null,null,null,null,{"$f":"IF(X31=\"\",\"\",X31)","v":""}]
[]
[null,null,"Cavity #16",null,null,null,null,null,null,null,null,null,null,null,null,null,null,null,null,null,null,null,null,null,null,null,null,null,null,null,null,null,null,null,null,null,null,null,null,null,null,null,null,null,null,null,null,null,null,null,null,null,null,null,null,null,null,null,{"$f":"IF(X31=\"\",\"\",X31)","v":""}]
[]
[]
[]
[null,null,null,null,null,null,null,null,null,null,null,null,null,"Difference",null,null,null,null,null,null,null,null,"Difference",null,null,null,null,null,null,null,null,"Difference",null,null,null,null,null,null,null,null,"Difference",null,null,null,null,null,null,null,null,"Difference"]
[]
[]
[null,null,"Min. Weight",null,null,null,null,null,null,null,null,null,null,null,{"$f":"IF(O52=\"\",\"\",MIN(O52:T83))","v":""},null,null,null,null,null,null,null,null,{"$f":"IF(X52=\"\",\"\",MIN(X52:AC83))","v":""},null,null,null,null,null,null,null,null,{"$f":"IF(AG52=\"\",\"\",MIN(AG52:AL83))","v":""},null,null,null,null,null,null,null,null,{"$f":"IF(AP52=\"\",\"\",MIN(AP52:AU83))","v":""},null,null,null,null,null,null,null,null,{"$f":"IF(AY52=\"\",\"\",MIN(AY52:BD83))","v":""},null,null,null,null,null,null,null,{"$f":"IF(X31=\"\",\"\",X31)","v":""}]
[]
[null,null,"Max. Weight",null,null,null,null,null,null,null,null,null,null,null,{"$f":"IF(O52=\"\",\"\",MAX(O52:T90))","v":""},null,null,null,null,null,null,null,null,{"$f":"IF(X52=\"\",\"\",MAX(X52:AC90))","v":""},null,null,null,null,null,null,null,null,{"$f":"IF(AG52=\"\",\"\",MAX(AG52:AL90))","v":""},null,null,null,null,null,null,null,null,{"$f":"IF(AP52=\"\",\"\",MAX(AP52:AU90))","v":""},null,null,null,null,null,null,null,null,{"$f":"IF(AY52=\"\",\"\",MAX(AY52:BD90))","v":""},null,null,null,null,null,null,null,{"$f":"IF(X31=\"\",\"\",X31)","v":""}]
[]
[null,null,"Max.-Min.",null,null,null,null,null,null,null,null,null,null,null,{"$f":"IF(O89=\"\",\"\",O91-O89)","v":""},null,null,null,null,null,null,null,null,{"$f":"IF(X89=\"\",\"\",X91-X89)","v":""},null,null,null,null,null,null,null,null,{"$f":"IF(AG89=\"\",\"\",AG91-AG89)","v":""},null,null,null,null,null,null,null,null,{"$f":"IF(AP89=\"\",\"\",AP91-AP89)","v":""},null,null,null,null,null,null,null,null,{"$f":"IF(AY89=\"\",\"\",AY91-AY89)","v":""},null,null,null,null,null,null,null,{"$f":"IF(X31=\"\",\"\",X31)","v":""}]
[]
[]
[]
[null,null,null,null,null,null,null,null,null,null,null,null,null,"Imbalance",null,null,null,null,null,null,null,null,"Imbalance",null,null,null,null,null,null,null,null,"Imbalance",null,null,null,null,null,null,null,null,"Imbalance",null,null,null,null,null,null,null,null,"Imbalance"]
[]
[]
[null,null,"(Diff/Max)*100",null,null,null,null,null,null,null,null,null,null,null,{"$f":"IF(O93=\"\",\"\",(O93/O91)*100)","v":""},null,null,null,null,null,null,null,null,{"$f":"IF(X93=\"\",\"\",(X93/X91)*100)","v":""},null,null,null,null,null,null,null,null,{"$f":"IF(AG93=\"\",\"\",(AG93/AG91)*100)","v":""},null,null,null,null,null,null,null,null,{"$f":"IF(AP93=\"\",\"\",(AP93/AP91)*100)","v":""},null,null,null,null,null,null,null,null,{"$f":"IF(AY93=\"\",\"\",(AY93/AY91)*100)","v":""},null,null,null,null,null,null,null,"%"]
[]
[]
[]
[]
[null,"Preferred 1st Stage Injection Time",null,null,null,null,null,null,null,null,null,null,null,null,null,null,null,null,null,null,null,null,null,null,null,null,null,null,null,null,null,null,null,null,null,null,null,null,null,null,null,null,null,null,null,null,null,null,null,null,"s"]
[]
[]
[null,"Preferred 1st Stage Injection Speed",null,null,null,null,null,null,null,null,null,null,null,null,null,null,null,null,null,null,null,null,null,null,null,null,null,null,null,null,null,null,null,null,null,null,null,null,null,null,null,null,null,null,null,null,null,null,null,null,{"$f":"IF(X34=\"mm/s\",\"mm/s\",IF(X34=\"in/s\",\"in/s\",IF(X34=\"cm/s\",\"cm/s\",IF(X34=\"%\",\"%\",\"mm/s\"))))","v":"mm/s"},null,null,null,{"$f":"IF(X34=\"\",\"in/s\",\"\")","v":"in/s"},null,null,{"$f":"IF(X34=\"\",\"cm/s\",\"\")","v":"cm/s"},null,null,{"$f":"IF(X34=\"\",\"%\",\"\")","v":"%"}]

{"sheet":"1st Stage Transfer","index":8,"n_rows":40,"n_cols":61,"rows_kept":40,"cut":false,"hidden":false,"merged":[[39,17,40,24],[39,2,40,16],[39,40,40,51],[39,52,40,59],[39,60,40,61],[39,25,40,27],[39,28,40,30],[39,31,40,33],[34,59,35,61],[34,5,35,13],[34,20,35,28],[34,35,35,43],[34,14,35,16],[34,29,35,31],[34,44,35,46],[34,50,35,58],[31,2,32,16],[31,17,32,31],[31,32,32,46],[31,47,32,61],[28,1,29,62],[22,1,23,62],[25,34,26,41],[25,42,26,44],[25,45,26,47],[25,48,26,50],[25,12,26,33],[15,45,17,50],[15,51,17,56],[15,57,17,62],[19,1,20,62],[1,1,5,24],[7,1,10,62],[12,1,13,14],[12,15,13,62],[15,1,17,14],[15,15,17,20],[15,21,17,26],[15,27,17,32],[15,33,17,38],[15,39,17,44]]}
[]
[]
[]
[]
[]
[]
[]
[null,"1st Stage - Injection Transfer"]
[]
[]
[]
[]
[null,"Purpose:",null,null,null,null,null,null,null,null,null,null,null,null,null,"Establish a 1st Stage Transfer which produces a 90 to 95% short shot"]
[]
[]
[null,"Equipment Needed:",null,null,null,null,null,null,null,null,null,null,null,null,null,"Safety Glasses",null,null,null,null,null,"Part weighing scale",null,null,null,null,null,"Calculator"]
[]
[]
[]
[null,"*Before continuing; make sure the mold can run short shots safely without damaging the mold"]
[]
[]
[null,"Define the units being used"]
[]
[]
[null,null,null,null,null,null,null,null,null,null,null,null,"What weight units are being used?",null,null,null,null,null,null,null,null,null,null,null,null,null,null,null,null,null,null,null,null,null,"g",null,null,null,null,null,null,null,{"$f":"IF(AI26=\"\",\"g\",\"\")","v":""},null,null,{"$f":"IF(AI26=\"\",\"lb\",\"\")","v":""},null,null,{"$f":"IF(AI26=\"\",\"oz\",\"\")","v":""}]
[]
[]
[null,"Calculate 90%-95% of the fullest part weight"]
[]
[]
[null,null,"100% full part weight",null,null,null,null,null,null,null,null,null,null,null,null,null,null,"95% full part weight",null,null,null,null,null,null,null,null,null,null,null,null,null,null,"90% full part weight",null,null,null,null,null,null,null,null,null,null,null,null,null,null,"Final Part Weight"]
[]
[]
[null,null,null,null,null,null,null,null,null,null,null,null,null,null,{"$f":"IF(AI26=\"g\",\"g\",IF(AI26=\"lb\",\"lb\",IF(AI26=\"oz\",\"oz\",\"\")))","v":"g"},null,null,null,null,null,{"$f":"IF(F35=\"\",\"\",F35*0.95)","v":""},null,null,null,null,null,null,null,null,{"$f":"IF(AI26=\"g\",\"g\",IF(AI26=\"lb\",\"lb\",IF(AI26=\"oz\",\"oz\",\"\")))","v":"g"},null,null,null,null,null,{"$f":"IF(F35=\"\",\"\",F35*0.9)","v":""},null,null,null,null,null,null,null,null,{"$f":"IF(AI26=\"g\",\"g\",IF(AI26=\"lb\",\"lb\",IF(AI26=\"oz\",\"oz\",\"\")))","v":"g"},null,null,null,null,null,null,null,null,null,null,null,null,null,null,{"$f":"IF(AI26=\"g\",\"g\",IF(AI26=\"lb\",\"lb\",IF(AI26=\"oz\",\"oz\",\"\")))","v":"g"}]
[]
[]
[]
[]
[null,null,"Part weight @ transfer",null,null,null,null,null,null,null,null,null,null,null,null,null,null,null,null,null,null,null,null,null,null,{"$f":"IF(AI26=\"\",\"g\",IF(AI26=\"g\",\"g\",IF(AI26=\"oz\",\"oz\",IF(AI26=\"lb\",\"lb\",\"g\"))))","v":"g"},null,null,{"$f":"IF(AI26=\"\",\"oz\",\"\")","v":""},null,null,{"$f":"IF(AI26=\"\",\"lb\",\"\")","v":""},null,null,null,null,null,null,null,null,"1st stage fill time",null,null,null,null,null,null,null,null,null,null,null,null,null,null,null,null,null,null,null,"s"]

{"sheet":"1st Stage Max. Pressure","index":9,"n_rows":32,"n_cols":52,"rows_kept":32,"cut":false,"hidden":false,"merged":[[31,1,32,37],[22,40,23,42],[22,43,23,45],[22,46,23,47],[22,48,23,50],[28,38,29,44],[28,1,29,37],[31,38,32,44],[31,45,32,47],[28,45,29,47],[25,1,26,62],[19,1,20,62],[22,30,23,39],[22,10,23,29],[22,51,23,53],[1,1,5,24],[7,1,10,62],[12,1,13,14],[12,15,13,62],[15,1,17,14],[15,15,17,20],[15,21,17,26]]}
[]
[]
[]
[]
[]
[]
[]
[null,"1st Stage - Maximum Injection Pressure"]
[]
[]
[]
[]
[null,"Purpose:",null,null,null,null,null,null,null,null,null,null,null,null,null,"Establish a Maximum Injection Pressure that compensates for normal variation"]
[]
[]
[null,"Equipment Needed:",null,null,null,null,null,null,null,null,null,null,null,null,null,"Safety Glasses",null,null,null,null,null,"Calculator"]
[]
[]
[]
[null,"Define the units being used"]
[]
[]
[null,null,null,null,null,null,null,null,null,null,"Machine injection pressure units?",null,null,null,null,null,null,null,null,null,null,null,null,null,null,null,null,null,null,null,null,null,null,null,null,null,null,null,null,null,{"$f":"IF(AE23=\"\",\"psi\",\"\")","v":"psi"},null,null,{"$f":"IF(AE23=\"\",\"bar\",\"\")","v":"bar"},null,null,{"$f":"IF(AE23=\"\",\"%\",\"\")","v":"%"},null,{"$f":"IF(AE23=\"\",\"kgf/c\",\"\")","v":"kgf/c"},null,null,{"$f":"IF(AE23=\"\",\"MPa\",\"\")","v":"MPa"}]
[]
[]
[null,"Set the 1st stage injection pressure limit"]
[]
[]
[null,"Peak 1st Stage Pressure",null,null,null,null,null,null,null,null,null,null,null,null,null,null,null,null,null,null,null,null,null,null,null,null,null,null,null,null,null,null,null,null,null,null,null,null,null,null,null,null,null,null,null,{"$f":"IF(AE23=\"%\",\"%\",IF(AE23=\"bar\",\"bar\",IF(AE23=\"psi\",\"psi\",IF(AE23=\"kgf/c\",\"kgf/c\",IF(AE23=\"MPa\",\"MPa\",\"\")))))","v":""}]
[]
[]
[null,"Maximum = Peak x 1.2",null,null,null,null,null,null,null,null,null,null,null,null,null,null,null,null,null,null,null,null,null,null,null,null,null,null,null,null,null,null,null,null,null,null,null,null,{"$f":"IF(AM29=\"\",\"\",AM29*1.2)","v":""},null,null,null,null,null,null,{"$f":"AT29","v":""}]

{"sheet":"1st Stage Max. Time","index":10,"n_rows":26,"n_cols":46,"rows_kept":26,"cut":false,"hidden":false,"merged":[[1,1,5,24],[7,1,10,61],[12,1,13,14],[12,15,13,61],[15,1,17,14],[15,15,17,20],[15,21,17,26],[19,1,20,61],[22,1,23,37],[22,38,23,44],[22,45,23,47],[25,1,26,37],[25,38,26,44],[25,45,26,47]]}
[]
[]
[]
[]
[]
[]
[]
[null,"1st Stage - Maximum Injection Time"]
[]
[]
[]
[]
[null,"Purpose:",null,null,null,null,null,null,null,null,null,null,null,null,null,"Establish a Maximum 1st Stage Time which compensates for normal variation"]
[]
[]
[null,"Equipment Needed:",null,null,null,null,null,null,null,null,null,null,null,null,null,"Safety Glasses",null,null,null,null,null,"Calculator"]
[]
[]
[]
[null,"Maximum 1st stage injection time "]
[]
[]
[null,"1st Stage Injection Time",null,null,null,null,null,null,null,null,null,null,null,null,null,null,null,null,null,null,null,null,null,null,null,null,null,null,null,null,null,null,null,null,null,null,null,null,null,null,null,null,null,null,null,"s"]
[]
[]
[null,"Maximum = Time x 1.2",null,null,null,null,null,null,null,null,null,null,null,null,null,null,null,null,null,null,null,null,null,null,null,null,null,null,null,null,null,null,null,null,null,null,null,null,{"$f":"IF(AM23=\"\",\"\",AM23*1.2)","v":""},null,null,null,null,null,null,"s"]

{"sheet":"1st Stage Check Ring","index":11,"n_rows":67,"n_cols":50,"rows_kept":67,"cut":false,"hidden":false,"merged":[[66,1,67,31],[56,8,57,31],[58,16,59,31],[56,44,57,46],[58,44,59,46],[66,44,67,46],[60,33,61,43],[62,33,63,43],[60,16,61,31],[62,4,63,31],[60,44,61,46],[62,44,63,46],[66,33,67,43],[45,44,46,46],[47,44,48,46],[49,44,50,46],[56,33,57,43],[58,33,59,43],[51,16,52,30],[51,33,52,43],[54,33,55,43],[54,3,55,31],[51,44,52,46],[54,44,55,46],[45,16,46,30],[47,16,48,30],[49,16,50,30],[33,33,34,43],[35,33,36,43],[37,33,38,43],[41,16,42,30],[41,33,42,43],[43,33,44,43],[43,16,44,30],[45,33,46,43],[47,33,48,43],[49,33,50,43],[39,33,40,43],[31,16,32,30],[33,16,34,30],[35,16,36,30],[37,16,38,30],[39,16,40,30],[25,13,26,34],[25,35,26,42],[25,43,26,45],[25,46,26,48],[25,49,26,51],[31,32,32,42],[33,44,34,46],[1,1,5,24],[7,1,10,61],[12,1,13,14],[12,15,13,61],[15,1,17,14],[15,15,17,20],[15,21,17,26],[15,27,17,32],[28,1,29,61],[22,1,23,61],[19,1,20,61],[35,44,36,46],[37,44,38,46],[39,44,40,46],[41,44,42,46],[43,44,44,46]]}
[]
[]
[]
[]
[]
[]
[]
[null,"1st Stage - Check Ring Study"]
[]
[]
[]
[]
[null,"Purpose:",null,null,null,null,null,null,null,null,null,null,null,null,null,"Determine the repeatability of the Check Ring during 1st Stage Injection"]
[]
[]
[null,"Equipment Needed:",null,null,null,null,null,null,null,null,null,null,null,null,null,"Safety Glasses",null,null,null,null,null,"Calculator",null,null,null,null,null,"Part weighing scale"]
[]
[]
[]
[null,"*Before continuing; make sure the mold can run short shots safely without damaging the mold."]
[]
[]
[null,"Define the units being used"]
[]
[]
[null,null,null,null,null,null,null,null,null,null,null,null,null,"What weight units are being used?",null,null,null,null,null,null,null,null,null,null,null,null,null,null,null,null,null,null,null,null,null,null,null,null,null,null,null,null,null,{"$f":"IF(AJ26=\"\",\"g\",\"\")","v":"g"},null,null,{"$f":"IF(AJ26=\"\",\"lb\",\"\")","v":"lb"},null,null,{"$f":"IF(AJ26=\"\",\"oz\",\"\")","v":"oz"}]
[]
[]
[null,"Dynamic check ring study"]
[]
[]
[null,null,null,null,null,null,null,null,null,null,null,null,null,null,null,null,"Shot #",null,null,null,null,null,null,null,null,null,null,null,null,null,null,null,"Full shot weight"]
[]
[null,null,null,null,null,null,null,null,null,null,null,null,null,null,null,null,1,null,null,null,null,null,null,null,null,null,null,null,null,null,null,null,null,null,null,null,null,null,null,null,null,null,null,null,{"$f":"IF(AJ26=\"g\",\"g\",IF(AJ26=\"lb\",\"lb\",IF(AJ26=\"oz\",\"oz\",IF(AJ26=\"\",\"\",\"\"))))","v":""}]
[]
[null,null,null,null,null,null,null,null,null,null,null,null,null,null,null,null,2,null,null,null,null,null,null,null,null,null,null,null,null,null,null,null,null,null,null,null,null,null,null,null,null,null,null,null,{"$f":"IF(AJ26=\"g\",\"g\",IF(AJ26=\"lb\",\"lb\",IF(AJ26=\"oz\",\"oz\",IF(AJ26=\"\",\"\",\"\"))))","v":""}]
[]
[null,null,null,null,null,null,null,null,null,null,null,null,null,null,null,null,3,null,null,null,null,null,null,null,null,null,null,null,null,null,null,null,null,null,null,null,null,null,null,null,null,null,null,null,{"$f":"IF(AJ26=\"g\",\"g\",IF(AJ26=\"lb\",\"lb\",IF(AJ26=\"oz\",\"oz\",IF(AJ26=\"\",\"\",\"\"))))","v":""}]
[]
[null,null,null,null,null,null,null,null,null,null,null,null,null,null,null,null,4,null,null,null,null,null,null,null,null,null,null,null,null,null,null,null,null,null,null,null,null,null,null,null,null,null,null,null,{"$f":"IF(AJ26=\"g\",\"g\",IF(AJ26=\"lb\",\"lb\",IF(AJ26=\"oz\",\"oz\",IF(AJ26=\"\",\"\",\"\"))))","v":""}]
[]
[null,null,null,null,null,null,null,null,null,null,null,null,null,null,null,null,5,null,null,null,null,null,null,null,null,null,null,null,null,null,null,null,null,null,null,null,null,null,null,null,null,null,null,null,{"$f":"IF(AJ26=\"g\",\"g\",IF(AJ26=\"lb\",\"lb\",IF(AJ26=\"oz\",\"oz\",IF(AJ26=\"\",\"\",\"\"))))","v":""}]
[]
[null,null,null,null,null,null,null,null,null,null,null,null,null,null,null,null,6,null,null,null,null,null,null,null,null,null,null,null,null,null,null,null,null,null,null,null,null,null,null,null,null,null,null,null,{"$f":"IF(AJ26=\"g\",\"g\",IF(AJ26=\"lb\",\"lb\",IF(AJ26=\"oz\",\"oz\",IF(AJ26=\"\",\"\",\"\"))))","v":""}]
[]
[null,null,null,null,null,null,null,null,null,null,null,null,null,null,null,null,7,null,null,null,null,null,null,null,null,null,null,null,null,null,null,null,null,null,null,null,null,null,null,null,null,null,null,null,{"$f":"IF(AJ26=\"g\",\"g\",IF(AJ26=\"lb\",\"lb\",IF(AJ26=\"oz\",\"oz\",IF(AJ26=\"\",\"\",\"\"))))","v":""}]
[]
[null,null,null,null,null,null,null,null,null,null,null,null,null,null,null,null,8,null,null,null,null,null,null,null,null,null,null,null,null,null,null,null,null,null,null,null,null,null,null,null,null,null,null,null,{"$f":"IF(AJ26=\"g\",\"g\",IF(AJ26=\"lb\",\"lb\",IF(AJ26=\"oz\",\"oz\",IF(AJ26=\"\",\"\",\"\"))))","v":""}]
[]
[null,null,null,null,null,null,null,null,null,null,null,null,null,null,null,null,9,null,null,null,null,null,null,null,null,null,null,null,null,null,null,null,null,null,null,null,null,null,null,null,null,null,null,null,{"$f":"IF(AJ26=\"g\",\"g\",IF(AJ26=\"lb\",\"lb\",IF(AJ26=\"oz\",\"oz\",IF(AJ26=\"\",\"\",\"\"))))","v":""}]
[]
[null,null,null,null,null,null,null,null,null,null,null,null,null,null,null,null,10,null,null,null,null,null,null,null,null,null,null,null,null,null,null,null,null,null,null,null,null,null,null,null,null,null,null,null,{"$f":"IF(AJ26=\"g\",\"g\",IF(AJ26=\"lb\",\"lb\",IF(AJ26=\"oz\",\"oz\",IF(AJ26=\"\",\"\",\"\"))))","v":""}]
[]
[]
[null,null,null,"Total Weight = #1+2+3+4+5+6+7+8+9+10",null,null,null,null,null,null,null,null,null,null,null,null,null,null,null,null,null,null,null,null,null,null,null,null,null,null,null,null,null,{"$f":"IF(AH34=\"\",\"\",SUM(AH34:AR53))","v":""},null,null,null,null,null,null,null,null,null,null,{"$f":"IF(AJ26=\"g\",\"g\",IF(AJ26=\"lb\",\"lb\",IF(AJ26=\"oz\",\"oz\",IF(AJ26=\"\",\"\",\"\"))))","v":""}]
[]
[null,null,null,null,null,null,null,null,"Average = Total ÷ 10",null,null,null,null,null,null,null,null,null,null,null,null,null,null,null,null,null,null,null,null,null,null,null,null,{"$f":"IF(AH55=\"\",\"\",AH55/10)","v":""},null,null,null,null,null,null,null,null,null,null,{"$f":"IF(AJ26=\"g\",\"g\",IF(AJ26=\"lb\",\"lb\",IF(AJ26=\"oz\",\"oz\",IF(AJ26=\"\",\"\",\"\"))))","v":""}]
[]
[null,null,null,null,null,null,null,null,null,null,null,null,null,null,null,null,"Heaviest Shot Weight",null,null,null,null,null,null,null,null,null,null,null,null,null,null,null,null,{"$f":"IF(AH34=\"\",\"\",MIN(AH34:AR53))","v":""},null,null,null,null,null,null,null,null,null,null,{"$f":"IF(AJ26=\"g\",\"g\",IF(AJ26=\"lb\",\"lb\",IF(AJ26=\"oz\",\"oz\",IF(AJ26=\"\",\"\",\"\"))))","v":""}]
[]
[null,null,null,null,null,null,null,null,null,null,null,null,null,null,null,null,"Lightest Shot Weight",null,null,null,null,null,null,null,null,null,null,null,null,null,null,null,null,{"$f":"IF(AH34=\"\",\"\",MAX(AH34:AR53))","v":""},null,null,null,null,null,null,null,null,null,null,{"$f":"IF(AJ26=\"g\",\"g\",IF(AJ26=\"lb\",\"lb\",IF(AJ26=\"oz\",\"oz\",IF(AJ26=\"\",\"\",\"\"))))","v":""}]
[]
[null,null,null,null,"Difference = Heaviest - Lightest",null,null,null,null,null,null,null,null,null,null,null,null,null,null,null,null,null,null,null,null,null,null,null,null,null,null,null,null,{"$f":"IF(AH61=\"\",\"\",AH61-AH59)","v":""},null,null,null,null,null,null,null,null,null,null,{"$f":"IF(AJ26=\"g\",\"g\",IF(AJ26=\"lb\",\"lb\",IF(AJ26=\"oz\",\"oz\",IF(AJ26=\"\",\"\",\"\"))))","v":""}]
[]
[]
[]
[null,"Variation = (Difference ÷ Average) x 100",null,null,null,null,null,null,null,null,null,null,null,null,null,null,null,null,null,null,null,null,null,null,null,null,null,null,null,null,null,null,null,{"$f":"IF(AH63=\"\",\"\",(AH63/AH61)*100)","v":""},null,null,null,null,null,null,null,null,null,null,"%"]

{"sheet":"2nd Stage Pressure","index":12,"n_rows":58,"n_cols":56,"rows_kept":58,"cut":false,"hidden":false,"merged":[[41,12,42,51],[44,43,45,45],[34,43,35,45],[57,4,58,34],[57,35,58,42],[57,43,58,45],[57,46,58,48],[57,49,58,51],[47,43,48,45],[51,1,52,62],[54,35,55,42],[54,4,55,34],[54,43,55,45],[54,46,55,48],[54,49,55,51],[54,52,55,54],[54,55,55,57],[44,35,45,42],[47,21,48,34],[47,35,48,42],[44,13,45,34],[37,35,38,42],[37,21,38,34],[37,43,38,45],[34,35,35,42],[34,13,35,34],[28,1,29,62],[31,12,32,51],[22,48,23,50],[22,51,23,53],[25,10,26,31],[25,32,26,39],[25,40,26,42],[25,43,26,45],[25,46,26,48],[22,32,23,39],[22,10,23,31],[22,40,23,42],[22,43,23,45],[22,46,23,47],[1,1,5,24],[7,1,10,62],[12,1,13,14],[12,15,13,62],[15,1,17,14],[15,15,17,20],[15,21,17,26],[15,27,17,32],[19,1,20,62]]}
[]
[]
[]
[]
[]
[]
[]
[null,"2nd Stage - Packing Pressure"]
[]
[]
[]
[]
[null,"Purpose:",null,null,null,null,null,null,null,null,null,null,null,null,null,"Establish an acceptable 2nd Stage Packing Pressure"]
[]
[]
[null,"Equipment Needed:",null,null,null,null,null,null,null,null,null,null,null,null,null,"Safety Glasses",null,null,null,null,null,"Permanent Marker ",null,null,null,null,null,"Part Weighing Scale"]
[]
[]
[]
[null,"Define the units being used"]
[]
[]
[null,null,null,null,null,null,null,null,null,null,"Machine injection pressure units?",null,null,null,null,null,null,null,null,null,null,null,null,null,null,null,null,null,null,null,null,null,null,null,null,null,null,null,null,null,{"$f":"IF(AG23=\"\",\"psi\",\"\")","v":"psi"},null,null,{"$f":"IF(AG23=\"\",\"bar\",\"\")","v":"bar"},null,null,{"$f":"IF(AG23=\"\",\"%\",\"\")","v":"%"},null,{"$f":"IF(AG23=\"\",\"kgf/c\",\"\")","v":"kgf/c"},null,null,{"$f":"IF(AG23=\"\",\"MPa\",\"\")","v":"MPa"}]
[]
[]
[null,null,null,null,null,null,null,null,null,null,"What weight units are being used?",null,null,null,null,null,null,null,null,null,null,null,null,null,null,null,null,null,null,null,null,null,null,null,null,null,null,null,null,null,{"$f":"IF(AG26=\"\",\"g\",\"\")","v":"g"},null,null,{"$f":"IF(AG26=\"\",\"lb\",\"\")","v":"lb"},null,null,{"$f":"IF(AG26=\"\",\"oz\",\"\")","v":"oz"}]
[]
[]
[null,"2nd Stage Packing Pressure Study"]
[]
[]
[null,null,null,null,null,null,null,null,null,null,null,null,"Minimum"]
[]
[]
[null,null,null,null,null,null,null,null,null,null,null,null,null,"Min. 2nd Stage Packing Pressure",null,null,null,null,null,null,null,null,null,null,null,null,null,null,null,null,null,null,null,null,null,null,null,null,null,null,null,null,null,{"$f":"IF(AG23=\"\",\"\",AG23)","v":""}]
[]
[]
[null,null,null,null,null,null,null,null,null,null,null,null,null,null,null,null,null,null,null,null,null,"Minimum Part Weight",null,null,null,null,null,null,null,null,null,null,null,null,null,null,null,null,null,null,null,null,null,{"$f":"IF(AG26=\"\",\"\",AG26)","v":""}]
[]
[]
[]
[null,null,null,null,null,null,null,null,null,null,null,null,"Maximum"]
[]
[]
[null,null,null,null,null,null,null,null,null,null,null,null,null,"Max. 2nd Stage Packing Pressure",null,null,null,null,null,null,null,null,null,null,null,null,null,null,null,null,null,null,null,null,null,null,null,null,null,null,null,null,null,{"$f":"IF(AG23=\"\",\"\",AG23)","v":""}]
[]
[]
[null,null,null,null,null,null,null,null,null,null,null,null,null,null,null,null,null,null,null,null,null,"Maximum Part Weight",null,null,null,null,null,null,null,null,null,null,null,null,null,null,null,null,null,null,null,null,null,{"$f":"IF(AG26=\"\",\"\",AG26)","v":""}]
[]
[]
[]
[null,"2nd stage packing pressure study results"]
[]
[]
[null,null,null,null,"Final 2nd Stage Packing Pressure",null,null,null,null,null,null,null,null,null,null,null,null,null,null,null,null,null,null,null,null,null,null,null,null,null,null,null,null,null,null,null,null,null,null,null,null,null,null,{"$f":"IF(AG23=\"PSI\",\"PSI\",IF(AG23=\"BAR\",\"BAR\",IF(AG23=\"%\",\"%\",IF(AG23=\"kgf/c\",\"kgf/c\",IF(AG23=\"MPA\",\"MPA\",\"PSI\")))))","v":"PSI"},null,null,{"$f":"IF(AG23=\"\",\"BAR\",\"\")","v":"BAR"},null,null,{"$f":"IF(AG23=\"\",\"%\",\"\")","v":"%"},null,null,{"$f":"IF(AG23=\"\",\"kgf/c\",\"\")","v":"kgf/c"},null,null,{"$f":"IF(AG23=\"\",\"MPA\",\"\")","v":"MPA"}]
[]
[]
[null,null,null,null,"Final Part Weight",null,null,null,null,null,null,null,null,null,null,null,null,null,null,null,null,null,null,null,null,null,null,null,null,null,null,null,null,null,null,null,null,null,null,null,null,null,null,{"$f":"IF(AG26=\"g\",\"g\",IF(AG26=\"lb\",\"lb\",IF(AG26=\"oz\",\"oz\",\"g\")))","v":"g"},null,null,{"$f":"IF(AG26=\"\",\"lb\",\"\")","v":"lb"},null,null,{"$f":"IF(AG26=\"\",\"oz\",\"\")","v":"oz"}]

{"sheet":"2nd Stage Time","index":13,"n_rows":61,"n_cols":59,"rows_kept":61,"cut":false,"hidden":false,"merged":[[57,51,58,57],[57,58,58,59],[60,4,61,39],[60,40,61,46],[60,47,61,48],[57,40,58,46],[57,47,58,48],[57,49,58,50],[57,4,58,39],[45,3,46,7],[47,3,48,7],[49,3,50,7],[51,3,52,7],[53,3,54,7],[45,12,46,20],[47,12,48,20],[49,12,50,20],[51,12,52,20],[53,12,54,20],[35,12,36,20],[37,12,38,20],[39,12,40,20],[41,12,42,20],[43,12,44,20],[22,10,23,31],[22,32,23,39],[22,40,23,42],[22,43,23,45],[22,46,23,48],[19,1,20,61],[15,21,17,26],[1,1,5,24],[7,1,10,61],[12,1,13,14],[12,15,13,61],[15,1,17,14],[15,15,17,20],[15,27,17,32],[25,1,26,22],[25,24,26,61],[28,2,33,8],[28,11,30,21],[31,11,33,21],[45,1,46,2],[47,1,48,2],[49,1,50,2],[51,1,52,2],[53,1,54,2],[35,3,36,7],[37,3,38,7],[39,3,40,7],[41,3,42,7],[43,3,44,7],[35,1,36,2],[37,1,38,2],[39,1,40,2],[41,1,42,2],[43,1,44,2],[35,34,35,39],[35,40,35,45],[36,34,36,39],[36,40,36,45],[37,34,37,39],[37,40,37,45],[38,34,38,39],[38,40,38,45],[39,34,39,39],[39,40,39,45],[40,34,40,39],[40,40,40,45],[44,34,44,39],[44,40,44,45],[41,34,41,39],[41,40,41,45],[42,34,42,39],[42,40,42,45],[43,34,43,39],[43,40,43,45]]}
[]
[]
[]
[]
[]
[]
[]
[null,"2nd Stage - Packing Time"]
[]
[]
[]
[]
[null,"Purpose:",null,null,null,null,null,null,null,null,null,null,null,null,null,"Establish an optimal 2nd Stage Packing Time"]
[]
[]
[null,"Equipment Needed:",null,null,null,null,null,null,null,null,null,null,null,null,null,"Safety Glasses",null,null,null,null,null,"Permanent Marker",null,null,null,null,null,"Part Weighing Scale"]
[]
[]
[]
[null,"Define the units being used"]
[]
[]
[null,null,null,null,null,null,null,null,null,null,"What weight units are being used?",null,null,null,null,null,null,null,null,null,null,null,null,null,null,null,null,null,null,null,null,null,null,null,null,null,null,null,null,null,{"$f":"IF(AG23=\"\",\"g\",\"\")","v":"g"},null,null,{"$f":"IF(AG23=\"\",\"lb\",\"\")","v":"lb"},null,null,{"$f":"IF(AG23=\"\",\"oz\",\"\")","v":"oz"}]
[]
[]
[null,"Matrix",null,null,null,null,null,null,null,null,null,null,null,null,null,null,null,null,null,null,null,null,null,null,"2nd Stage Time vs. Part Weight Graph "]
[]
[]
[null,null,"2nd Stage Time (s)",null,null,null,null,null,null,null,null,"Part Weight"]
[]
[]
[null,null,null,null,null,null,null,null,null,null,null,{"$f":"IF(AG23=\"\",\"\",IF(AG23=\"g\",\"(g)\",IF(AG23=\"lb\",\"(lb)\",IF(AG23=\"oz\",\"(oz)\",\"\"))))","v":""}]
[]
[]
[]
[null,1,null,null,null,null,null,null,null,null,null,null,null,null,null,null,null,null,null,null,null,null,null,null,null,null,null,null,null,null,null,null,null,null,{"$f":"D36","v":0},null,null,null,null,null,{"$f":"M36","v":0}]
[null,null,null,null,null,null,null,null,null,null,null,null,null,null,null,null,null,null,null,null,null,null,null,null,null,null,null,null,null,null,null,null,null,null,{"$f":"D38","v":0},null,null,null,null,null,{"$f":"M38","v":0}]
[null,2,null,null,null,null,null,null,null,null,null,null,null,null,null,null,null,null,null,null,null,null,null,null,null,null,null,null,null,null,null,null,null,null,{"$f":"D40","v":0},null,null,null,null,null,{"$f":"M40","v":0}]
[null,null,null,null,null,null,null,null,null,null,null,null,null,null,null,null,null,null,null,null,null,null,null,null,null,null,null,null,null,null,null,null,null,null,{"$f":"D42","v":0},null,null,null,null,null,{"$f":"M42","v":0}]
[null,3,null,null,null,null,null,null,null,null,null,null,null,null,null,null,null,null,null,null,null,null,null,null,null,null,null,null,null,null,null,null,null,null,{"$f":"D44","v":0},null,null,null,null,null,{"$f":"M44","v":0}]
[null,null,null,null,null,null,null,null,null,null,null,null,null,null,null,null,null,null,null,null,null,null,null,null,null,null,null,null,null,null,null,null,null,null,{"$f":"D46","v":0},null,null,null,null,null,{"$f":"M46","v":0}]
[null,4,null,null,null,null,null,null,null,null,null,null,null,null,null,null,null,null,null,null,null,null,null,null,null,null,null,null,null,null,null,null,null,null,{"$f":"D48","v":0},null,null,null,null,null,{"$f":"M48","v":0}]
[null,null,null,null,null,null,null,null,null,null,null,null,null,null,null,null,null,null,null,null,null,null,null,null,null,null,null,null,null,null,null,null,null,null,{"$f":"D50","v":0},null,null,null,null,null,{"$f":"M50","v":0}]
[null,5,null,null,null,null,null,null,null,null,null,null,null,null,null,null,null,null,null,null,null,null,null,null,null,null,null,null,null,null,null,null,null,null,{"$f":"D52","v":0},null,null,null,null,null,{"$f":"M52","v":0}]
[null,null,null,null,null,null,null,null,null,null,null,null,null,null,null,null,null,null,null,null,null,null,null,null,null,null,null,null,null,null,null,null,null,null,{"$f":"D54","v":0},null,null,null,null,null,{"$f":"M54","v":0}]
[null,6]
[]
[null,7]
[]
[null,8]
[]
[null,9]
[]
[null,10]
[]
[]
[]
[null,null,null,null,"Gate Seal Time is Between",null,null,null,null,null,null,null,null,null,null,null,null,null,null,null,null,null,null,null,null,null,null,null,null,null,null,null,null,null,null,null,null,null,null,null,null,null,null,null,null,null,null,"s",null,"&",null,null,null,null,null,null,null,null,"s"]
[]
[]
[null,null,null,null,"Final 2nd Stage Packing Time",null,null,null,null,null,null,null,null,null,null,null,null,null,null,null,null,null,null,null,null,null,null,null,null,null,null,null,null,null,null,null,null,null,null,null,null,null,null,null,null,null,null,"s"]

{"sheet":"2nd Stage Cushion","index":14,"n_rows":62,"n_cols":50,"rows_kept":62,"cut":false,"hidden":false,"merged":[[61,38,62,45],[61,46,62,48],[61,5,62,37],[52,38,53,45],[52,46,53,48],[55,38,56,45],[55,46,56,48],[52,2,53,37],[55,2,56,37],[58,1,59,61],[19,1,20,61],[1,1,5,24],[7,1,10,61],[12,1,13,14],[12,15,13,61],[15,1,17,14],[15,15,17,20],[15,21,17,26],[25,1,26,61],[28,38,29,45],[28,46,29,48],[28,13,29,37],[22,13,23,34],[22,35,23,42],[22,43,23,45],[22,46,23,48],[22,49,23,51],[31,13,32,37],[31,38,32,45],[31,46,32,48],[37,1,38,61],[40,38,41,45],[40,46,41,48],[34,13,35,37],[34,38,35,45],[34,46,35,48],[40,2,41,37],[49,1,50,61],[46,2,47,37],[43,38,44,45],[43,46,44,48],[46,38,47,45],[46,46,47,48],[43,2,44,37]]}
[]
[]
[]
[]
[]
[]
[]
[null,"2nd Stage - Final Cushion"]
[]
[]
[]
[]
[null,"Purpose:",null,null,null,null,null,null,null,null,null,null,null,null,null,"To establish the optimal cushion size for the molding process"]
[]
[]
[null,"Equipment Needed:",null,null,null,null,null,null,null,null,null,null,null,null,null,"Safety Glasses",null,null,null,null,null,"Calculator"]
[]
[]
[]
[null,"Define the units being used"]
[]
[]
[null,null,null,null,null,null,null,null,null,null,null,null,null,"Machine stroke units",null,null,null,null,null,null,null,null,null,null,null,null,null,null,null,null,null,null,null,null,null,null,null,null,null,null,null,null,null,{"$f":"IF(AJ23=\"\",\"mm\",\"\")","v":"mm"},null,null,{"$f":"IF(AJ23=\"\",\"in\",\"\")","v":"in"},null,null,{"$f":"IF(AJ23=\"\",\"cm\",\"\")","v":"cm"}]
[]
[]
[null,"Current values"]
[]
[]
[null,null,null,null,null,null,null,null,null,null,null,null,null,"Initial Shot Size",null,null,null,null,null,null,null,null,null,null,null,null,null,null,null,null,null,null,null,null,null,null,null,null,null,null,null,null,null,null,null,null,{"$f":"IF(AJ23=\"\",\"\",AJ23)","v":""}]
[]
[]
[null,null,null,null,null,null,null,null,null,null,null,null,null,"Initial Transfer Position",null,null,null,null,null,null,null,null,null,null,null,null,null,null,null,null,null,null,null,null,null,null,null,null,null,null,null,null,null,null,null,null,{"$f":"IF(AJ23=\"\",\"\",AJ23)","v":""}]
[]
[]
[null,null,null,null,null,null,null,null,null,null,null,null,null,"Initial Cushion",null,null,null,null,null,null,null,null,null,null,null,null,null,null,null,null,null,null,null,null,null,null,null,null,null,null,null,null,null,null,null,null,{"$f":"IF(AJ23=\"\",\"\",AJ23)","v":""}]
[]
[]
[null,"Calculated values"]
[]
[]
[null,null,"Difference = (Initial Shot Size) – (Initial Cushion)",null,null,null,null,null,null,null,null,null,null,null,null,null,null,null,null,null,null,null,null,null,null,null,null,null,null,null,null,null,null,null,null,null,null,null,{"$f":"IF(AM35=\"\",\"\",AM29-AM35)","v":""},null,null,null,null,null,null,null,{"$f":"IF(AJ23=\"\",\"\",AJ23)","v":""}]
[]
[]
[null,null,"Desired Cushion = (Difference) ÷ 9",null,null,null,null,null,null,null,null,null,null,null,null,null,null,null,null,null,null,null,null,null,null,null,null,null,null,null,null,null,null,null,null,null,null,null,{"$f":"IF(AM41=\"\",\"\",AM41/9)","v":""},null,null,null,null,null,null,null,{"$f":"IF(AJ23=\"\",\"\",AJ23)","v":""}]
[]
[]
[null,null,"Adjustment = (Desired Cushion) - (Initial Cushion)",null,null,null,null,null,null,null,null,null,null,null,null,null,null,null,null,null,null,null,null,null,null,null,null,null,null,null,null,null,null,null,null,null,null,null,{"$f":"IF(AM44=\"\",\"\",AM44-AM35)","v":""},null,null,null,null,null,null,null,{"$f":"IF(AJ23=\"\",\"\",AJ23)","v":""}]
[]
[]
[null,"Calculate the final values for transfer position and shot size"]
[]
[]
[null,null,"Final Shot Size = (Initial Shot Size) ± (Adjustment)",null,null,null,null,null,null,null,null,null,null,null,null,null,null,null,null,null,null,null,null,null,null,null,null,null,null,null,null,null,null,null,null,null,null,null,{"$f":"IF(AM47=\"\",\"\",AM47+AM29)","v":""},null,null,null,null,null,null,null,{"$f":"IF(AJ23=\"\",\"\",AJ23)","v":""}]
[]
[]
[null,null,"Final Transfer = (Initial Transfer) ± (Adjustment)",null,null,null,null,null,null,null,null,null,null,null,null,null,null,null,null,null,null,null,null,null,null,null,null,null,null,null,null,null,null,null,null,null,null,null,{"$f":"IF(AM47=\"\",\"\",AM47+AM32)","v":""},null,null,null,null,null,null,null,{"$f":"IF(AJ23=\"\",\"\",AJ23)","v":""}]
[]
[]
[null,"Final  cushion size value"]
[]
[]
[null,null,null,null,null,"Final Cushion (after adjustments)",null,null,null,null,null,null,null,null,null,null,null,null,null,null,null,null,null,null,null,null,null,null,null,null,null,null,null,null,null,null,null,null,null,null,null,null,null,null,null,null,{"$f":"IF(AJ23=\"\",\"\",AJ23)","v":""}]

{"sheet":"2nd Stage Clamp","index":15,"n_rows":56,"n_cols":56,"rows_kept":56,"cut":false,"hidden":false,"merged":[[55,54,56,58],[55,41,56,48],[55,6,56,40],[55,49,56,53],[46,1,47,61],[49,7,50,40],[49,41,50,48],[49,49,50,52],[52,7,53,40],[52,41,53,48],[52,49,53,52],[40,1,41,61],[43,6,44,34],[43,35,44,44],[43,45,44,47],[43,52,44,54],[43,55,44,57],[43,48,44,51],[37,1,38,61],[19,1,20,61],[21,1,22,61],[23,1,24,61],[25,1,26,61],[27,1,28,61],[29,1,30,61],[31,1,32,61],[33,1,34,61],[35,1,36,61],[1,1,5,24],[7,1,10,61],[12,1,13,14],[12,15,13,61],[15,1,17,14],[15,15,17,20],[15,21,17,26],[15,27,17,32]]}
[]
[]
[]
[]
[]
[]
[]
[null,"2nd Stage - Clamp Force"]
[]
[]
[]
[]
[null,"Purpose:",null,null,null,null,null,null,null,null,null,null,null,null,null,"Establish the optimal 2nd Stage Clamp Force which compensates for variation"]
[]
[]
[null,"Equipment Needed:",null,null,null,null,null,null,null,null,null,null,null,null,null,"Safety Glasses",null,null,null,null,null,"Calculator",null,null,null,null,null,"Permanent Marker"]
[]
[]
[]
[null,"Procedure"]
[]
[null,"1. Turn off 2nd Stage Packing and verify a 1st Stage Short Shot"]
[]
[null,"2. Turn 2nd Stage Packing back on and continue with the study"]
[]
[null,"3. Incrementally decrease the Clamp Force"]
[]
[null,"a. Label the Clamp Force on parts with each increment"]
[]
[null,"4. Stop decreasing Clamp Force when flash occurs"]
[]
[null,"5. Identify the acceptable part molded with the lowest tonnage value"]
[]
[null,"a. Document tonnage value as the Minimum Clamp Force"]
[]
[null,"6. Calculate Final Clamp Force (done by ToolBox)"]
[]
[null,"7. Document whether the Clamp Type is a toggle or cylinder type"]
[]
[]
[null,"Define the units being used"]
[]
[]
[null,null,null,null,null,null,"What clamp force units does the machine use?",null,null,null,null,null,null,null,null,null,null,null,null,null,null,null,null,null,null,null,null,null,null,null,null,null,null,null,null,null,null,null,null,null,null,null,null,null,null,{"$f":"IF(AJ44=\"\",\"Ton\",\"\")","v":"Ton"},null,null,{"$f":"IF(AJ44=\"\",\"Tonne\",\"\")","v":"Tonne"},null,null,null,{"$f":"IF(AJ44=\"\",\"KPA\",\"\")","v":"KPA"},null,null,{"$f":"IF(AJ44=\"\",\"%\",\"\")","v":"%"}]
[]
[]
[null,"Clamp force study results"]
[]
[]
[null,null,null,null,null,null,null,"Minimum Clamp Force (no flash)",null,null,null,null,null,null,null,null,null,null,null,null,null,null,null,null,null,null,null,null,null,null,null,null,null,null,null,null,null,null,null,null,null,null,null,null,null,null,null,null,null,{"$f":"IF(AJ44=\"\",\"\",AJ44)","v":""}]
[]
[]
[null,null,null,null,null,null,null,"Final Clamp Force = Min x 1.1",null,null,null,null,null,null,null,null,null,null,null,null,null,null,null,null,null,null,null,null,null,null,null,null,null,null,null,null,null,null,null,null,null,{"$f":"IF(AP50=\"\",\"\",AP50*1.1)","v":""},null,null,null,null,null,null,null,{"$f":"IF(AJ44=\"\",\"\",AJ44)","v":""}]
[]
[]
[null,null,null,null,null,null,"Clamp Type",null,null,null,null,null,null,null,null,null,null,null,null,null,null,null,null,null,null,null,null,null,null,null,null,null,null,null,null,null,null,null,null,null,null,null,null,null,null,null,null,null,null,{"$f":"IF(AP56=\"\",\"Cylinder\",\"\")","v":"Cylinder"},null,null,null,null,{"$f":"IF(AP56=\"\",\"Toggle\",\"\")","v":"Toggle"}]

{"sheet":"Coolant Temp","index":16,"n_rows":65,"n_cols":61,"rows_kept":65,"cut":false,"hidden":false,"merged":[[76,45,77,46],[76,47,77,48],[76,49,77,50],[76,51,77,52],[76,53,77,54],[76,9,77,10],[76,11,77,12],[76,13,77,14],[76,15,77,16],[76,17,77,18],[76,19,77,20],[76,21,77,22],[76,41,77,42],[76,43,77,44],[68,21,71,22],[68,41,71,42],[68,43,71,44],[68,45,71,46],[68,47,71,48],[68,49,71,50],[68,51,71,52],[68,53,71,54],[74,9,75,10],[74,11,75,12],[74,13,75,14],[74,15,75,16],[74,17,75,18],[74,19,75,20],[74,21,75,22],[74,41,75,42],[74,43,75,44],[74,45,75,46],[74,47,75,48],[74,49,75,50],[74,51,75,52],[74,53,75,54],[61,5,62,26],[61,37,62,58],[64,4,79,5],[64,58,79,59],[66,9,67,10],[66,11,67,12],[66,13,67,14],[66,15,67,16],[66,17,67,18],[66,19,67,20],[66,21,67,22],[66,41,67,42],[66,43,67,44],[66,45,67,46],[66,47,67,48],[66,49,67,50],[66,51,67,52],[66,53,67,54],[68,9,71,10],[68,11,71,12],[68,13,71,14],[68,15,71,16],[68,17,71,18],[68,19,71,20],[1,1,5,24],[7,1,10,62],[12,1,13,14],[12,15,13,62],[15,1,17,14],[15,15,17,20],[15,21,17,26],[15,27,17,32],[19,1,20,62],[22,11,23,40],[22,42,23,47],[22,48,23,50],[22,51,23,53],[45,45,46,46],[28,49,29,56],[40,40,41,44],[40,45,41,46],[34,5,35,26],[34,37,35,58],[37,4,41,13],[37,50,41,59],[38,17,39,23],[38,40,39,46],[40,17,41,21],[40,22,41,23],[25,1,26,62],[28,4,29,48],[28,57,29,59],[31,1,32,62],[54,15,55,26],[54,27,55,38],[54,39,55,50],[54,51,55,62],[49,1,50,62],[45,40,46,44],[42,6,43,11],[42,52,43,57],[43,17,44,23],[43,40,44,46],[44,8,45,9],[44,54,45,55],[45,17,46,21],[45,22,46,23],[51,1,52,62],[37,27,47,31],[37,32,47,36],[58,1,59,14],[58,15,59,26],[58,27,59,38],[58,39,59,50],[58,51,59,62],[56,36,57,37],[56,40,57,45],[56,46,57,47],[56,48,57,49],[56,52,57,57],[56,58,57,59],[56,1,57,14],[56,16,57,21],[56,22,57,23],[56,24,57,25],[56,28,57,33],[56,34,57,35],[56,60,57,61]]}
[]
[]
[]
[]
[]
[]
[]
[null,"Part Cooling - Coolant Temperature"]
[]
[]
[]
[]
[null,"Purpose:",null,null,null,null,null,null,null,null,null,null,null,null,null,"Establish the lowest acceptable Coolant Temperature"]
[]
[]
[null,"Equipment Needed:",null,null,null,null,null,null,null,null,null,null,null,null,null,"Safety Glasses",null,null,null,null,null,"Pyrometer w/ Surface Probe",null,null,null,null,null,"Permanent Marker"]
[]
[]
[]
[null,"Define the units being used"]
[]
[]
[null,null,null,null,null,null,null,null,null,null,null,"What temperature units are being used (C/F)?",null,null,null,null,null,null,null,null,null,null,null,null,null,null,null,null,null,null,null,null,null,null,null,null,null,null,null,null,null,null,null,null,null,null,null,null,{"$f":"IF(AQ23=\"\",\"°C\",\"\")","v":"°C"},null,null,{"$f":"IF(AQ23=\"\",\"°F\",\"\")","v":"°F"}]
[]
[]
[null,"Coolant temperature study results"]
[]
[]
[null,null,null,null,"What is the lowest coolant temperature that produces acceptable parts?",null,null,null,null,null,null,null,null,null,null,null,null,null,null,null,null,null,null,null,null,null,null,null,null,null,null,null,null,null,null,null,null,null,null,null,null,null,null,null,null,null,null,null,null,null,null,null,null,null,null,null,null,{"$f":"IF(AQ23=\"\",\"\",AQ23)","v":""}]
[]
[]
[null,"Document the water heater controller settings and IN & OUT temperatures"]
[]
[]
[null,null,null,null,null,"Core controller settings/readings",null,null,null,null,null,null,null,null,null,null,null,null,null,null,null,null,null,null,null,null,null,null,null,null,null,null,null,null,null,null,null,"Cavity controller settings/readings"]
[]
[]
[null,null,null,null,"Core 'B' Side Temp Setting",null,null,null,null,null,null,null,null,null,null,null,null,null,null,null,null,null,null,null,null,null,null,null,null,null,null,null,null,null,null,null,null,null,null,null,null,null,null,null,null,null,null,null,null,null,"Cavity 'A' Side Temp Setting"]
[null,null,null,null,null,null,null,null,null,null,null,null,null,null,null,null,null,"IN Temp",null,null,null,null,null,null,null,null,null,null,null,null,null,null,null,null,null,null,null,null,null,null,"IN Temp"]
[]
[null,null,null,null,null,null,null,null,null,null,null,null,null,null,null,null,null,null,null,null,null,null,{"$f":"IF(AQ23=\"\",\"\",AQ23)","v":""},null,null,null,null,null,null,null,null,null,null,null,null,null,null,null,null,null,null,null,null,null,null,{"$f":"IF(AQ23=\"\",\"\",AQ23)","v":""}]
[]
[]
[null,null,null,null,null,null,null,null,null,null,null,null,null,null,null,null,null,"OUT Temp",null,null,null,null,null,null,null,null,null,null,null,null,null,null,null,null,null,null,null,null,null,null,"OUT Temp"]
[null,null,null,null,null,null,null,null,{"$f":"IF(AQ23=\"\",\"\",AQ23)","v":""},null,null,null,null,null,null,null,null,null,null,null,null,null,null,null,null,null,null,null,null,null,null,null,null,null,null,null,null,null,null,null,null,null,null,null,null,null,null,null,null,null,null,null,null,null,{"$f":"IF(AQ23=\"\",\"\",AQ23)","v":""}]
[null,null,null,null,null,null,null,null,null,null,null,null,null,null,null,null,null,null,null,null,null,null,{"$f":"IF(AQ23=\"\",\"\",AQ23)","v":""},null,null,null,null,null,null,null,null,null,null,null,null,null,null,null,null,null,null,null,null,null,null,{"$f":"IF(AQ23=\"\",\"\",AQ23)","v":""}]
[]
[]
[]
[null,"Document in-mold temperature reading and sketch/map out location of where temp was measured."]
[]
[null,"* Document surface temperature in lettered boxes. Use comments box to note specific locations"]
[]
[]
[null,null,null,null,null,null,null,null,null,null,null,null,null,null,null,"Core 'B' Side 1",null,null,null,null,null,null,null,null,null,null,null,"Core 'B' Side 2",null,null,null,null,null,null,null,null,null,null,null,"Cavity 'A' Side 1",null,null,null,null,null,null,null,null,null,null,null,"Cavity 'A' Side 2"]
[]
[null,"Surface Tempertaure",null,null,null,null,null,null,null,null,null,null,null,null,null,null,null,null,null,null,null,null,{"$f":"IF(AQ23=\"\",\"°C\",IF(AQ23=\"°F\",\"°F\",\"°C\"))","v":"°C"},null,{"$f":"IF(AQ23=\"\",\"°F\",\"\")","v":"°F"},null,null,null,null,null,null,null,null,null,{"$f":"IF(AQ23=\"\",\"°C\",IF(AQ23=\"°F\",\"°F\",\"°C\"))","v":"°C"},null,{"$f":"IF(AQ23=\"\",\"°F\",\"\")","v":"°F"},null,null,null,null,null,null,null,null,null,{"$f":"IF(AQ23=\"\",\"°C\",IF(AQ23=\"°F\",\"°F\",\"°C\"))","v":"°C"},null,{"$f":"IF(AQ23=\"\",\"°F\",\"\")","v":"°F"},null,null,null,null,null,null,null,null,null,{"$f":"IF(AQ23=\"\",\"°C\",IF(AQ23=\"°F\",\"°F\",\"°C\"))","v":"°C"},null,{"$f":"IF(AQ23=\"\",\"°F\",\"\")","v":"°F"}]
[]
[null,"Comments"]
[]
[]
[null,null,null,null,null,"Basic Core 'B' Side Sketch",null,null,null,null,null,null,null,null,null,null,null,null,null,null,null,null,null,null,null,null,null,null,null,null,null,null,null,null,null,null,null,"Basic Cavity 'A' Side Sketch"]
[]
[]
[null,null,null,null,"Operator side",null,null,null,null,null,null,null,null,null,null,null,null,null,null,null,null,null,null,null,null,null,null,null,null,null,null,null,null,null,null,null,null,null,null,null,null,null,null,null,null,null,null,null,null,null,null,null,null,null,null,null,null,null,"Operator Side"]

{"sheet":"Cooling Time","index":17,"n_rows":26,"n_cols":46,"rows_kept":26,"cut":false,"hidden":false,"merged":[[1,1,5,24],[7,1,10,61],[12,1,13,14],[12,15,13,61],[15,1,17,14],[15,15,17,20],[15,21,17,26],[15,27,17,32],[19,1,20,61],[22,1,23,37],[22,38,23,44],[22,45,23,47],[25,1,26,37],[25,38,26,44],[25,45,26,47]]}
[]
[]
[]
[]
[]
[]
[]
[null,"Part Cooling - Cooling Time"]
[]
[]
[]
[]
[null,"Purpose:",null,null,null,null,null,null,null,null,null,null,null,null,null,"Establish an optimal Cooling Time"]
[]
[]
[null,"Equipment Needed:",null,null,null,null,null,null,null,null,null,null,null,null,null,"Safety Glasses",null,null,null,null,null,"Calculator",null,null,null,null,null,"Permanent Marker"]
[]
[]
[]
[null,"Cooling Time Study"]
[]
[]
[null,"Lowest Acceptable Cooling Time",null,null,null,null,null,null,null,null,null,null,null,null,null,null,null,null,null,null,null,null,null,null,null,null,null,null,null,null,null,null,null,null,null,null,null,null,null,null,null,null,null,null,null,"s"]
[]
[]
[null,"Final Cooling Time = (Lowest Time) x 1.1",null,null,null,null,null,null,null,null,null,null,null,null,null,null,null,null,null,null,null,null,null,null,null,null,null,null,null,null,null,null,null,null,null,null,null,null,{"$f":"IF(AM23=\"\",\"\",AM23*1.1)","v":""},null,null,null,null,null,null,"s"]

{"sheet":"Rear Zone Temp.","index":18,"n_rows":59,"n_cols":57,"rows_kept":59,"cut":false,"hidden":false,"merged":[[1,1,5,24],[7,1,10,61],[12,1,13,14],[12,15,13,61],[15,1,17,14],[15,15,17,20],[19,1,20,61],[22,11,23,40],[22,42,23,47],[22,48,23,50],[22,51,23,53],[37,14,38,21],[33,3,34,10],[35,3,36,10],[37,3,38,10],[39,3,40,10],[39,14,40,21],[25,1,26,23],[25,25,26,61],[33,14,34,21],[35,14,36,21],[28,2,31,11],[28,13,29,22],[30,13,31,18],[30,21,31,21],[30,19,31,20],[34,36,34,42],[34,29,34,35],[35,36,35,42],[35,29,35,35],[36,36,36,42],[36,29,36,35],[41,14,42,21],[43,14,44,21],[45,14,46,21],[47,14,48,21],[49,14,50,21],[45,3,46,10],[47,3,48,10],[49,3,50,10],[51,3,52,10],[41,3,42,10],[43,3,44,10],[51,14,52,21],[55,1,56,61],[58,2,59,47],[58,48,59,55],[58,56,59,57],[37,36,37,42],[37,29,37,35],[38,36,38,42],[38,29,38,35],[39,36,39,42],[39,29,39,35],[43,36,43,42],[43,29,43,35],[40,36,40,42],[40,29,40,35],[41,36,41,42],[41,29,41,35],[42,36,42,42],[42,29,42,35]]}
[]
[]
[]
[]
[]
[]
[]
[null,"Screw Recovery - Rear Zone Temperature "]
[]
[]
[]
[]
[null,"Purpose:",null,null,null,null,null,null,null,null,null,null,null,null,null,"Establish an optimal Rear Zone Temperature based on recovery time"]
[]
[]
[null,"Equipment Needed:",null,null,null,null,null,null,null,null,null,null,null,null,null,"Safety Glasses"]
[]
[]
[]
[null,"Define the units being used"]
[]
[]
[null,null,null,null,null,null,null,null,null,null,null,"What temperature units are being used (C/F)?",null,null,null,null,null,null,null,null,null,null,null,null,null,null,null,null,null,null,null,null,null,null,null,null,null,null,null,null,null,null,null,null,null,null,null,null,{"$f":"IF(AQ23=\"\",\"°C\",\"\")","v":"°C"},null,null,{"$f":"IF(AQ23=\"\",\"°F\",\"\")","v":"°F"}]
[]
[]
[null,"Study Matrix",null,null,null,null,null,null,null,null,null,null,null,null,null,null,null,null,null,null,null,null,null,null,null,"Graph"]
[]
[]
[null,null,"Recovery Time (s)",null,null,null,null,null,null,null,null,null,null,"Rear Zone Temp"]
[]
[null,null,null,null,null,null,null,null,null,null,null,null,null,"Temp",null,null,null,null,null,{"$f":"IF(AQ23=\"\",\"\",AQ23)","v":""}]
[]
[]
[]
[null,null,null,null,null,null,null,null,null,null,null,null,null,null,null,null,null,null,null,null,null,null,null,null,null,null,null,null,null,{"$f":"IF(COUNT(O34:V53)=10,O34,\"\")","v":""},null,null,null,null,null,null,{"$f":"IF(COUNT(D34:K53)=10,D34,\"\")","v":""}]
[null,null,null,null,null,null,null,null,null,null,null,null,null,null,null,null,null,null,null,null,null,null,null,null,null,null,null,null,null,{"$f":"IF(COUNT(O34:V53)=10,O36,\"\")","v":""},null,null,null,null,null,null,{"$f":"IF(COUNT(D34:K53)=10,D36,\"\")","v":""}]
[null,null,null,null,null,null,null,null,null,null,null,null,null,null,null,null,null,null,null,null,null,null,null,null,null,null,null,null,null,{"$f":"IF(COUNT(O34:V53)=10,O38,\"\")","v":""},null,null,null,null,null,null,{"$f":"IF(COUNT(D34:K53)=10,D38,\"\")","v":""}]
[null,null,null,null,null,null,null,null,null,null,null,null,null,null,null,null,null,null,null,null,null,null,null,null,null,null,null,null,null,{"$f":"IF(COUNT(O34:V53)=10,O40,\"\")","v":""},null,null,null,null,null,null,{"$f":"IF(COUNT(D34:K53)=10,D40,\"\")","v":""}]
[null,null,null,null,null,null,null,null,null,null,null,null,null,null,null,null,null,null,null,null,null,null,null,null,null,null,null,null,null,{"$f":"IF(COUNT(O34:V53)=10,O42,\"\")","v":""},null,null,null,null,null,null,{"$f":"IF(COUNT(D34:K53)=10,D42,\"\")","v":""}]
[null,null,null,null,null,null,null,null,null,null,null,null,null,null,null,null,null,null,null,null,null,null,null,null,null,null,null,null,null,{"$f":"IF(COUNT(O34:V53)=10,O44,\"\")","v":""},null,null,null,null,null,null,{"$f":"IF(COUNT(D34:K53)=10,D44,\"\")","v":""}]
[null,null,null,null,null,null,null,null,null,null,null,null,null,null,null,null,null,null,null,null,null,null,null,null,null,null,null,null,null,{"$f":"IF(COUNT(O34:V53)=10,O46,\"\")","v":""},null,null,null,null,null,null,{"$f":"IF(COUNT(D34:K53)=10,D46,\"\")","v":""}]
[null,null,null,null,null,null,null,null,null,null,null,null,null,null,null,null,null,null,null,null,null,null,null,null,null,null,null,null,null,{"$f":"IF(COUNT(O34:V53)=10,O48,\"\")","v":""},null,null,null,null,null,null,{"$f":"IF(COUNT(D34:K53)=10,D48,\"\")","v":""}]
[null,null,null,null,null,null,null,null,null,null,null,null,null,null,null,null,null,null,null,null,null,null,null,null,null,null,null,null,null,{"$f":"IF(COUNT(O34:V53)=10,O50,\"\")","v":""},null,null,null,null,null,null,{"$f":"IF(COUNT(D34:K53)=10,D50,\"\")","v":""}]
[null,null,null,null,null,null,null,null,null,null,null,null,null,null,null,null,null,null,null,null,null,null,null,null,null,null,null,null,null,{"$f":"IF(COUNT(O34:V53)=10,O52,\"\")","v":""},null,null,null,null,null,null,{"$f":"IF(COUNT(D34:K53)=10,D52,\"\")","v":""}]
[]
[]
[]
[]
[]
[]
[]
[]
[]
[]
[]
[null,"Rear zone temperature study results"]
[]
[]
[null,null,"Optimal Rear Zone Temperature",null,null,null,null,null,null,null,null,null,null,null,null,null,null,null,null,null,null,null,null,null,null,null,null,null,null,null,null,null,null,null,null,null,null,null,null,null,null,null,null,null,null,null,null,null,null,null,null,null,null,null,null,null,{"$f":"IF(AQ23=\"\",\"\",AQ23)","v":""}]

{"sheet":"Recovery Time","index":19,"n_rows":47,"n_cols":53,"rows_kept":47,"cut":false,"hidden":false,"merged":[[1,1,5,24],[7,1,10,61],[12,1,13,14],[12,15,13,61],[15,1,17,14],[15,15,17,20],[15,21,17,26],[19,1,20,61],[22,10,23,42],[22,43,23,48],[22,49,23,51],[22,52,23,54],[25,1,26,61],[28,40,29,47],[28,48,29,50],[31,40,32,47],[31,48,32,50],[34,40,35,47],[34,48,35,50],[37,1,38,61],[28,14,29,39],[31,14,32,39],[34,8,35,39],[46,12,47,39],[46,40,47,47],[46,48,47,50],[40,14,41,39],[40,40,41,47],[40,48,41,50],[43,40,44,47],[43,48,44,50],[43,12,44,39]]}
[]
[]
[]
[]
[]
[]
[]
[null,"Screw Recovery - Recovery Time"]
[]
[]
[]
[]
[null,"Purpose:",null,null,null,null,null,null,null,null,null,null,null,null,null,"Configure Screw Recovery Time to consume 80% of the Cooling Time"]
[]
[]
[null,"Equipment Needed:",null,null,null,null,null,null,null,null,null,null,null,null,null,"Safety Glasses",null,null,null,null,null,"Calculator"]
[]
[]
[]
[null,"Define the units being used"]
[]
[]
[null,null,null,null,null,null,null,null,null,null,"What units are being used for screw rotation speed?",null,null,null,null,null,null,null,null,null,null,null,null,null,null,null,null,null,null,null,null,null,null,null,null,null,null,null,null,null,null,null,null,null,null,null,null,null,null,{"$f":"IF(AR23=\"\",\"RPM\",\"\")","v":"RPM"},null,null,{"$f":"IF(AR23=\"\",\"%\",\"\")","v":"%"}]
[]
[]
[null,"Calculate the desired screw recovery time"]
[]
[]
[null,null,null,null,null,null,null,null,null,null,null,null,null,null,"Initial Recovery Time",null,null,null,null,null,null,null,null,null,null,null,null,null,null,null,null,null,null,null,null,null,null,null,null,null,null,null,null,null,null,null,null,null,"s"]
[]
[]
[null,null,null,null,null,null,null,null,null,null,null,null,null,null,"Initial Cooling Time",null,null,null,null,null,null,null,null,null,null,null,null,null,null,null,null,null,null,null,null,null,null,null,null,null,null,null,null,null,null,null,null,null,"s"]
[]
[]
[null,null,null,null,null,null,null,null,"Desired Recovery Time = (Cooling Time) x 0.8",null,null,null,null,null,null,null,null,null,null,null,null,null,null,null,null,null,null,null,null,null,null,null,null,null,null,null,null,null,null,null,{"$f":"IF(AO32=\"\",\"\",AO32*0.8)","v":""},null,null,null,null,null,null,null,"s"]
[]
[]
[null,"Final screw recovery adjustments and readings"]
[]
[]
[null,null,null,null,null,null,null,null,null,null,null,null,null,null,"Final Screw Speed",null,null,null,null,null,null,null,null,null,null,null,null,null,null,null,null,null,null,null,null,null,null,null,null,null,null,null,null,null,null,null,null,null,{"$f":"IF(AR23=\"\",\"\",AR23)","v":""}]
[]
[]
[null,null,null,null,null,null,null,null,null,null,null,null,"Final Recovery Time",null,null,null,null,null,null,null,null,null,null,null,null,null,null,null,null,null,null,null,null,null,null,null,null,null,null,null,null,null,null,null,null,null,null,null,"s"]
[]
[]
[null,null,null,null,null,null,null,null,null,null,null,null,"Final Recovery Delay Time",null,null,null,null,null,null,null,null,null,null,null,null,null,null,null,null,null,null,null,null,null,null,null,null,null,null,null,null,null,null,null,null,null,null,null,"s"]

{"sheet":"Mold Opening","index":20,"n_rows":63,"n_cols":55,"rows_kept":63,"cut":false,"hidden":false,"merged":[[19,1,20,61],[1,1,5,24],[7,1,10,61],[12,1,13,14],[12,15,13,61],[15,1,17,14],[15,15,17,20],[28,1,29,61],[25,54,26,56],[22,13,23,34],[22,35,23,42],[22,43,23,45],[22,46,23,48],[22,49,23,51],[25,13,26,34],[25,35,26,42],[25,43,26,46],[25,47,26,50],[25,51,26,53],[62,6,63,33],[62,34,63,41],[47,25,48,33],[47,10,48,18],[47,42,48,50],[50,1,51,61],[53,8,54,33],[53,34,54,41],[62,42,63,45],[59,42,60,45],[56,42,57,45],[53,42,54,45],[56,6,57,33],[56,34,57,41],[59,8,60,33],[59,34,60,41]]}
[]
[]
[]
[]
[]
[]
[]
[null,"Part Removal - Mold Opening"]
[]
[]
[]
[]
[null,"Purpose:",null,null,null,null,null,null,null,null,null,null,null,null,null,"Establish optimal settings for Mold Opening"]
[]
[]
[null,"Equipment Needed:",null,null,null,null,null,null,null,null,null,null,null,null,null,"Safety Glasses"]
[]
[]
[]
[null,"Define the units being used"]
[]
[]
[null,null,null,null,null,null,null,null,null,null,null,null,null,"Machine clamp stroke units",null,null,null,null,null,null,null,null,null,null,null,null,null,null,null,null,null,null,null,null,null,null,null,null,null,null,null,null,null,{"$f":"IF(AJ23=\"\",\"mm\",\"\")","v":"mm"},null,null,{"$f":"IF(AJ23=\"\",\"in\",\"\")","v":"in"},null,null,{"$f":"IF(AJ23=\"\",\"cm\",\"\")","v":"cm"}]
[]
[]
[null,null,null,null,null,null,null,null,null,null,null,null,null,"Machine clamp speed units",null,null,null,null,null,null,null,null,null,null,null,null,null,null,null,null,null,null,null,null,null,null,null,null,null,null,null,null,null,{"$f":"IF(AJ26=\"\",\"mm/s\",\"\")","v":"mm/s"},null,null,null,{"$f":"IF(AJ26=\"\",\"in/s\",\"\")","v":"in/s"},null,null,null,{"$f":"IF(AJ26=\"\",\"cm/s\",\"\")","v":"cm/s"},null,null,{"$f":"IF(AJ26=\"\",\"%\",\"\")","v":"%"}]
[]
[]
[null,"Mold Opening Settings"]
[]
[]
[]
[]
[]
[]
[]
[]
[]
[]
[]
[]
[]
[]
[]
[]
[]
[]
[null,null,null,null,null,null,null,null,null,null,"Mold Open",null,null,null,null,null,null,null,null,null,null,null,null,null,null,"Open Fast",null,null,null,null,null,null,null,null,null,null,null,null,null,null,null,null,"Breakaway"]
[]
[]
[null,"Mold opening settings"]
[]
[]
[null,null,null,null,null,null,null,null,"Mold Breakaway Distance",null,null,null,null,null,null,null,null,null,null,null,null,null,null,null,null,null,null,null,null,null,null,null,null,null,null,null,null,null,null,null,null,null,{"$f":"IF(AJ23=\"\",\"\",AJ23)","v":""}]
[]
[]
[null,null,null,null,null,null,"Mold Breakaway Speed",null,null,null,null,null,null,null,null,null,null,null,null,null,null,null,null,null,null,null,null,null,null,null,null,null,null,null,null,null,null,null,null,null,null,null,{"$f":"IF(AJ26=\"\",\"\",AJ26)","v":""}]
[]
[]
[null,null,null,null,null,null,null,null,"Mold Breakaway Distance",null,null,null,null,null,null,null,null,null,null,null,null,null,null,null,null,null,null,null,null,null,null,null,null,null,null,null,null,null,null,null,null,null,{"$f":"IF(AJ23=\"\",\"\",AJ23)","v":""}]
[]
[]
[null,null,null,null,null,null,"Mold Breakaway Speed",null,null,null,null,null,null,null,null,null,null,null,null,null,null,null,null,null,null,null,null,null,null,null,null,null,null,null,null,null,null,null,null,null,null,null,{"$f":"IF(AJ26=\"\",\"\",AJ26)","v":""}]

{"sheet":"Part Ejection","index":21,"n_rows":53,"n_cols":55,"rows_kept":53,"cut":false,"hidden":false,"merged":[[46,43,47,50],[46,51,47,54],[43,9,44,42],[43,43,44,50],[43,51,44,54],[46,6,47,42],[52,9,53,42],[52,43,53,50],[52,51,53,54],[49,9,50,42],[49,43,50,50],[49,51,50,54],[40,9,41,42],[40,43,41,50],[40,51,41,54],[37,9,38,42],[37,43,38,50],[37,51,38,54],[22,49,23,51],[19,1,20,61],[34,9,35,42],[34,43,35,50],[34,51,35,54],[31,9,32,42],[31,43,32,50],[31,51,32,54],[25,54,26,56],[28,1,29,61],[25,13,26,34],[25,35,26,42],[25,43,26,46],[25,47,26,50],[25,51,26,53],[22,13,23,34],[22,35,23,42],[22,43,23,45],[22,46,23,48],[1,1,5,24],[7,1,10,61],[12,1,13,14],[12,15,13,61],[15,1,17,14],[15,15,17,20]]}
[]
[]
[]
[]
[]
[]
[]
[null,"Part Removal - Part Ejection"]
[]
[]
[]
[]
[null,"Purpose:",null,null,null,null,null,null,null,null,null,null,null,null,null,"To establish optimal settings for part ejection from mold."]
[]
[]
[null,"Equipment Needed:",null,null,null,null,null,null,null,null,null,null,null,null,null,"Safety Glasses"]
[]
[]
[]
[null,"Define the units being used"]
[]
[]
[null,null,null,null,null,null,null,null,null,null,null,null,null,"Machine ejection stroke units",null,null,null,null,null,null,null,null,null,null,null,null,null,null,null,null,null,null,null,null,null,null,null,null,null,null,null,null,null,{"$f":"IF(AJ23=\"\",\"mm\",\"\")","v":"mm"},null,null,{"$f":"IF(AJ23=\"\",\"in\",\"\")","v":"in"},null,null,{"$f":"IF(AJ23=\"\",\"cm\",\"\")","v":"cm"}]
[]
[]
[null,null,null,null,null,null,null,null,null,null,null,null,null,"Machine ejection speed units",null,null,null,null,null,null,null,null,null,null,null,null,null,null,null,null,null,null,null,null,null,null,null,null,null,null,null,null,null,{"$f":"IF(AJ26=\"\",\"mm/s\",\"\")","v":"mm/s"},null,null,null,{"$f":"IF(AJ26=\"\",\"in/s\",\"\")","v":"in/s"},null,null,null,{"$f":"IF(AJ26=\"\",\"cm/s\",\"\")","v":"cm/s"},null,null,{"$f":"IF(AJ26=\"\",\"%\",\"\")","v":"%"}]
[]
[]
[null,"Part Ejection Settings"]
[]
[]
[null,null,null,null,null,null,null,null,null,"Ejection Forward Slow Speed",null,null,null,null,null,null,null,null,null,null,null,null,null,null,null,null,null,null,null,null,null,null,null,null,null,null,null,null,null,null,null,null,null,null,null,null,null,null,null,null,null,{"$f":"IF(AJ26=\"\",\"\",AJ26)","v":""}]
[]
[]
[null,null,null,null,null,null,null,null,null,"Ejection Forward Slow Distance",null,null,null,null,null,null,null,null,null,null,null,null,null,null,null,null,null,null,null,null,null,null,null,null,null,null,null,null,null,null,null,null,null,null,null,null,null,null,null,null,null,{"$f":"IF(AJ23=\"\",\"\",AJ23)","v":""}]
[]
[]
[null,null,null,null,null,null,null,null,null,"Ejection Forward Fast Speed",null,null,null,null,null,null,null,null,null,null,null,null,null,null,null,null,null,null,null,null,null,null,null,null,null,null,null,null,null,null,null,null,null,null,null,null,null,null,null,null,null,{"$f":"IF(AJ26=\"\",\"\",AJ26)","v":""}]
[]
[]
[null,null,null,null,null,null,null,null,null,"Final Ejection Forward Distance",null,null,null,null,null,null,null,null,null,null,null,null,null,null,null,null,null,null,null,null,null,null,null,null,null,null,null,null,null,null,null,null,null,null,null,null,null,null,null,null,null,{"$f":"IF(AJ23=\"\",\"\",AJ23)","v":""}]
[]
[]
[null,null,null,null,null,null,null,null,null,"Ejection Delay (optional)?",null,null,null,null,null,null,null,null,null,null,null,null,null,null,null,null,null,null,null,null,null,null,null,null,null,null,null,null,null,null,null,null,null,null,null,null,null,null,null,null,null,"s"]
[]
[]
[null,null,null,null,null,null,"Eject on the Fly Start Position (optional)?",null,null,null,null,null,null,null,null,null,null,null,null,null,null,null,null,null,null,null,null,null,null,null,null,null,null,null,null,null,null,null,null,null,null,null,null,null,null,null,null,null,null,null,null,{"$f":"IF(AJ23=\"\",\"\",AJ23)","v":""}]
[]
[]
[null,null,null,null,null,null,null,null,null,"Ejection Retract Speed",null,null,null,null,null,null,null,null,null,null,null,null,null,null,null,null,null,null,null,null,null,null,null,null,null,null,null,null,null,null,null,null,null,null,null,null,null,null,null,null,null,{"$f":"IF(AJ26=\"\",\"\",AJ26)","v":""}]
[]
[]
[null,null,null,null,null,null,null,null,null,"Ejection Retract Distance",null,null,null,null,null,null,null,null,null,null,null,null,null,null,null,null,null,null,null,null,null,null,null,null,null,null,null,null,null,null,null,null,null,null,null,null,null,null,null,null,null,{"$f":"IF(AJ23=\"\",\"\",AJ23)","v":""}]

{"sheet":"Mold Closing","index":22,"n_rows":60,"n_cols":55,"rows_kept":60,"cut":false,"hidden":false,"merged":[[1,1,5,24],[7,1,10,61],[12,1,13,14],[12,15,13,61],[15,1,17,14],[15,15,17,20],[19,1,20,61],[28,1,29,61],[22,13,23,34],[22,35,23,42],[22,43,23,45],[22,46,23,48],[22,49,23,51],[50,1,51,61],[25,13,26,34],[25,35,26,42],[25,43,26,46],[25,47,26,50],[25,51,26,53],[25,54,26,56],[47,46,48,54],[47,27,48,35],[53,8,54,33],[53,34,54,41],[53,42,54,44],[59,6,60,33],[59,34,60,41],[59,42,60,44],[56,6,57,33],[56,34,57,41],[56,42,57,44]]}
[]
[]
[]
[]
[]
[]
[]
[null,"Part Removal - Mold Closing"]
[]
[]
[]
[]
[null,"Purpose:",null,null,null,null,null,null,null,null,null,null,null,null,null,"Establish optimal settings for Mold Closing"]
[]
[]
[null,"Equipment Needed:",null,null,null,null,null,null,null,null,null,null,null,null,null,"Safety Glasses"]
[]
[]
[]
[null,"Define the units being used"]
[]
[]
[null,null,null,null,null,null,null,null,null,null,null,null,null,"Machine clamp stroke units",null,null,null,null,null,null,null,null,null,null,null,null,null,null,null,null,null,null,null,null,null,null,null,null,null,null,null,null,null,{"$f":"IF(AJ23=\"\",\"mm\",\"\")","v":"mm"},null,null,{"$f":"IF(AJ23=\"\",\"in\",\"\")","v":"in"},null,null,{"$f":"IF(AJ23=\"\",\"cm\",\"\")","v":"cm"}]
[]
[]
[null,null,null,null,null,null,null,null,null,null,null,null,null,"Machine clamp speed units",null,null,null,null,null,null,null,null,null,null,null,null,null,null,null,null,null,null,null,null,null,null,null,null,null,null,null,null,null,{"$f":"IF(AJ26=\"\",\"mm/s\",\"\")","v":"mm/s"},null,null,null,{"$f":"IF(AJ26=\"\",\"in/s\",\"\")","v":"in/s"},null,null,null,{"$f":"IF(AJ26=\"\",\"cm/s\",\"\")","v":"cm/s"},null,null,{"$f":"IF(AJ26=\"\",\"%\",\"\")","v":"%"}]
[]
[]
[null,"Mold closing diagram"]
[]
[]
[]
[]
[]
[]
[]
[]
[]
[]
[]
[]
[]
[]
[]
[]
[]
[]
[null,null,null,null,null,null,null,null,null,null,null,null,null,null,null,null,null,null,null,null,null,null,null,null,null,null,null,"Close Fast",null,null,null,null,null,null,null,null,null,null,null,null,null,null,null,null,null,null,"Close Slow"]
[]
[]
[null,"Mold closing settings"]
[]
[]
[null,null,null,null,null,null,null,null,"Mold Close Fast Distance",null,null,null,null,null,null,null,null,null,null,null,null,null,null,null,null,null,null,null,null,null,null,null,null,null,null,null,null,null,null,null,null,null,{"$f":"IF(AJ23=\"\",\"\",AJ23)","v":""}]
[]
[]
[null,null,null,null,null,null,"Mold Close Fast Speed",null,null,null,null,null,null,null,null,null,null,null,null,null,null,null,null,null,null,null,null,null,null,null,null,null,null,null,null,null,null,null,null,null,null,null,{"$f":"IF(AJ23=\"\",\"\",AJ23)","v":""}]
[]
[]
[null,null,null,null,null,null,"Mold Close Slow Speed",null,null,null,null,null,null,null,null,null,null,null,null,null,null,null,null,null,null,null,null,null,null,null,null,null,null,null,null,null,null,null,null,null,null,null,{"$f":"IF(AJ26=\"\",\"\",AJ26)","v":""}]

{"sheet":"Mold Protection","index":23,"n_rows":58,"n_cols":55,"rows_kept":58,"cut":false,"hidden":false,"merged":[[57,12,58,45],[57,46,58,53],[57,54,58,57],[25,51,26,53],[28,1,29,61],[54,1,55,61],[25,54,26,56],[25,13,26,34],[25,35,26,42],[25,43,26,46],[25,47,26,50],[31,32,32,40],[22,13,23,34],[22,35,23,42],[22,43,23,45],[22,46,23,48],[22,49,23,51],[19,1,20,61],[1,1,5,24],[7,1,10,61],[12,1,13,14],[12,15,13,61],[15,1,17,14],[15,15,17,20],[15,21,17,26]]}
[]
[]
[]
[]
[]
[]
[]
[null,"Part Removal - Mold Protect Force"]
[]
[]
[]
[]
[null,"Purpose:",null,null,null,null,null,null,null,null,null,null,null,null,null,"To establish the optimal settings for mold protection."]
[]
[]
[null,"Equipment Needed:",null,null,null,null,null,null,null,null,null,null,null,null,null,"Safety Glasses",null,null,null,null,null,"Business Cards or Cardboard Strips"]
[]
[]
[]
[null,"Define the units being used"]
[]
[]
[null,null,null,null,null,null,null,null,null,null,null,null,null,"Machine clamp stroke units",null,null,null,null,null,null,null,null,null,null,null,null,null,null,null,null,null,null,null,null,null,null,null,null,null,null,null,null,null,{"$f":"IF(AJ23=\"\",\"mm\",\"\")","v":"mm"},null,null,{"$f":"IF(AJ23=\"\",\"in\",\"\")","v":"in"},null,null,{"$f":"IF(AJ23=\"\",\"cm\",\"\")","v":"cm"}]
[]
[]
[null,null,null,null,null,null,null,null,null,null,null,null,null,"Mold protect force units",null,null,null,null,null,null,null,null,null,null,null,null,null,null,null,null,null,null,null,null,null,null,null,null,null,null,null,null,null,{"$f":"IF(AJ26=\"\",\"Ton\",\"\")","v":"Ton"},null,null,null,{"$f":"IF(AJ26=\"\",\"Tonne\",\"\")","v":"Tonne"},null,null,null,{"$f":"IF(AJ26=\"\",\"KPA\",\"\")","v":"KPA"},null,null,{"$f":"IF(AJ26=\"\",\"%\",\"\")","v":"%"}]
[]
[]
[null,"Mold Protection Diagram"]
[]
[]
[null,null,null,null,null,null,null,null,null,null,null,null,null,null,null,null,null,null,null,null,null,null,null,null,null,null,null,null,null,null,null,null,"Mold Protect"]
[]
[]
[]
[]
[]
[]
[]
[]
[]
[]
[]
[]
[]
[]
[]
[]
[]
[]
[]
[]
[]
[]
[null,"Mold protection settings"]
[]
[]
[null,null,null,null,null,null,null,null,null,null,null,null,"Mold Protect Force",null,null,null,null,null,null,null,null,null,null,null,null,null,null,null,null,null,null,null,null,null,null,null,null,null,null,null,null,null,null,null,null,null,null,null,null,null,null,null,null,null,{"$f":"IF(AJ26=\"\",\"\",AJ26)","v":""}]

{"sheet":"Comparative Rheology","index":24,"n_rows":221,"n_cols":52,"rows_kept":221,"cut":false,"hidden":false,"merged":[[216,21,217,27],[100,10,101,30],[100,31,101,53],[132,10,133,30],[132,31,133,53],[165,18,165,19],[165,13,165,14],[65,48,66,54],[38,31,39,53],[38,10,39,30],[69,10,70,30],[69,31,70,53],[63,48,64,54],[61,9,62,11],[61,12,62,18],[61,21,62,27],[61,30,62,36],[61,39,62,45],[61,48,62,54],[59,9,60,11],[59,12,60,18],[59,21,60,27],[59,30,60,36],[59,39,60,45],[65,5,66,8],[65,9,66,11],[65,12,66,18],[65,21,66,27],[65,30,66,36],[65,39,66,45],[63,9,64,11],[63,12,64,18],[63,21,64,27],[63,30,64,36],[63,39,64,45],[59,48,60,54],[57,9,58,11],[57,12,58,18],[57,21,58,27],[57,30,58,36],[57,39,58,45],[57,48,58,54],[55,9,56,11],[55,12,56,18],[55,21,56,27],[55,30,56,36],[55,39,56,45],[55,48,56,54],[53,9,54,11],[53,12,54,18],[53,21,54,27],[53,30,54,36],[53,39,54,45],[53,48,54,54],[51,9,52,11],[51,12,52,18],[51,21,52,27],[51,30,52,36],[51,39,52,45],[51,48,52,54],[49,9,50,11],[49,12,50,18],[49,21,50,27],[49,30,50,36],[49,39,50,45],[49,48,50,54],[44,34,45,37],[44,38,45,46],[44,47,45,55],[47,5,48,8],[47,9,48,11],[47,12,48,18],[47,21,48,27],[47,30,48,36],[47,39,48,45],[47,48,48,54],[96,48,97,54],[42,11,43,19],[42,20,43,28],[42,29,43,37],[42,38,43,46],[42,47,43,55],[44,11,45,19],[44,20,45,28],[44,29,45,33],[96,5,97,8],[96,9,97,11],[96,12,97,18],[96,21,97,27],[96,30,97,36],[96,39,97,45],[94,9,95,11],[94,12,95,18],[94,21,95,27],[94,30,95,36],[94,39,95,45],[94,48,95,54],[92,9,93,11],[92,12,93,18],[92,21,93,27],[92,30,93,36],[92,39,93,45],[92,48,93,54],[90,9,91,11],[90,12,91,18],[90,21,91,27],[90,30,91,36],[90,39,91,45],[90,48,91,54],[88,9,89,11],[88,12,89,18],[88,21,89,27],[88,30,89,36],[88,39,89,45],[88,48,89,54],[86,9,87,11],[86,12,87,18],[86,21,87,27],[86,30,87,36],[86,39,87,45],[86,48,87,54],[84,9,85,11],[84,12,85,18],[84,21,85,27],[84,30,85,36],[84,39,85,45],[84,48,85,54],[82,9,83,11],[82,12,83,18],[82,21,83,27],[82,30,83,36],[82,39,83,45],[82,48,83,54],[80,9,81,11],[80,12,81,18],[80,21,81,27],[80,30,81,36],[80,39,81,45],[80,48,81,54],[75,34,76,37],[75,38,76,46],[75,47,76,55],[78,5,79,8],[78,9,79,11],[78,12,79,18],[78,21,79,27],[78,30,79,36],[78,39,79,45],[78,48,79,54],[127,48,128,54],[73,11,74,19],[73,20,74,28],[73,29,74,37],[73,38,74,46],[73,47,74,55],[75,11,76,19],[75,20,76,28],[75,29,76,33],[125,48,126,54],[123,9,124,11],[123,12,124,18],[123,21,124,27],[123,30,124,36],[123,39,124,45],[123,48,124,54],[121,9,122,11],[121,12,122,18],[121,21,122,27],[121,30,122,36],[121,39,122,45],[121,48,122,54],[119,9,120,11],[119,12,120,18],[127,5,128,8],[127,9,128,11],[127,12,128,18],[127,21,128,27],[127,30,128,36],[127,39,128,45],[125,9,126,11],[125,12,126,18],[125,21,126,27],[125,30,126,36],[125,39,126,45],[119,21,120,27],[119,30,120,36],[119,39,120,45],[119,48,120,54],[117,9,118,11],[117,12,118,18],[117,21,118,27],[117,30,118,36],[117,39,118,45],[117,48,118,54],[115,9,116,11],[115,12,116,18],[115,21,116,27],[115,30,116,36],[115,39,116,45],[115,48,116,54],[113,9,114,11],[113,12,114,18],[113,21,114,27],[113,30,114,36],[113,39,114,45],[113,48,114,54],[111,9,112,11],[111,12,112,18],[111,21,112,27],[111,30,112,36],[111,39,112,45],[111,48,112,54],[109,5,110,8],[109,9,110,11],[109,12,110,18],[109,21,110,27],[109,30,110,36],[109,39,110,45],[220,1,221,62],[159,48,160,54],[159,5,160,8],[159,9,160,11],[159,12,160,18],[159,21,160,27],[159,30,160,36],[159,39,160,45],[157,9,158,11],[157,12,158,18],[157,21,158,27],[157,30,158,36],[157,39,158,45],[157,48,158,54],[216,28,217,34],[216,35,217,41],[216,42,217,48],[165,8,165,9],[165,3,165,4],[216,1,217,20],[214,21,215,27],[214,28,215,34],[214,35,215,41],[214,42,215,48],[155,9,156,11],[155,12,156,18],[155,21,156,27],[155,30,156,36],[155,39,156,45],[155,48,156,54],[153,9,154,11],[153,12,154,18],[153,21,154,27],[153,30,154,36],[153,39,154,45],[153,48,154,54],[151,9,152,11],[151,12,152,18],[151,21,152,27],[151,30,152,36],[151,39,152,45],[151,48,152,54],[149,9,150,11],[149,12,150,18],[149,21,150,27],[149,30,150,36],[149,39,150,45],[149,48,150,54],[147,9,148,11],[147,12,148,18],[147,21,148,27],[147,30,148,36],[147,39,148,45],[147,48,148,54],[145,9,146,11],[145,12,146,18],[145,21,146,27],[145,30,146,36],[145,39,146,45],[145,48,146,54],[141,48,142,54],[143,9,144,11],[143,12,144,18],[143,21,144,27],[143,30,144,36],[143,39,144,45],[143,48,144,54],[141,5,142,8],[141,9,142,11],[141,12,142,18],[141,21,142,27],[141,30,142,36],[141,39,142,45],[138,11,139,19],[138,20,139,28],[138,29,139,33],[138,34,139,37],[138,38,139,46],[138,47,139,55],[33,1,36,62],[136,11,137,19],[136,20,137,28],[136,29,137,37],[136,38,137,46],[136,47,137,55],[104,11,105,19],[104,20,105,28],[104,29,105,37],[104,38,105,46],[104,47,105,55],[106,11,107,19],[106,20,107,28],[106,29,107,33],[106,34,107,37],[106,38,107,46],[106,47,107,55],[109,48,110,54],[25,51,26,53],[28,10,29,31],[28,32,29,39],[28,40,29,43],[28,44,29,47],[28,48,29,50],[28,51,29,53],[22,1,23,62],[25,10,26,31],[25,32,26,39],[25,40,26,42],[25,43,26,45],[25,46,26,47],[25,48,26,50],[19,1,20,62],[1,1,5,24],[7,1,10,62],[12,1,13,14],[12,15,13,62],[15,1,17,14],[15,15,17,20],[15,21,17,26]]}
[]
[]
[]
[]
[]
[]
[]
[null,"Adanced - Comparative Rheology"]
[]
[]
[]
[]
[null,"Purpose:",null,null,null,null,null,null,null,null,null,null,null,null,null,"Generate a Rheology Curve and determine the optimal 1st Stage Injection Time"]
[]
[]
[null,"Equipment Needed:",null,null,null,null,null,null,null,null,null,null,null,null,null,"Safety Glasses",null,null,null,null,null,"Calculator"]
[]
[]
[]
[null,"*Before continuing; make sure the mold can run short shots safely without damaging the mold"]
[]
[]
[null,"Define the machine and machine units being used"]
[]
[]
[null,null,null,null,null,null,null,null,null,null,"Machine injection pressure units?",null,null,null,null,null,null,null,null,null,null,null,null,null,null,null,null,null,null,null,null,null,null,null,null,null,null,null,null,null,{"$f":"IF(AG26=\"\",\"psi\",\"\")","v":"psi"},null,null,{"$f":"IF(AG26=\"\",\"bar\",\"\")","v":"bar"},null,null,{"$f":"IF(AG26=\"\",\"%\",\"\")","v":"%"},null,{"$f":"IF(AG26=\"\",\"kgf/c\",\"\")","v":"kgf/c"},null,null,{"$f":"IF(AG26=\"\",\"MPa\",\"\")","v":"MPa"}]
[]
[]
[null,null,null,null,null,null,null,null,null,null,"1st stage injection speed units used?",null,null,null,null,null,null,null,null,null,null,null,null,null,null,null,null,null,null,null,null,null,null,null,null,null,null,null,null,null,{"$f":"IF(AG29=\"\",\"mm/s\",\"\")","v":"mm/s"},null,null,null,{"$f":"IF(AG29=\"\",\"in/s\",\"\")","v":"in/s"},null,null,null,{"$f":"IF(AG29=\"\",\"cm/s\",\"\")","v":"cm/s"},null,null,{"$f":"IF(AG29=\"\",\"%\",\"\")","v":"%"}]
[]
[]
[]
[]
[null,"Adanced - Comparative Rheology"]
[]
[]
[]
[]
[null,null,null,null,null,null,null,null,null,null,"Unique Characteristic of Material A"]
[]
[]
[]
[null,null,null,null,null,null,null,null,null,null,null,"1st Stage Speed",null,null,null,null,null,null,null,null,"1st Stage Time",null,null,null,null,null,null,null,null,"1st Stage Tranfer",null,null,null,null,null,null,null,null,"Shear rate",null,null,null,null,null,null,null,null,"Relative viscosity"]
[]
[null,null,null,null,null,null,null,null,null,null,null,{"$f":"IF(AG29=\"mm/s\",\"(mm/s)\",IF(AG29=\"in/s\",\"(in/s)\",IF(AG29=\"cm/s\",\"(cm/s)\",IF(AG29=\"%\",\"(%)\",\"\"))))","v":""},null,null,null,null,null,null,null,null,"(s)",null,null,null,null,null,null,null,null,"Pressure",null,null,null,null,{"$f":"IF(AG26=\"psi\",\"(psi)\",IF(AG26=\"bar\",\"(bar)\",IF(AG26=\"%\",\"(%)\",IF(AG26=\"kgf/c\",\"(kgf/c)\",IF(AG26=\"MPa\",\"(MPa)\",\"\")))))","v":""},null,null,null,"(= 1/time)",null,null,null,null,null,null,null,null,"(= pressure*time)"]
[]
[]
[null,null,null,null,null,"Fast",null,null,null,1,null,null,null,null,null,null,null,null,null,null,null,null,null,null,null,null,null,null,null,null,null,null,null,null,null,null,null,null,null,{"$f":"IF(V48=\"\",\"\",1/V48)","v":""},null,null,null,null,null,null,null,null,{"$f":"IF(AE48=\"\",\"\",AE48*V48)","v":""}]
[]
[null,null,null,null,null,null,null,null,null,2,null,null,null,null,null,null,null,null,null,null,null,null,null,null,null,null,null,null,null,null,null,null,null,null,null,null,null,null,null,{"$f":"IF(V50=\"\",\"\",1/V50)","v":""},null,null,null,null,null,null,null,null,{"$f":"IF(AE50=\"\",\"\",AE50*V50)","v":""}]
[]
[null,null,null,null,null,null,null,null,null,3,null,null,null,null,null,null,null,null,null,null,null,null,null,null,null,null,null,null,null,null,null,null,null,null,null,null,null,null,null,{"$f":"IF(V52=\"\",\"\",1/V52)","v":""},null,null,null,null,null,null,null,null,{"$f":"IF(AE52=\"\",\"\",AE52*V52)","v":""}]
[]
[null,null,null,null,null,null,null,null,null,4,null,null,null,null,null,null,null,null,null,null,null,null,null,null,null,null,null,null,null,null,null,null,null,null,null,null,null,null,null,{"$f":"IF(V54=\"\",\"\",1/V54)","v":""},null,null,null,null,null,null,null,null,{"$f":"IF(AE54=\"\",\"\",AE54*V54)","v":""}]
[]
[null,null,null,null,null,null,null,null,null,5,null,null,null,null,null,null,null,null,null,null,null,null,null,null,null,null,null,null,null,null,null,null,null,null,null,null,null,null,null,{"$f":"IF(V56=\"\",\"\",1/V56)","v":""},null,null,null,null,null,null,null,null,{"$f":"IF(AE56=\"\",\"\",AE56*V56)","v":""}]
[]
[null,null,null,null,null,null,null,null,null,6,null,null,null,null,null,null,null,null,null,null,null,null,null,null,null,null,null,null,null,null,null,null,null,null,null,null,null,null,null,{"$f":"IF(V58=\"\",\"\",1/V58)","v":""},null,null,null,null,null,null,null,null,{"$f":"IF(AE58=\"\",\"\",AE58*V58)","v":""}]
[]
[null,null,null,null,null,null,null,null,null,7,null,null,null,null,null,null,null,null,null,null,null,null,null,null,null,null,null,null,null,null,null,null,null,null,null,null,null,null,null,{"$f":"IF(V60=\"\",\"\",1/V60)","v":""},null,null,null,null,null,null,null,null,{"$f":"IF(AE60=\"\",\"\",AE60*V60)","v":""}]
[]
[null,null,null,null,null,null,null,null,null,8,null,null,null,null,null,null,null,null,null,null,null,null,null,null,null,null,null,null,null,null,null,null,null,null,null,null,null,null,null,{"$f":"IF(V62=\"\",\"\",1/V62)","v":""},null,null,null,null,null,null,null,null,{"$f":"IF(AE62=\"\",\"\",AE62*V62)","v":""}]
[]
[null,null,null,null,null,null,null,null,null,9,null,null,null,null,null,null,null,null,null,null,null,null,null,null,null,null,null,null,null,null,null,null,null,null,null,null,null,null,null,{"$f":"IF(V64=\"\",\"\",1/V64)","v":""},null,null,null,null,null,null,null,null,{"$f":"IF(AE64=\"\",\"\",AE64*V64)","v":""}]
[]
[null,null,null,null,null,"Slow",null,null,null,10,null,null,null,null,null,null,null,null,null,null,null,null,null,null,null,null,null,null,null,null,null,null,null,null,null,null,null,null,null,{"$f":"IF(V66=\"\",\"\",1/V66)","v":""},null,null,null,null,null,null,null,null,{"$f":"IF(AE66=\"\",\"\",AE66*V66)","v":""}]
[]
[]
[]
[null,null,null,null,null,null,null,null,null,null,"Unique Characteristic of Material B"]
[]
[]
[]
[null,null,null,null,null,null,null,null,null,null,null,"1st Stage Speed",null,null,null,null,null,null,null,null,"1st Stage Time",null,null,null,null,null,null,null,null,"1st Stage Tranfer",null,null,null,null,null,null,null,null,"Shear rate",null,null,null,null,null,null,null,null,"Relative viscosity"]
[]
[null,null,null,null,null,null,null,null,null,null,null,{"$f":"IF(AG29=\"mm/s\",\"(mm/s)\",IF(AG29=\"in/s\",\"(in/s)\",IF(AG29=\"cm/s\",\"(cm/s)\",IF(AG29=\"%\",\"(%)\",\"\"))))","v":""},null,null,null,null,null,null,null,null,"(s)",null,null,null,null,null,null,null,null,"Pressure",null,null,null,null,{"$f":"IF(AG26=\"psi\",\"(psi)\",IF(AG26=\"bar\",\"(bar)\",IF(AG26=\"%\",\"(%)\",IF(AG26=\"kgf/c\",\"(kgf/c)\",IF(AG26=\"MPa\",\"(MPa)\",\"\")))))","v":""},null,null,null,"(= 1/time)",null,null,null,null,null,null,null,null,"(= pressure*time)"]
[]
[]
[null,null,null,null,null,"Fast",null,null,null,1,null,null,null,null,null,null,null,null,null,null,null,null,null,null,null,null,null,null,null,null,null,null,null,null,null,null,null,null,null,{"$f":"IF(V79=\"\",\"\",1/V79)","v":""},null,null,null,null,null,null,null,null,{"$f":"IF(AE79=\"\",\"\",AE79*V79)","v":""}]
[]
[null,null,null,null,null,null,null,null,null,2,null,null,null,null,null,null,null,null,null,null,null,null,null,null,null,null,null,null,null,null,null,null,null,null,null,null,null,null,null,{"$f":"IF(V81=\"\",\"\",1/V81)","v":""},null,null,null,null,null,null,null,null,{"$f":"IF(AE81=\"\",\"\",AE81*V81)","v":""}]
[]
[null,null,null,null,null,null,null,null,null,3,null,null,null,null,null,null,null,null,null,null,null,null,null,null,null,null,null,null,null,null,null,null,null,null,null,null,null,null,null,{"$f":"IF(V83=\"\",\"\",1/V83)","v":""},null,null,null,null,null,null,null,null,{"$f":"IF(AE83=\"\",\"\",AE83*V83)","v":""}]
[]
[null,null,null,null,null,null,null,null,null,4,null,null,null,null,null,null,null,null,null,null,null,null,null,null,null,null,null,null,null,null,null,null,null,null,null,null,null,null,null,{"$f":"IF(V85=\"\",\"\",1/V85)","v":""},null,null,null,null,null,null,null,null,{"$f":"IF(AE85=\"\",\"\",AE85*V85)","v":""}]
[]
[null,null,null,null,null,null,null,null,null,5,null,null,null,null,null,null,null,null,null,null,null,null,null,null,null,null,null,null,null,null,null,null,null,null,null,null,null,null,null,{"$f":"IF(V87=\"\",\"\",1/V87)","v":""},null,null,null,null,null,null,null,null,{"$f":"IF(AE87=\"\",\"\",AE87*V87)","v":""}]
[]
[null,null,null,null,null,null,null,null,null,6,null,null,null,null,null,null,null,null,null,null,null,null,null,null,null,null,null,null,null,null,null,null,null,null,null,null,null,null,null,{"$f":"IF(V89=\"\",\"\",1/V89)","v":""},null,null,null,null,null,null,null,null,{"$f":"IF(AE89=\"\",\"\",AE89*V89)","v":""}]
[]
[null,null,null,null,null,null,null,null,null,7,null,null,null,null,null,null,null,null,null,null,null,null,null,null,null,null,null,null,null,null,null,null,null,null,null,null,null,null,null,{"$f":"IF(V91=\"\",\"\",1/V91)","v":""},null,null,null,null,null,null,null,null,{"$f":"IF(AE91=\"\",\"\",AE91*V91)","v":""}]
[]
[null,null,null,null,null,null,null,null,null,8,null,null,null,null,null,null,null,null,null,null,null,null,null,null,null,null,null,null,null,null,null,null,null,null,null,null,null,null,null,{"$f":"IF(V93=\"\",\"\",1/V93)","v":""},null,null,null,null,null,null,null,null,{"$f":"IF(AE93=\"\",\"\",AE93*V93)","v":""}]
[]
[null,null,null,null,null,null,null,null,null,9,null,null,null,null,null,null,null,null,null,null,null,null,null,null,null,null,null,null,null,null,null,null,null,null,null,null,null,null,null,{"$f":"IF(V95=\"\",\"\",1/V95)","v":""},null,null,null,null,null,null,null,null,{"$f":"IF(AE95=\"\",\"\",AE95*V95)","v":""}]
[]
[null,null,null,null,null,"Slow",null,null,null,10,null,null,null,null,null,null,null,null,null,null,null,null,null,null,null,null,null,null,null,null,null,null,null,null,null,null,null,null,null,{"$f":"IF(V97=\"\",\"\",1/V97)","v":""},null,null,null,null,null,null,null,null,{"$f":"IF(AE97=\"\",\"\",AE97*V97)","v":""}]
[]
[]
[]
[null,null,null,null,null,null,null,null,null,null,"Unique Characteristic of Material C"]
[]
[]
[]
[null,null,null,null,null,null,null,null,null,null,null,"1st Stage Speed",null,null,null,null,null,null,null,null,"1st Stage Time",null,null,null,null,null,null,null,null,"1st Stage Tranfer",null,null,null,null,null,null,null,null,"Shear rate",null,null,null,null,null,null,null,null,"Relative viscosity"]
[]
[null,null,null,null,null,null,null,null,null,null,null,{"$f":"IF(AG29=\"mm/s\",\"(mm/s)\",IF(AG29=\"in/s\",\"(in/s)\",IF(AG29=\"cm/s\",\"(cm/s)\",IF(AG29=\"%\",\"(%)\",\"\"))))","v":""},null,null,null,null,null,null,null,null,"(s)",null,null,null,null,null,null,null,null,"Pressure",null,null,null,null,{"$f":"IF(AG26=\"psi\",\"(psi)\",IF(AG26=\"bar\",\"(bar)\",IF(AG26=\"%\",\"(%)\",IF(AG26=\"kgf/c\",\"(kgf/c)\",IF(AG26=\"MPa\",\"(MPa)\",\"\")))))","v":""},null,null,null,"(= 1/time)",null,null,null,null,null,null,null,null,"(= pressure*time)"]
[]
[]
[null,null,null,null,null,"Fast",null,null,null,1,null,null,null,null,null,null,null,null,null,null,null,null,null,null,null,null,null,null,null,null,null,null,null,null,null,null,null,null,null,{"$f":"IF(V110=\"\",\"\",1/V110)","v":""},null,null,null,null,null,null,null,null,{"$f":"IF(AE110=\"\",\"\",AE110*V110)","v":""}]
[]
[null,null,null,null,null,null,null,null,null,2,null,null,null,null,null,null,null,null,null,null,null,null,null,null,null,null,null,null,null,null,null,null,null,null,null,null,null,null,null,{"$f":"IF(V112=\"\",\"\",1/V112)","v":""},null,null,null,null,null,null,null,null,{"$f":"IF(AE112=\"\",\"\",AE112*V112)","v":""}]
[]
[null,null,null,null,null,null,null,null,null,3,null,null,null,null,null,null,null,null,null,null,null,null,null,null,null,null,null,null,null,null,null,null,null,null,null,null,null,null,null,{"$f":"IF(V114=\"\",\"\",1/V114)","v":""},null,null,null,null,null,null,null,null,{"$f":"IF(AE114=\"\",\"\",AE114*V114)","v":""}]
[]
[null,null,null,null,null,null,null,null,null,4,null,null,null,null,null,null,null,null,null,null,null,null,null,null,null,null,null,null,null,null,null,null,null,null,null,null,null,null,null,{"$f":"IF(V116=\"\",\"\",1/V116)","v":""},null,null,null,null,null,null,null,null,{"$f":"IF(AE116=\"\",\"\",AE116*V116)","v":""}]
[]
[null,null,null,null,null,null,null,null,null,5,null,null,null,null,null,null,null,null,null,null,null,null,null,null,null,null,null,null,null,null,null,null,null,null,null,null,null,null,null,{"$f":"IF(V118=\"\",\"\",1/V118)","v":""},null,null,null,null,null,null,null,null,{"$f":"IF(AE118=\"\",\"\",AE118*V118)","v":""}]
[]
[null,null,null,null,null,null,null,null,null,6,null,null,null,null,null,null,null,null,null,null,null,null,null,null,null,null,null,null,null,null,null,null,null,null,null,null,null,null,null,{"$f":"IF(V120=\"\",\"\",1/V120)","v":""},null,null,null,null,null,null,null,null,{"$f":"IF(AE120=\"\",\"\",AE120*V120)","v":""}]
[]
[null,null,null,null,null,null,null,null,null,7,null,null,null,null,null,null,null,null,null,null,null,null,null,null,null,null,null,null,null,null,null,null,null,null,null,null,null,null,null,{"$f":"IF(V122=\"\",\"\",1/V122)","v":""},null,null,null,null,null,null,null,null,{"$f":"IF(AE122=\"\",\"\",AE122*V122)","v":""}]
[]
[null,null,null,null,null,null,null,null,null,8,null,null,null,null,null,null,null,null,null,null,null,null,null,null,null,null,null,null,null,null,null,null,null,null,null,null,null,null,null,{"$f":"IF(V124=\"\",\"\",1/V124)","v":""},null,null,null,null,null,null,null,null,{"$f":"IF(AE124=\"\",\"\",AE124*V124)","v":""}]
[]
[null,null,null,null,null,null,null,null,null,9,null,null,null,null,null,null,null,null,null,null,null,null,null,null,null,null,null,null,null,null,null,null,null,null,null,null,null,null,null,{"$f":"IF(V126=\"\",\"\",1/V126)","v":""},null,null,null,null,null,null,null,null,{"$f":"IF(AE126=\"\",\"\",AE126*V126)","v":""}]
[]
[null,null,null,null,null,"Slow",null,null,null,10,null,null,null,null,null,null,null,null,null,null,null,null,null,null,null,null,null,null,null,null,null,null,null,null,null,null,null,null,null,{"$f":"IF(V128=\"\",\"\",1/V128)","v":""},null,null,null,null,null,null,null,null,{"$f":"IF(AE128=\"\",\"\",AE128*V128)","v":""}]
[]
[]
[]
[]
[null,null,null,null,null,null,null,null,null,null,"Unique Characteristic of Material D"]
[]
[]
[]
[null,null,null,null,null,null,null,null,null,null,null,"1st Stage Speed",null,null,null,null,null,null,null,null,"1st Stage Time",null,null,null,null,null,null,null,null,"1st Stage Tranfer",null,null,null,null,null,null,null,null,"Shear rate",null,null,null,null,null,null,null,null,"Relative viscosity"]
[]
[null,null,null,null,null,null,null,null,null,null,null,{"$f":"IF(AG29=\"mm/s\",\"(mm/s)\",IF(AG29=\"in/s\",\"(in/s)\",IF(AG29=\"cm/s\",\"(cm/s)\",IF(AG29=\"%\",\"(%)\",\"\"))))","v":""},null,null,null,null,null,null,null,null,"(s)",null,null,null,null,null,null,null,null,"Pressure",null,null,null,null,{"$f":"IF(AG26=\"psi\",\"(psi)\",IF(AG26=\"bar\",\"(bar)\",IF(AG26=\"%\",\"(%)\",IF(AG26=\"kgf/c\",\"(kgf/c)\",IF(AG26=\"MPa\",\"(MPa)\",\"\")))))","v":""},null,null,null,"(= 1/time)",null,null,null,null,null,null,null,null,"(= pressure*time)"]
[]
[]
[null,null,null,null,null,"Fast",null,null,null,1,null,null,null,null,null,null,null,null,null,null,null,null,null,null,null,null,null,null,null,null,null,null,null,null,null,null,null,null,null,{"$f":"IF(V142=\"\",\"\",1/V142)","v":""},null,null,null,null,null,null,null,null,{"$f":"IF(AE142=\"\",\"\",AE142*V142)","v":""}]
[]
[null,null,null,null,null,null,null,null,null,2,null,null,null,null,null,null,null,null,null,null,null,null,null,null,null,null,null,null,null,null,null,null,null,null,null,null,null,null,null,{"$f":"IF(V144=\"\",\"\",1/V144)","v":""},null,null,null,null,null,null,null,null,{"$f":"IF(AE144=\"\",\"\",AE144*V144)","v":""}]
[]
[null,null,null,null,null,null,null,null,null,3,null,null,null,null,null,null,null,null,null,null,null,null,null,null,null,null,null,null,null,null,null,null,null,null,null,null,null,null,null,{"$f":"IF(V146=\"\",\"\",1/V146)","v":""},null,null,null,null,null,null,null,null,{"$f":"IF(AE146=\"\",\"\",AE146*V146)","v":""}]
[]
[null,null,null,null,null,null,null,null,null,4,null,null,null,null,null,null,null,null,null,null,null,null,null,null,null,null,null,null,null,null,null,null,null,null,null,null,null,null,null,{"$f":"IF(V148=\"\",\"\",1/V148)","v":""},null,null,null,null,null,null,null,null,{"$f":"IF(AE148=\"\",\"\",AE148*V148)","v":""}]
[]
[null,null,null,null,null,null,null,null,null,5,null,null,null,null,null,null,null,null,null,null,null,null,null,null,null,null,null,null,null,null,null,null,null,null,null,null,null,null,null,{"$f":"IF(V150=\"\",\"\",1/V150)","v":""},null,null,null,null,null,null,null,null,{"$f":"IF(AE150=\"\",\"\",AE150*V150)","v":""}]
[]
[null,null,null,null,null,null,null,null,null,6,null,null,null,null,null,null,null,null,null,null,null,null,null,null,null,null,null,null,null,null,null,null,null,null,null,null,null,null,null,{"$f":"IF(V152=\"\",\"\",1/V152)","v":""},null,null,null,null,null,null,null,null,{"$f":"IF(AE152=\"\",\"\",AE152*V152)","v":""}]
[]
[null,null,null,null,null,null,null,null,null,7,null,null,null,null,null,null,null,null,null,null,null,null,null,null,null,null,null,null,null,null,null,null,null,null,null,null,null,null,null,{"$f":"IF(V154=\"\",\"\",1/V154)","v":""},null,null,null,null,null,null,null,null,{"$f":"IF(AE154=\"\",\"\",AE154*V154)","v":""}]
[]
[null,null,null,null,null,null,null,null,null,8,null,null,null,null,null,null,null,null,null,null,null,null,null,null,null,null,null,null,null,null,null,null,null,null,null,null,null,null,null,{"$f":"IF(V156=\"\",\"\",1/V156)","v":""},null,null,null,null,null,null,null,null,{"$f":"IF(AE156=\"\",\"\",AE156*V156)","v":""}]
[]
[null,null,null,null,null,null,null,null,null,9,null,null,null,null,null,null,null,null,null,null,null,null,null,null,null,null,null,null,null,null,null,null,null,null,null,null,null,null,null,{"$f":"IF(V158=\"\",\"\",1/V158)","v":""},null,null,null,null,null,null,null,null,{"$f":"IF(AE158=\"\",\"\",AE158*V158)","v":""}]
[]
[null,null,null,null,null,"Slow",null,null,null,10,null,null,null,null,null,null,null,null,null,null,null,null,null,null,null,null,null,null,null,null,null,null,null,null,null,null,null,null,null,{"$f":"IF(V160=\"\",\"\",1/V160)","v":""},null,null,null,null,null,null,null,null,{"$f":"IF(AE160=\"\",\"\",AE160*V160)","v":""}]
[]
[]
[]
[]
[]
[null,null,null,"Material A",null,null,null,null,"Material B",null,null,null,null,"Material C",null,null,null,null,"Material D"]
[null,null,null,"ASR","RV",null,null,null,"ASR","RV",null,null,null,"ASR","RV",null,null,null,"ASR","RV"]
[null,null,null,{"$f":"IF(AN48=\"\",\"\",AN48)","v":""},{"$f":"IF(AW48=\"\",\"\",AW48)","v":""},null,null,null,{"$f":"IF(AN79=\"\",\"\",AN79)","v":""},{"$f":"IF(AW79=\"\",\"\",AW79)","v":""},null,null,null,{"$f":"IF(AN110=\"\",\"\",AN110)","v":""},{"$f":"IF(AW110=\"\",\"\",AW110)","v":""},null,null,null,{"$f":"IF(AN142=\"\",\"\",AN142)","v":""},{"$f":"IF(AW142=\"\",\"\",AW142)","v":""}]
[null,null,null,{"$f":"IF(AN50=\"\",\"\",AN50)","v":""},{"$f":"IF(AW50=\"\",\"\",AW50)","v":""},null,null,null,{"$f":"IF(AN81=\"\",\"\",AN81)","v":""},{"$f":"IF(AW81=\"\",\"\",AW81)","v":""},null,null,null,{"$f":"IF(AN112=\"\",\"\",AN112)","v":""},{"$f":"IF(AW112=\"\",\"\",AW112)","v":""},null,null,null,{"$f":"IF(AN144=\"\",\"\",AN144)","v":""},{"$f":"IF(AW144=\"\",\"\",AW144)","v":""}]
[null,null,null,{"$f":"IF(AN52=\"\",\"\",AN52)","v":""},{"$f":"IF(AW52=\"\",\"\",AW52)","v":""},null,null,null,{"$f":"IF(AN83=\"\",\"\",AN83)","v":""},{"$f":"IF(AW83=\"\",\"\",AW83)","v":""},null,null,null,{"$f":"IF(AN114=\"\",\"\",AN114)","v":""},{"$f":"IF(AW114=\"\",\"\",AW114)","v":""},null,null,null,{"$f":"IF(AN146=\"\",\"\",AN146)","v":""},{"$f":"IF(AW146=\"\",\"\",AW146)","v":""}]
[null,null,null,{"$f":"IF(AN54=\"\",\"\",AN54)","v":""},{"$f":"IF(AW54=\"\",\"\",AW54)","v":""},null,null,null,{"$f":"IF(AN85=\"\",\"\",AN85)","v":""},{"$f":"IF(AW85=\"\",\"\",AW85)","v":""},null,null,null,{"$f":"IF(AN116=\"\",\"\",AN116)","v":""},{"$f":"IF(AW116=\"\",\"\",AW116)","v":""},null,null,null,{"$f":"IF(AN148=\"\",\"\",AN148)","v":""},{"$f":"IF(AW148=\"\",\"\",AW148)","v":""}]
[null,null,null,{"$f":"IF(AN56=\"\",\"\",AN56)","v":""},{"$f":"IF(AW56=\"\",\"\",AW56)","v":""},null,null,null,{"$f":"IF(AN87=\"\",\"\",AN87)","v":""},{"$f":"IF(AW87=\"\",\"\",AW87)","v":""},null,null,null,{"$f":"IF(AN118=\"\",\"\",AN118)","v":""},{"$f":"IF(AW118=\"\",\"\",AW118)","v":""},null,null,null,{"$f":"IF(AN150=\"\",\"\",AN150)","v":""},{"$f":"IF(AW150=\"\",\"\",AW150)","v":""}]
[null,null,null,{"$f":"IF(AN58=\"\",\"\",AN58)","v":""},{"$f":"IF(AW58=\"\",\"\",AW58)","v":""},null,null,null,{"$f":"IF(AN89=\"\",\"\",AN89)","v":""},{"$f":"IF(AW89=\"\",\"\",AW89)","v":""},null,null,null,{"$f":"IF(AN120=\"\",\"\",AN120)","v":""},{"$f":"IF(AW120=\"\",\"\",AW120)","v":""},null,null,null,{"$f":"IF(AN152=\"\",\"\",AN152)","v":""},{"$f":"IF(AW152=\"\",\"\",AW152)","v":""}]
[null,null,null,{"$f":"IF(AN60=\"\",\"\",AN60)","v":""},{"$f":"IF(AW60=\"\",\"\",AW60)","v":""},null,null,null,{"$f":"IF(AN91=\"\",\"\",AN91)","v":""},{"$f":"IF(AW91=\"\",\"\",AW91)","v":""},null,null,null,{"$f":"IF(AN122=\"\",\"\",AN122)","v":""},{"$f":"IF(AW122=\"\",\"\",AW122)","v":""},null,null,null,{"$f":"IF(AN154=\"\",\"\",AN154)","v":""},{"$f":"IF(AW154=\"\",\"\",AW154)","v":""}]
[null,null,null,{"$f":"IF(AN62=\"\",\"\",AN62)","v":""},{"$f":"IF(AW62=\"\",\"\",AW62)","v":""},null,null,null,{"$f":"IF(AN93=\"\",\"\",AN93)","v":""},{"$f":"IF(AW93=\"\",\"\",AW93)","v":""},null,null,null,{"$f":"IF(AN124=\"\",\"\",AN124)","v":""},{"$f":"IF(AW124=\"\",\"\",AW124)","v":""},null,null,null,{"$f":"IF(AN156=\"\",\"\",AN156)","v":""},{"$f":"IF(AW156=\"\",\"\",AW156)","v":""}]
[null,null,null,{"$f":"IF(AN64=\"\",\"\",AN64)","v":""},{"$f":"IF(AW64=\"\",\"\",AW64)","v":""},null,null,null,{"$f":"IF(AN95=\"\",\"\",AN95)","v":""},{"$f":"IF(AW95=\"\",\"\",AW95)","v":""},null,null,null,{"$f":"IF(AN126=\"\",\"\",AN126)","v":""},{"$f":"IF(AW126=\"\",\"\",AW126)","v":""},null,null,null,{"$f":"IF(AN158=\"\",\"\",AN158)","v":""},{"$f":"IF(AW158=\"\",\"\",AW158)","v":""}]
[null,null,null,{"$f":"IF(AN66=\"\",\"\",AN66)","v":""},{"$f":"IF(AW66=\"\",\"\",AW66)","v":""},null,null,null,{"$f":"IF(AN97=\"\",\"\",AN97)","v":""},{"$f":"IF(AW97=\"\",\"\",AW97)","v":""},null,null,null,{"$f":"IF(AN128=\"\",\"\",AN128)","v":""},{"$f":"IF(AW128=\"\",\"\",AW128)","v":""},null,null,null,{"$f":"IF(AN160=\"\",\"\",AN160)","v":""},{"$f":"IF(AW160=\"\",\"\",AW160)","v":""}]
[]
[]
[]
[]
[]
[]
[]
[]
[]
[]
[]
[]
[]
[]
[]
[]
[]
[]
[]
[]
[]
[]
[]
[]
[]
[]
[]
[]
[]
[]
[]
[]
[]
[]
[]
[]
[]
[null,null,null,null,null,null,null,null,null,null,null,null,null,null,null,null,null,null,null,null,null,"Highest",null,null,null,null,null,null,null,null,null,null,null,null,null,null,null,null,null,null,null,null,"Lowest"]
[]
[null,"Ranking of Material Viscosity A-D"]
[]
[]
[]
[null,"*Before continuing; verify injection speed chosen doesn’t exhibit a \"pressure limited\" situation."]

{"sheet":"Mold Deflection","index":25,"n_rows":64,"n_cols":53,"rows_kept":64,"cut":false,"hidden":false,"merged":[[1,1,5,24],[7,1,10,61],[12,1,13,14],[12,15,13,61],[15,1,17,14],[15,15,17,20],[15,21,17,26],[15,27,17,32],[51,44,52,51],[51,52,52,55],[49,44,50,51],[49,52,50,55],[49,5,50,43],[19,1,20,61],[22,13,23,34],[22,35,23,42],[22,43,23,45],[22,46,23,48],[22,49,23,51],[25,1,26,61],[28,32,29,46],[28,47,29,60],[46,1,47,61],[51,5,52,43],[53,5,54,43],[55,44,56,51],[55,52,56,55],[63,44,64,51],[63,52,64,55],[60,5,61,43],[63,5,64,43],[57,44,58,51],[57,52,58,55],[57,5,58,43],[60,44,61,51],[60,52,61,55],[55,5,56,43],[53,44,54,51],[53,52,54,55]]}
[]
[]
[]
[]
[]
[]
[]
[null,"Advanced - Mold Deflection"]
[]
[]
[]
[]
[null,"Purpose:",null,null,null,null,null,null,null,null,null,null,null,null,null,"Measure the Average Mold Deflection during the molding cycle"]
[]
[]
[null,"Equipment Needed:",null,null,null,null,null,null,null,null,null,null,null,null,null,"Safety Glasses",null,null,null,null,null,"Calculator",null,null,null,null,null,"Indicator on Magnetic Base"]
[]
[]
[]
[null,"Define the units being used"]
[]
[]
[null,null,null,null,null,null,null,null,null,null,null,null,null,"Measurement units of indicator",null,null,null,null,null,null,null,null,null,null,null,null,null,null,null,null,null,null,null,null,null,"mm",null,null,null,null,null,null,null,{"$f":"IF(AJ23=\"\",\"mm\",\"\")","v":""},null,null,{"$f":"IF(AJ23=\"\",\"in\",\"\")","v":""},null,null,{"$f":"IF(AJ23=\"\",\"cm\",\"\")","v":""}]
[]
[]
[null,"Diagram of indicator placement for mold deflection test procedure"]
[]
[]
[null,null,null,null,null,null,null,null,null,null,null,null,null,null,null,null,null,null,null,null,null,null,null,null,null,null,null,null,null,null,null,null,"1. Front",null,null,null,null,null,null,null,null,null,null,null,null,null,null,"2. Rear"]
[]
[]
[]
[]
[]
[]
[]
[]
[]
[]
[]
[]
[]
[]
[]
[]
[]
[null,"Mold deflection test results"]
[]
[]
[null,null,null,null,null,"Mold Deflection Measurement #1",null,null,null,null,null,null,null,null,null,null,null,null,null,null,null,null,null,null,null,null,null,null,null,null,null,null,null,null,null,null,null,null,null,null,null,null,null,null,null,null,null,null,null,null,null,null,{"$f":"IF(AJ23=\"\",\"\",AJ23)","v":"mm"}]
[]
[null,null,null,null,null,"Mold Deflection Measurement #2",null,null,null,null,null,null,null,null,null,null,null,null,null,null,null,null,null,null,null,null,null,null,null,null,null,null,null,null,null,null,null,null,null,null,null,null,null,null,null,null,null,null,null,null,null,null,{"$f":"IF(AJ23=\"\",\"\",AJ23)","v":"mm"}]
[]
[null,null,null,null,null,"Mold Deflection Measurement #3",null,null,null,null,null,null,null,null,null,null,null,null,null,null,null,null,null,null,null,null,null,null,null,null,null,null,null,null,null,null,null,null,null,null,null,null,null,null,null,null,null,null,null,null,null,null,{"$f":"IF(AJ23=\"\",\"\",AJ23)","v":"mm"}]
[]
[null,null,null,null,null,"Mold Deflection Measurement #4",null,null,null,null,null,null,null,null,null,null,null,null,null,null,null,null,null,null,null,null,null,null,null,null,null,null,null,null,null,null,null,null,null,null,null,null,null,null,null,null,null,null,null,null,null,null,{"$f":"IF(AJ23=\"\",\"\",AJ23)","v":"mm"}]
[]
[null,null,null,null,null,"Mold Deflection Measurement #5",null,null,null,null,null,null,null,null,null,null,null,null,null,null,null,null,null,null,null,null,null,null,null,null,null,null,null,null,null,null,null,null,null,null,null,null,null,null,null,null,null,null,null,null,null,null,{"$f":"IF(AJ23=\"\",\"\",AJ23)","v":"mm"}]
[]
[]
[null,null,null,null,null,"Total Mold Deflection Measurement = 1 + 2 + 3 + 4 + 5",null,null,null,null,null,null,null,null,null,null,null,null,null,null,null,null,null,null,null,null,null,null,null,null,null,null,null,null,null,null,null,null,null,null,null,null,null,null,{"$f":"IF(AS58=\"\",\"\",SUM(AS58,AS56,AS54,AS52,AS50))","v":""},null,null,null,null,null,null,null,{"$f":"IF(AJ23=\"\",\"\",AJ23)","v":"mm"}]
[]
[]
[null,null,null,null,null,"Average Mold Deflection = (Total Deflection) ÷ 5",null,null,null,null,null,null,null,null,null,null,null,null,null,null,null,null,null,null,null,null,null,null,null,null,null,null,null,null,null,null,null,null,null,null,null,null,null,null,{"$f":"IF(AS61=\"\",\"\",AS61/5)","v":""},null,null,null,null,null,null,null,{"$f":"IF(AJ23=\"\",\"\",AJ23)","v":"mm"}]

{"sheet":"Platen Deflection","index":26,"n_rows":64,"n_cols":53,"rows_kept":64,"cut":false,"hidden":false,"merged":[[1,1,5,24],[7,1,10,61],[12,1,13,14],[12,15,13,61],[15,1,17,14],[15,15,17,20],[15,21,17,26],[15,27,17,32],[46,1,47,61],[49,5,50,43],[49,44,50,51],[49,52,50,55],[19,1,20,61],[22,13,23,34],[22,35,23,42],[22,43,23,45],[22,46,23,48],[22,49,23,51],[25,1,26,61],[51,5,52,43],[51,44,52,51],[51,52,52,55],[53,5,54,43],[53,44,54,51],[53,52,54,55],[55,5,56,43],[55,44,56,51],[55,52,56,55],[57,5,58,43],[57,44,58,51],[57,52,58,55],[60,5,61,43],[60,44,61,51],[60,52,61,55],[63,5,64,43],[63,44,64,51],[63,52,64,55]]}
[]
[]
[]
[]
[]
[]
[]
[null,"Advanced - Platen Deflection"]
[]
[]
[]
[]
[null,"Purpose:",null,null,null,null,null,null,null,null,null,null,null,null,null,"Measure the Average Platen Deflection during the molding cycle"]
[]
[]
[null,"Equipment Needed:",null,null,null,null,null,null,null,null,null,null,null,null,null,"Safety Glasses",null,null,null,null,null,"Calculator",null,null,null,null,null,"Indicator on Magnetic Base"]
[]
[]
[]
[null,"Define the units being used"]
[]
[]
[null,null,null,null,null,null,null,null,null,null,null,null,null,"Measurement units of indicator",null,null,null,null,null,null,null,null,null,null,null,null,null,null,null,null,null,null,null,null,null,null,null,null,null,null,null,null,null,{"$f":"IF(AJ23=\"\",\"mm\",\"\")","v":"mm"},null,null,{"$f":"IF(AJ23=\"\",\"in\",\"\")","v":"in"},null,null,{"$f":"IF(AJ23=\"\",\"cm\",\"\")","v":"cm"}]
[]
[]
[null,"Diagram of indicator placement for mold deflection test procedure"]
[]
[]
[]
[]
[]
[]
[]
[]
[]
[]
[]
[]
[]
[]
[]
[]
[]
[]
[]
[]
[null,"Platen deflection test results"]
[]
[]
[null,null,null,null,null,"Platen Deflection Measurement #1",null,null,null,null,null,null,null,null,null,null,null,null,null,null,null,null,null,null,null,null,null,null,null,null,null,null,null,null,null,null,null,null,null,null,null,null,null,null,null,null,null,null,null,null,null,null,{"$f":"IF(AJ23=\"\",\"\",AJ23)","v":""}]
[]
[null,null,null,null,null,"Platen Deflection Measurement #2",null,null,null,null,null,null,null,null,null,null,null,null,null,null,null,null,null,null,null,null,null,null,null,null,null,null,null,null,null,null,null,null,null,null,null,null,null,null,null,null,null,null,null,null,null,null,{"$f":"IF(AJ23=\"\",\"\",AJ23)","v":""}]
[]
[null,null,null,null,null,"Platen Deflection Measurement #3",null,null,null,null,null,null,null,null,null,null,null,null,null,null,null,null,null,null,null,null,null,null,null,null,null,null,null,null,null,null,null,null,null,null,null,null,null,null,null,null,null,null,null,null,null,null,{"$f":"IF(AJ23=\"\",\"\",AJ23)","v":""}]
[]
[null,null,null,null,null,"Platen Deflection Measurement #4",null,null,null,null,null,null,null,null,null,null,null,null,null,null,null,null,null,null,null,null,null,null,null,null,null,null,null,null,null,null,null,null,null,null,null,null,null,null,null,null,null,null,null,null,null,null,{"$f":"IF(AJ23=\"\",\"\",AJ23)","v":""}]
[]
[null,null,null,null,null,"Platen Deflection Measurement #5",null,null,null,null,null,null,null,null,null,null,null,null,null,null,null,null,null,null,null,null,null,null,null,null,null,null,null,null,null,null,null,null,null,null,null,null,null,null,null,null,null,null,null,null,null,null,{"$f":"IF(AJ23=\"\",\"\",AJ23)","v":""}]
[]
[]
[null,null,null,null,null,"Total Platen Deflection Measurement = 1 + 2 + 3 + 4 + 5",null,null,null,null,null,null,null,null,null,null,null,null,null,null,null,null,null,null,null,null,null,null,null,null,null,null,null,null,null,null,null,null,null,null,null,null,null,null,{"$f":"IF(AS58=\"\",\"\",SUM(AS58,AS56,AS54,AS52,AS50))","v":""},null,null,null,null,null,null,null,{"$f":"IF(AJ23=\"\",\"\",AJ23)","v":""}]
[]
[]
[null,null,null,null,null,"Average Platen Deflection = (Total Deflection) ÷ 5",null,null,null,null,null,null,null,null,null,null,null,null,null,null,null,null,null,null,null,null,null,null,null,null,null,null,null,null,null,null,null,null,null,null,null,null,null,null,{"$f":"IF(AS61=\"\",\"\",AS61/5)","v":""},null,null,null,null,null,null,null,{"$f":"IF(AJ23=\"\",\"\",AJ23)","v":""}]